"SERVICE_CODE","ORGANISATION_UNIT","EXPENDITURE_CATEGORY","EXPENDITURE_DESCRIPTION","EXPENDITURE_CODE","NARRATIVE","DATE","TRANSATION_CODE","NET_AMOUNT","SUPPLIER_CODE","SUPPLIER_NAME","FROM_DATE","TO_DATE","FINANCIAL_PERIOD_YEAR"
"R&B","CORPORATE TRAINING","EMPLOYEES","TRAINING EXPENSES","1305","P112076-SERVICE-C Khouri Outdoor FAW Course 19/20 June 21",19/5/2021 00:00:00,"247809",170,"RE0344","REACT FIRST LTD",26/4/2021 00:00:00,30/5/2021 00:00:00,"P02-2022"
"CEO","LEGAL SERVICES","EMPLOYEES","TRAINING EXPENSES","1305","P111845-SERVICE-Planning Law Conference 2021 for Beryl Foster",4/5/2021 00:00:00,"247298",215,"LL0312","LLG LEGAL TRAINING",26/4/2021 00:00:00,30/5/2021 00:00:00,"P02-2022"
"P&V","YOUTH AND SCHOOLS","EMPLOYEES","TRAINING EXPENSES","1305","P111870-SERVICE-Organisational membership of MiSP HUB",10/5/2021 00:00:00,"247417",250,"MI0459","MINDFULNESS IN SCHOOLS PROJECT",26/4/2021 00:00:00,30/5/2021 00:00:00,"P02-2022"
,"LEE VALLEY RIDING CENTRE","EMPLOYEES","TRAINING EXPENSES","1305","P111984-SERVICE-student exam",12/5/2021 00:00:00,"247689",125,"BR0059","THE BRITISH HORSE SOCIETY LTD",26/4/2021 00:00:00,30/5/2021 00:00:00,"P02-2022"
,"LEE VALLEY RIDING CENTRE","EMPLOYEES","TRAINING EXPENSES","1305","P111894-SERVICE-BHS challenge award pack",30/5/2021 00:00:00,"248512",16,"BR0059","THE BRITISH HORSE SOCIETY LTD",26/4/2021 00:00:00,30/5/2021 00:00:00,"P02-2022"
,"LV LEISURE CENTRE GOLF COURSE","EMPLOYEES","TRAINING EXPENSES","1305","P111400-SERVICE-course audit and planning",5/5/2021 00:00:00,"246990",780,"CA0698","CAMBRIDGE GOLF COMPANY",26/4/2021 00:00:00,30/5/2021 00:00:00,"P02-2022"
,"LEE VALLEY WHITE WATER CENTRE","EMPLOYEES","TRAINING EXPENSES","1305","P111815-SERVICE-22.04.21 Raft Guide Assessment plus travel co",4/5/2021 00:00:00,"247271",500,"DU0143","MALCOLM DURNAN",26/4/2021 00:00:00,30/5/2021 00:00:00,"P02-2022"
,"LEE VALLEY WHITE WATER CENTRE","EMPLOYEES","TRAINING EXPENSES","1305","P111815-SERVICE-BC provider fees for B Breskal, E Buchanan an",4/5/2021 00:00:00,"247271",30,"DU0143","MALCOLM DURNAN",26/4/2021 00:00:00,30/5/2021 00:00:00,"P02-2022"
"R&B","NON DISTRIBUTED COSTS","EMPLOYEES","SUPERANNUATION ADDED YEARS","1310","LONDON PENSIONS FUND AUTHORITY",4/5/2021 00:00:00,"247486",5658.34,"LO0031","LONDON PENSIONS FUND AUTHORITY",26/4/2021 00:00:00,30/5/2021 00:00:00,"P02-2022"
"R&B","HUMAN RESOURCES","EMPLOYEES","CRB CHECKS","1330","ADMIN CHARGE",10/5/2021 00:00:00,"247553",18,"DD0119","DUE DILIGENCE CHECKING LIMITED",26/4/2021 00:00:00,30/5/2021 00:00:00,"P02-2022"
"R&B","HUMAN RESOURCES","EMPLOYEES","CRB CHECKS","1330","DBS CHECK",10/5/2021 00:00:00,"247553",23,"DD0119","DUE DILIGENCE CHECKING LIMITED",26/4/2021 00:00:00,30/5/2021 00:00:00,"P02-2022"
"P&V","YOUTH AND SCHOOLS","EMPLOYEES","CRB CHECKS","1330","DBS CHECKS",10/5/2021 00:00:00,"247553",80,"DD0119","DUE DILIGENCE CHECKING LIMITED",26/4/2021 00:00:00,30/5/2021 00:00:00,"P02-2022"
"P&V","YOUTH AND SCHOOLS","EMPLOYEES","CRB CHECKS","1330","ADMIN CHARGE",10/5/2021 00:00:00,"247553",36,"DD0119","DUE DILIGENCE CHECKING LIMITED",26/4/2021 00:00:00,30/5/2021 00:00:00,"P02-2022"
"P&V","ALMOST WILD CAMPSITE","EMPLOYEES","CRB CHECKS","1330","ADMIN CHARGE",10/5/2021 00:00:00,"247553",18,"DD0119","DUE DILIGENCE CHECKING LIMITED",26/4/2021 00:00:00,30/5/2021 00:00:00,"P02-2022"
"P&V","ALMOST WILD CAMPSITE","EMPLOYEES","CRB CHECKS","1330","DBS CHECK",10/5/2021 00:00:00,"247553",23,"DD0119","DUE DILIGENCE CHECKING LIMITED",26/4/2021 00:00:00,30/5/2021 00:00:00,"P02-2022"
,"LEE VALLEY RIDING CENTRE","EMPLOYEES","CRB CHECKS","1330","DBS CHECKS",10/5/2021 00:00:00,"247553",103,"DD0119","DUE DILIGENCE CHECKING LIMITED",26/4/2021 00:00:00,30/5/2021 00:00:00,"P02-2022"
,"LEE VALLEY RIDING CENTRE","EMPLOYEES","CRB CHECKS","1330","ADMIN CHARGE",10/5/2021 00:00:00,"247553",54,"DD0119","DUE DILIGENCE CHECKING LIMITED",26/4/2021 00:00:00,30/5/2021 00:00:00,"P02-2022"
,"LEE VALLEY ATHLETICS CENTRE","EMPLOYEES","CRB CHECKS","1330","DBS CHECKS",10/5/2021 00:00:00,"247553",36,"DD0119","DUE DILIGENCE CHECKING LIMITED",26/4/2021 00:00:00,30/5/2021 00:00:00,"P02-2022"
,"LEE VALLEY WHITE WATER CENTRE","EMPLOYEES","CRB CHECKS","1330","ADMIN CHARGE",10/5/2021 00:00:00,"247553",54,"DD0119","DUE DILIGENCE CHECKING LIMITED",26/4/2021 00:00:00,30/5/2021 00:00:00,"P02-2022"
,"LEE VALLEY WHITE WATER CENTRE","EMPLOYEES","CRB CHECKS","1330","DBS CHECKS",10/5/2021 00:00:00,"247553",63,"DD0119","DUE DILIGENCE CHECKING LIMITED",26/4/2021 00:00:00,30/5/2021 00:00:00,"P02-2022"
"R&B","CORPORATE TRAINING","EMPLOYEES","APPRENTICE LEVY","1390","PAYE",19/5/2021 00:00:00,"248007",2179,"HM0368","HMRC",26/4/2021 00:00:00,30/5/2021 00:00:00,"P02-2022"
"CEO","LVLC SERVICE CHARGE","PREMISES RELATED EXPENDITURE","SCHEDULED GROUND MAINTENANCE","2111","GLENDALE GROUNDS MANAGEMENT LI",5/5/2021 00:00:00,"247485",2299.79,"GL0214","GLENDALE GROUNDS MANAGEMENT LIMITED",26/4/2021 00:00:00,30/5/2021 00:00:00,"P02-2022"
"CEO","LVLC SERVICE CHARGE","PREMISES RELATED EXPENDITURE","SCHEDULED GROUND MAINTENANCE","2111","GLENDALE GROUNDS MANAGEMENT LI",5/5/2021 00:00:00,"247485",101.35,"GL0214","GLENDALE GROUNDS MANAGEMENT LIMITED",26/4/2021 00:00:00,30/5/2021 00:00:00,"P02-2022"
,"LEE VALLEY MARINA SPRINGFIELD","PREMISES RELATED EXPENDITURE","UNSCHEDULED GROUND MAINTENANCE","2112","P111940-SERVICE-To Pollard Willow Tree rear of Gas Cage",11/5/2021 00:00:00,"247703",450,"PA0222","PARKIN & PARKER TREE SPECIALISTS",26/4/2021 00:00:00,30/5/2021 00:00:00,"P02-2022"
"P&V","SOUTH AREA RANGERS","PREMISES RELATED EXPENDITURE","UNSCHEDULED GROUND MAINTENANCE","2112","P111983-SERVICE-Ice Centre Gate Locking / Unlocking",10/5/2021 00:00:00,"247479",360.3,"GL0214","GLENDALE GROUNDS MANAGEMENT LIMITED",26/4/2021 00:00:00,30/5/2021 00:00:00,"P02-2022"
,"LEE VALLEY VELOPARK","PREMISES RELATED EXPENDITURE","OLYMPIC PARK COMMON AREAS COST","2115","P112119-SERVICE-Equipment Hire - June",17/5/2021 00:00:00,"247525",285.27,"PE0015","PHS GROUP PLC",26/4/2021 00:00:00,30/5/2021 00:00:00,"P02-2022"
"P&V","MYDDELTON HOUSE","PREMISES RELATED EXPENDITURE","CONTRACT CLEANING","2120","P112094-SERVICE-Myddelton House Cleaning Contract",25/5/2021 00:00:00,"247760",793.26,"BR0632","BRITANNIA SERVICES GROUP LTD",26/4/2021 00:00:00,30/5/2021 00:00:00,"P02-2022"
,"LEE VALLEY CAMPSITE","PREMISES RELATED EXPENDITURE","CONTRACT CLEANING","2120","P112088-SERVICE-Monthly Cleaning April  - 60hrs",24/5/2021 00:00:00,"247551",780,"LI0305","LIMPIAR CLEANING",26/4/2021 00:00:00,30/5/2021 00:00:00,"P02-2022"
,"LEE VALLEY CARAVAN PARK","PREMISES RELATED EXPENDITURE","CONTRACT CLEANING","2120","P111809-SERVICE-Limpiar Contract Cleaning",4/5/2021 00:00:00,"247183",425,"LI0305","LIMPIAR CLEANING",26/4/2021 00:00:00,30/5/2021 00:00:00,"P02-2022"
,"LEE VALLEY CARAVAN PARK","PREMISES RELATED EXPENDITURE","CONTRACT CLEANING","2120","P111807-SERVICE-washrooms  Initial",4/5/2021 00:00:00,"247204",90.39,"IN0012","INITIAL WASHROOM HYGIENE",26/4/2021 00:00:00,30/5/2021 00:00:00,"P02-2022"
"P&V","NORTH AREA RANGERS","PREMISES RELATED EXPENDITURE","CONTRACT CLEANING","2120","GLENDALE GROUNDS MANAGEMENT LI",5/5/2021 00:00:00,"247485",509.09,"GL0214","GLENDALE GROUNDS MANAGEMENT LIMITED",26/4/2021 00:00:00,30/5/2021 00:00:00,"P02-2022"
"P&V","GUNPOWDER PARK","PREMISES RELATED EXPENDITURE","CONTRACT CLEANING","2120","GLENDALE GROUNDS MANAGEMENT LI",5/5/2021 00:00:00,"247485",509.09,"GL0214","GLENDALE GROUNDS MANAGEMENT LIMITED",26/4/2021 00:00:00,30/5/2021 00:00:00,"P02-2022"
"P&V","RIVER LEE COUNTRY PARK","PREMISES RELATED EXPENDITURE","CONTRACT CLEANING","2120","GLENDALE GROUNDS MANAGEMENT LI",5/5/2021 00:00:00,"247485",1018.19,"GL0214","GLENDALE GROUNDS MANAGEMENT LIMITED",26/4/2021 00:00:00,30/5/2021 00:00:00,"P02-2022"
,"LEE VALLEY VELOPARK","PREMISES RELATED EXPENDITURE","CONTRACT CLEANING","2120","P112115-SERVICE-April 2021 Cleaning",17/5/2021 00:00:00,"247504",637.2,"CA0498","CASNA GROUP",26/4/2021 00:00:00,30/5/2021 00:00:00,"P02-2022"
,"LEE VALLEY VELOPARK","PREMISES RELATED EXPENDITURE","CONTRACT CLEANING","2120","P112115-SERVICE-April 2021 Cleaning",17/5/2021 00:00:00,"247505",531,"CA0498","CASNA GROUP",26/4/2021 00:00:00,30/5/2021 00:00:00,"P02-2022"
,"LEE VALLEY VELOPARK","PREMISES RELATED EXPENDITURE","CONTRACT CLEANING","2120","P112115-SERVICE-April 2021 Cleaning",17/5/2021 00:00:00,"247506",637.2,"CA0498","CASNA GROUP",26/4/2021 00:00:00,30/5/2021 00:00:00,"P02-2022"
,"LEE VALLEY VELOPARK","PREMISES RELATED EXPENDITURE","CONTRACT CLEANING","2120","P112123-SERVICE-May 2021 Cleaning",17/5/2021 00:00:00,"247696",637.2,"CA0498","CASNA GROUP",26/4/2021 00:00:00,30/5/2021 00:00:00,"P02-2022"
,"LEE VALLEY VELOPARK","PREMISES RELATED EXPENDITURE","CONTRACT CLEANING","2120","P112123-SERVICE-May 2021 Cleaning",17/5/2021 00:00:00,"247844",637.2,"CA0498","CASNA GROUP",26/4/2021 00:00:00,30/5/2021 00:00:00,"P02-2022"
,"LEE VALLEY ICE CENTRE","PREMISES RELATED EXPENDITURE","CONTRACT CLEANING","2120","P112140-SERVICE-Cleaners",17/5/2021 00:00:00,"247499",1375.1,"MA0015","MAYFAIR CLEANING COMPANY LIMITED",26/4/2021 00:00:00,30/5/2021 00:00:00,"P02-2022"
,"LEE VALLEY RIDING CENTRE","PREMISES RELATED EXPENDITURE","CLEANING CONTRACT","2121","P112169-SERVICE-April cleaning",24/5/2021 00:00:00,"247500",540.24,"MA0015","MAYFAIR CLEANING COMPANY LIMITED",26/4/2021 00:00:00,30/5/2021 00:00:00,"P02-2022"
,"LEE VALLEY WHITE WATER CENTRE","PREMISES RELATED EXPENDITURE","CLEANING CONTRACT","2121","P111369-SERVICE-Deep Clean of tiled and grouted and and safet",4/5/2021 00:00:00,"247325",1964,"CA0630","CAS CARPET CARE",26/4/2021 00:00:00,30/5/2021 00:00:00,"P02-2022"
,"LEE VALLEY WHITE WATER CENTRE","PREMISES RELATED EXPENDITURE","CLEANING CONTRACT","2121","P111361-SERVICE-Estimate of Contract Cleaning for 01.04.21 to",10/5/2021 00:00:00,"247507",601.56,"CA0498","CASNA GROUP",26/4/2021 00:00:00,30/5/2021 00:00:00,"P02-2022"
,"LEE VALLEY WHITE WATER CENTRE","PREMISES RELATED EXPENDITURE","CLEANING CONTRACT","2121","P111361-SERVICE-Estimate of Contract Cleaning for 01.04.21 to",10/5/2021 00:00:00,"247508",601.56,"CA0498","CASNA GROUP",26/4/2021 00:00:00,30/5/2021 00:00:00,"P02-2022"
,"LEE VALLEY WHITE WATER CENTRE","PREMISES RELATED EXPENDITURE","CLEANING CONTRACT","2121","P111361-SERVICE-Estimate of Contract Cleaning for 01.04.21 to",10/5/2021 00:00:00,"247695",476.28,"CA0498","CASNA GROUP",26/4/2021 00:00:00,30/5/2021 00:00:00,"P02-2022"
,"LEE VALLEY WHITE WATER CENTRE","PREMISES RELATED EXPENDITURE","CLEANING CONTRACT","2121","P111787-SERVICE-144 hours for 04.05.21 to 30.05.21",17/5/2021 00:00:00,"247846",601.56,"CA0498","CASNA GROUP",26/4/2021 00:00:00,30/5/2021 00:00:00,"P02-2022"
,"LEE VALLEY WHITE WATER CENTRE","PREMISES RELATED EXPENDITURE","CLEANING CONTRACT","2121","P111787-SERVICE-144 hours for 04.05.21 to 30.05.21",30/5/2021 00:00:00,"248315",476.28,"CA0498","CASNA GROUP",26/4/2021 00:00:00,30/5/2021 00:00:00,"P02-2022"
,"LEE VALLEY MARINA STANSTEAD","PREMISES RELATED EXPENDITURE","GM MAIN CONTRACT SCHEDULED","2141","GLENDALE GROUNDS MANAGEMENT LI",5/5/2021 00:00:00,"247485",353.97,"GL0214","GLENDALE GROUNDS MANAGEMENT LIMITED",26/4/2021 00:00:00,30/5/2021 00:00:00,"P02-2022"
,"LEE VALLEY WATERWORKS CENTRE","PREMISES RELATED EXPENDITURE","GM MAIN CONTRACT SCHEDULED","2141","GLENDALE GROUNDS MANAGEMENT LI",5/5/2021 00:00:00,"247485",403.44,"GL0214","GLENDALE GROUNDS MANAGEMENT LIMITED",26/4/2021 00:00:00,30/5/2021 00:00:00,"P02-2022"
,"LEE VALLEY WATERWORKS CENTRE","PREMISES RELATED EXPENDITURE","GM MAIN CONTRACT SCHEDULED","2141","GLENDALE GROUNDS MANAGEMENT LI",5/5/2021 00:00:00,"247485",174.98,"GL0214","GLENDALE GROUNDS MANAGEMENT LIMITED",26/4/2021 00:00:00,30/5/2021 00:00:00,"P02-2022"
,"LEE VALLEY FARM HAYES HILL","PREMISES RELATED EXPENDITURE","GM MAIN CONTRACT SCHEDULED","2141","GLENDALE GROUNDS MANAGEMENT LI",5/5/2021 00:00:00,"247485",842.82,"GL0214","GLENDALE GROUNDS MANAGEMENT LIMITED",26/4/2021 00:00:00,30/5/2021 00:00:00,"P02-2022"
"P&V","EAST INDIA DOCK AND BOW CREEK","PREMISES RELATED EXPENDITURE","GM MAIN CONTRACT SCHEDULED","2141","GLENDALE GROUNDS MANAGEMENT LI",5/5/2021 00:00:00,"247485",874.91,"GL0214","GLENDALE GROUNDS MANAGEMENT LIMITED",26/4/2021 00:00:00,30/5/2021 00:00:00,"P02-2022"
"P&V","EAST INDIA DOCK AND BOW CREEK","PREMISES RELATED EXPENDITURE","GM MAIN CONTRACT SCHEDULED","2141","GLENDALE GROUNDS MANAGEMENT LI",5/5/2021 00:00:00,"247485",716.43,"GL0214","GLENDALE GROUNDS MANAGEMENT LIMITED",26/4/2021 00:00:00,30/5/2021 00:00:00,"P02-2022"
"P&V","NORTH AREA RANGERS","PREMISES RELATED EXPENDITURE","GM MAIN CONTRACT SCHEDULED","2141","GLENDALE GROUNDS MANAGEMENT LI",5/5/2021 00:00:00,"247485",5126.83,"GL0214","GLENDALE GROUNDS MANAGEMENT LIMITED",26/4/2021 00:00:00,30/5/2021 00:00:00,"P02-2022"
"P&V","SOUTH AREA RANGERS","PREMISES RELATED EXPENDITURE","GM MAIN CONTRACT SCHEDULED","2141","GLENDALE GROUNDS MANAGEMENT LI",5/5/2021 00:00:00,"247485",10016.33,"GL0214","GLENDALE GROUNDS MANAGEMENT LIMITED",26/4/2021 00:00:00,30/5/2021 00:00:00,"P02-2022"
"P&V","SOUTH AREA RANGERS","PREMISES RELATED EXPENDITURE","GM MAIN CONTRACT SCHEDULED","2141","GLENDALE GROUNDS MANAGEMENT LI",5/5/2021 00:00:00,"247485",349.96,"GL0214","GLENDALE GROUNDS MANAGEMENT LIMITED",26/4/2021 00:00:00,30/5/2021 00:00:00,"P02-2022"
"P&V","ABBEY GARDENS","PREMISES RELATED EXPENDITURE","GM MAIN CONTRACT SCHEDULED","2141","GLENDALE GROUNDS MANAGEMENT LI",5/5/2021 00:00:00,"247485",2663.46,"GL0214","GLENDALE GROUNDS MANAGEMENT LIMITED",26/4/2021 00:00:00,30/5/2021 00:00:00,"P02-2022"
"P&V","GUNPOWDER PARK","PREMISES RELATED EXPENDITURE","GM MAIN CONTRACT SCHEDULED","2141","GLENDALE GROUNDS MANAGEMENT LI",5/5/2021 00:00:00,"247485",3028.86,"GL0214","GLENDALE GROUNDS MANAGEMENT LIMITED",26/4/2021 00:00:00,30/5/2021 00:00:00,"P02-2022"
"P&V","RIVER LEE COUNTRY PARK","PREMISES RELATED EXPENDITURE","GM MAIN CONTRACT SCHEDULED","2141","GLENDALE GROUNDS MANAGEMENT LI",5/5/2021 00:00:00,"247485",2099.79,"GL0214","GLENDALE GROUNDS MANAGEMENT LIMITED",26/4/2021 00:00:00,30/5/2021 00:00:00,"P02-2022"
"P&V","RIVER LEE COUNTRY PARK","PREMISES RELATED EXPENDITURE","GM MAIN CONTRACT SCHEDULED","2141","GLENDALE GROUNDS MANAGEMENT LI",5/5/2021 00:00:00,"247485",18035.99,"GL0214","GLENDALE GROUNDS MANAGEMENT LIMITED",26/4/2021 00:00:00,30/5/2021 00:00:00,"P02-2022"
,"LEE VALLEY VELOPARK","PREMISES RELATED EXPENDITURE","GM MAIN CONTRACT SCHEDULED","2141","GLENDALE GROUNDS MANAGEMENT LI",5/5/2021 00:00:00,"247485",1692.19,"GL0214","GLENDALE GROUNDS MANAGEMENT LIMITED",26/4/2021 00:00:00,30/5/2021 00:00:00,"P02-2022"
,"LV HOCKEY AND TENNIS CENTRE","PREMISES RELATED EXPENDITURE","GM MAIN CONTRACT SCHEDULED","2141","GLENDALE GROUNDS MANAGEMENT LI",5/5/2021 00:00:00,"247485",2067.88,"GL0214","GLENDALE GROUNDS MANAGEMENT LIMITED",26/4/2021 00:00:00,30/5/2021 00:00:00,"P02-2022"
"P&V","THREE MILLS","PREMISES RELATED EXPENDITURE","GM MAIN CONTRACT SCHEDULED","2141","GLENDALE GROUNDS MANAGEMENT LI",5/5/2021 00:00:00,"247485",1201.76,"GL0214","GLENDALE GROUNDS MANAGEMENT LIMITED",26/4/2021 00:00:00,30/5/2021 00:00:00,"P02-2022"
,"LEE VALLEY RIDING CENTRE","PREMISES RELATED EXPENDITURE","GM MAIN CONTRACT SCHEDULED","2141","GLENDALE GROUNDS MANAGEMENT LI",5/5/2021 00:00:00,"247485",394.44,"GL0214","GLENDALE GROUNDS MANAGEMENT LIMITED",26/4/2021 00:00:00,30/5/2021 00:00:00,"P02-2022"
,"LEE VALLEY ICE CENTRE","PREMISES RELATED EXPENDITURE","GM MAIN CONTRACT SCHEDULED","2141","GLENDALE GROUNDS MANAGEMENT LI",5/5/2021 00:00:00,"247485",288.7,"GL0214","GLENDALE GROUNDS MANAGEMENT LIMITED",26/4/2021 00:00:00,30/5/2021 00:00:00,"P02-2022"
"P&V","FORMER LV LIDO SITE","PREMISES RELATED EXPENDITURE","GM MAIN CONTRACT SCHEDULED","2141","GLENDALE GROUNDS MANAGEMENT LI",5/5/2021 00:00:00,"247485",954.78,"GL0214","GLENDALE GROUNDS MANAGEMENT LIMITED",26/4/2021 00:00:00,30/5/2021 00:00:00,"P02-2022"
,"LEE VALLEY ATHLETICS CENTRE","PREMISES RELATED EXPENDITURE","GM MAIN CONTRACT SCHEDULED","2141","GLENDALE GROUNDS MANAGEMENT LI",5/5/2021 00:00:00,"247485",467.68,"GL0214","GLENDALE GROUNDS MANAGEMENT LIMITED",26/4/2021 00:00:00,30/5/2021 00:00:00,"P02-2022"
,"LEE VALLEY WHITE WATER CENTRE","PREMISES RELATED EXPENDITURE","GM MAIN CONTRACT SCHEDULED","2141","GLENDALE GROUNDS MANAGEMENT LI",5/5/2021 00:00:00,"247485",1658.49,"GL0214","GLENDALE GROUNDS MANAGEMENT LIMITED",26/4/2021 00:00:00,30/5/2021 00:00:00,"P02-2022"
"P&V","SOUTH AREA RANGERS","PREMISES RELATED EXPENDITURE","GM MAIN CONTRACT UNSCHEDULED","2142","P111975-SERVICE-Cleaning WaterWorks Centre - April 2021",10/5/2021 00:00:00,"247478",526.05,"GL0214","GLENDALE GROUNDS MANAGEMENT LIMITED",26/4/2021 00:00:00,30/5/2021 00:00:00,"P02-2022"
"P&V","SOUTH AREA RANGERS","PREMISES RELATED EXPENDITURE","GM MAIN CONTRACT UNSCHEDULED","2142","P112350-SERVICE-Cleaning WaterWorks Centre - May 2021",30/5/2021 00:00:00,"248537",526.05,"GL0214","GLENDALE GROUNDS MANAGEMENT LIMITED",26/4/2021 00:00:00,30/5/2021 00:00:00,"P02-2022"
,"LEE VALLEY WATERWORKS CENTRE","PREMISES RELATED EXPENDITURE","GM HORTICULTURE SCHEDULED","2143","GLENDALE GROUNDS MANAGEMENT LI",5/5/2021 00:00:00,"247485",155.61,"GL0214","GLENDALE GROUNDS MANAGEMENT LIMITED",26/4/2021 00:00:00,30/5/2021 00:00:00,"P02-2022"
"P&V","NORTH AREA RANGERS","PREMISES RELATED EXPENDITURE","GM HORTICULTURE SCHEDULED","2143","GLENDALE GROUNDS MANAGEMENT LI",5/5/2021 00:00:00,"247485",218.66,"GL0214","GLENDALE GROUNDS MANAGEMENT LIMITED",26/4/2021 00:00:00,30/5/2021 00:00:00,"P02-2022"
"P&V","SOUTH AREA RANGERS","PREMISES RELATED EXPENDITURE","GM HORTICULTURE SCHEDULED","2143","GLENDALE GROUNDS MANAGEMENT LI",5/5/2021 00:00:00,"247485",126.5,"GL0214","GLENDALE GROUNDS MANAGEMENT LIMITED",26/4/2021 00:00:00,30/5/2021 00:00:00,"P02-2022"
"P&V","ABBEY GARDENS","PREMISES RELATED EXPENDITURE","GM HORTICULTURE SCHEDULED","2143","GLENDALE GROUNDS MANAGEMENT LI",5/5/2021 00:00:00,"247485",1819.81,"GL0214","GLENDALE GROUNDS MANAGEMENT LIMITED",26/4/2021 00:00:00,30/5/2021 00:00:00,"P02-2022"
"P&V","GUNPOWDER PARK","PREMISES RELATED EXPENDITURE","GM HORTICULTURE SCHEDULED","2143","GLENDALE GROUNDS MANAGEMENT LI",5/5/2021 00:00:00,"247485",238.2,"GL0214","GLENDALE GROUNDS MANAGEMENT LIMITED",26/4/2021 00:00:00,30/5/2021 00:00:00,"P02-2022"
"P&V","RIVER LEE COUNTRY PARK","PREMISES RELATED EXPENDITURE","GM HORTICULTURE SCHEDULED","2143","GLENDALE GROUNDS MANAGEMENT LI",5/5/2021 00:00:00,"247485",122.16,"GL0214","GLENDALE GROUNDS MANAGEMENT LIMITED",26/4/2021 00:00:00,30/5/2021 00:00:00,"P02-2022"
,"LEE VALLEY VELOPARK","PREMISES RELATED EXPENDITURE","GM HORTICULTURE SCHEDULED","2143","GLENDALE GROUNDS MANAGEMENT LI",5/5/2021 00:00:00,"247485",24.9,"GL0214","GLENDALE GROUNDS MANAGEMENT LIMITED",26/4/2021 00:00:00,30/5/2021 00:00:00,"P02-2022"
,"LV HOCKEY AND TENNIS CENTRE","PREMISES RELATED EXPENDITURE","GM HORTICULTURE SCHEDULED","2143","GLENDALE GROUNDS MANAGEMENT LI",5/5/2021 00:00:00,"247485",1056.86,"GL0214","GLENDALE GROUNDS MANAGEMENT LIMITED",26/4/2021 00:00:00,30/5/2021 00:00:00,"P02-2022"
"P&V","THREE MILLS","PREMISES RELATED EXPENDITURE","GM HORTICULTURE SCHEDULED","2143","GLENDALE GROUNDS MANAGEMENT LI",5/5/2021 00:00:00,"247485",40,"GL0214","GLENDALE GROUNDS MANAGEMENT LIMITED",26/4/2021 00:00:00,30/5/2021 00:00:00,"P02-2022"
,"LEE VALLEY RIDING CENTRE","PREMISES RELATED EXPENDITURE","GM HORTICULTURE SCHEDULED","2143","GLENDALE GROUNDS MANAGEMENT LI",5/5/2021 00:00:00,"247485",12.38,"GL0214","GLENDALE GROUNDS MANAGEMENT LIMITED",26/4/2021 00:00:00,30/5/2021 00:00:00,"P02-2022"
,"LEE VALLEY WHITE WATER CENTRE","PREMISES RELATED EXPENDITURE","GM HORTICULTURE SCHEDULED","2143","GLENDALE GROUNDS MANAGEMENT LI",5/5/2021 00:00:00,"247485",5.73,"GL0214","GLENDALE GROUNDS MANAGEMENT LIMITED",26/4/2021 00:00:00,30/5/2021 00:00:00,"P02-2022"
"P&V","FORMER LV LIDO SITE","PREMISES RELATED EXPENDITURE","GM ARBORICULTURE UNSCHEDULED","2146","P112026-SERVICE-Remove Willow at Old Mill & Meadows",30/5/2021 00:00:00,"248146",385,"MU0030","P J MUSK TREES",26/4/2021 00:00:00,30/5/2021 00:00:00,"P02-2022"
"P&V","SOUTH AREA RANGERS","PREMISES RELATED EXPENDITURE","GM NON MAIN CONT UNSCHEDULED","2147","P112025-SERVICE-Art Table Reapirs - Coppermill - 2020-004983",30/5/2021 00:00:00,"248539",305.89,"GL0214","GLENDALE GROUNDS MANAGEMENT LIMITED",26/4/2021 00:00:00,30/5/2021 00:00:00,"P02-2022"
"P&V","THREE MILLS","PREMISES RELATED EXPENDITURE","GM NON MAIN CONT UNSCHEDULED","2147","P111070-SERVICE-Aeration of Soil at Three Mills",30/5/2021 00:00:00,"248326",1150,"TE0261","TERRAIN AERATION SERVICES LIMITED",26/4/2021 00:00:00,30/5/2021 00:00:00,"P02-2022"
"P&V","SOUTH AREA RANGERS","PREMISES RELATED EXPENDITURE","HABITAT MANAGEMENT WORKS","2149","P111009-SERVICE-Delivery to address below",24/5/2021 00:00:00,"246121",4.99,"BO0630","BOSTON SEEDS LIMITED",26/4/2021 00:00:00,30/5/2021 00:00:00,"P02-2022"
"P&V","SOUTH AREA RANGERS","PREMISES RELATED EXPENDITURE","HABITAT MANAGEMENT WORKS","2149","P111009-SERVICE-1x Anise hyssop Plug plants x25",24/5/2021 00:00:00,"246121",22.5,"BO0630","BOSTON SEEDS LIMITED",26/4/2021 00:00:00,30/5/2021 00:00:00,"P02-2022"
"P&V","SOUTH AREA RANGERS","PREMISES RELATED EXPENDITURE","HABITAT MANAGEMENT WORKS","2149","P111009-SERVICE-1x Borage Plug plants x25",24/5/2021 00:00:00,"246121",22.5,"BO0630","BOSTON SEEDS LIMITED",26/4/2021 00:00:00,30/5/2021 00:00:00,"P02-2022"
"P&V","SOUTH AREA RANGERS","PREMISES RELATED EXPENDITURE","HABITAT MANAGEMENT WORKS","2149","P111009-SERVICE-1x Sainfoin Plug plants x25",24/5/2021 00:00:00,"246121",22.5,"BO0630","BOSTON SEEDS LIMITED",26/4/2021 00:00:00,30/5/2021 00:00:00,"P02-2022"
"P&V","SOUTH AREA RANGERS","PREMISES RELATED EXPENDITURE","HABITAT MANAGEMENT WORKS","2149","P111040-SERVICE-Meadow Cut at Leyton Marsh",4/5/2021 00:00:00,"247449",1150,"BU0090","BUSH WHEELER SERVICES LTD",26/4/2021 00:00:00,30/5/2021 00:00:00,"P02-2022"
,"LEE VALLEY RIDING CENTRE","PREMISES RELATED EXPENDITURE","CESSPOOL EMPTYING","2210","P111895-SERVICE-quarterly visits plus tanker",4/5/2021 00:00:00,"247482",1750,"HY0042","HYDRO DRAINS LTD",26/4/2021 00:00:00,30/5/2021 00:00:00,"P02-2022"
,"LEE VALLEY MARINA SPRINGFIELD","PREMISES RELATED EXPENDITURE","GENERAL WASTE","2211","P112054-SERVICE-April 2021 General waste & Recycling",11/5/2021 00:00:00,"247565",1218.35,"CL0037","VEOLIA ES (UK) LTD",26/4/2021 00:00:00,30/5/2021 00:00:00,"P02-2022"
,"LEE VALLEY MARINA STANSTEAD","PREMISES RELATED EXPENDITURE","GENERAL WASTE","2211","P111863-SERVICE-removal of waste fridges, haz waste cons note",5/5/2021 00:00:00,"247439",215,"EN0399","ENVIRO WASTE LONDON LTD",26/4/2021 00:00:00,30/5/2021 00:00:00,"P02-2022"
,"LEE VALLEY MARINA STANSTEAD","PREMISES RELATED EXPENDITURE","GENERAL WASTE","2211","P107647-SERVICE-Weekly waste removal Rye House Moorings",10/5/2021 00:00:00,"247679",207.96,"CL0037","VEOLIA ES (UK) LTD",26/4/2021 00:00:00,30/5/2021 00:00:00,"P02-2022"
,"LEE VALLEY MARINA STANSTEAD","PREMISES RELATED EXPENDITURE","GENERAL WASTE","2211","P107647-SERVICE-Weekly waste removal Rye House Moorings",10/5/2021 00:00:00,"247680",611.22,"CL0037","VEOLIA ES (UK) LTD",26/4/2021 00:00:00,30/5/2021 00:00:00,"P02-2022"
,"LEE VALLEY MARINA STANSTEAD","PREMISES RELATED EXPENDITURE","GENERAL WASTE","2211","P111496-SERVICE-sanitary bin removal and exchange x 3",25/5/2021 00:00:00,"248150",40,"PE0015","PHS GROUP PLC",26/4/2021 00:00:00,30/5/2021 00:00:00,"P02-2022"
,"LEE VALLEY MARINA STANSTEAD","PREMISES RELATED EXPENDITURE","GENERAL WASTE","2211","P111496-SERVICE-extra bin",25/5/2021 00:00:00,"248150",8.6,"PE0015","PHS GROUP PLC",26/4/2021 00:00:00,30/5/2021 00:00:00,"P02-2022"
,"LEE VALLEY FARM HAYES HILL","PREMISES RELATED EXPENDITURE","GENERAL WASTE","2211","BYWATERS (LEYTON) LTD",26/5/2021 00:00:00,"247745",183.23,"BY0049","BYWATERS (LEYTON) LTD",26/4/2021 00:00:00,30/5/2021 00:00:00,"P02-2022"
,"LEE VALLEY CAMPSITE","PREMISES RELATED EXPENDITURE","GENERAL WASTE","2211","P112089-SERVICE-Monthly Skip Collection April",24/5/2021 00:00:00,"247678",668.34,"CL0037","VEOLIA ES (UK) LTD",26/4/2021 00:00:00,30/5/2021 00:00:00,"P02-2022"
"P&V","NORTH AREA RANGERS","PREMISES RELATED EXPENDITURE","GENERAL WASTE","2211","P111648-SERVICE-4x HGN 45 Dog Waste Bin with Rootfast Anchor",4/5/2021 00:00:00,"247295",756,"EA0003","EARTH ANCHORS LTD",26/4/2021 00:00:00,30/5/2021 00:00:00,"P02-2022"
"P&V","NORTH AREA RANGERS","PREMISES RELATED EXPENDITURE","GENERAL WASTE","2211","P111648-SERVICE-Delivery Dog Bins",4/5/2021 00:00:00,"247295",68,"EA0003","EARTH ANCHORS LTD",26/4/2021 00:00:00,30/5/2021 00:00:00,"P02-2022"
"P&V","NORTH AREA RANGERS","PREMISES RELATED EXPENDITURE","GENERAL WASTE","2211","P111220-SERVICE-Clear Blockage - Small River Lee",10/5/2021 00:00:00,"247560",800,"BU0090","BUSH WHEELER SERVICES LTD",26/4/2021 00:00:00,30/5/2021 00:00:00,"P02-2022"
"P&V","NORTH AREA RANGERS","PREMISES RELATED EXPENDITURE","GENERAL WASTE","2211","P111221-SERVICE-Clear Blockage - Small River Lee",10/5/2021 00:00:00,"247561",500,"BU0090","BUSH WHEELER SERVICES LTD",26/4/2021 00:00:00,30/5/2021 00:00:00,"P02-2022"
"P&V","SOUTH AREA RANGERS","PREMISES RELATED EXPENDITURE","GENERAL WASTE","2211","P111667-SERVICE-Skip at WaterWorks Centre",10/5/2021 00:00:00,"247669",270,"GB0239","GBN SERVICES LTD",26/4/2021 00:00:00,30/5/2021 00:00:00,"P02-2022"
"P&V","SOUTH AREA RANGERS","PREMISES RELATED EXPENDITURE","GENERAL WASTE","2211","P111667-SERVICE-Skip at WaterWorks Centre",24/5/2021 00:00:00,"248099",270,"GB0239","GBN SERVICES LTD",26/4/2021 00:00:00,30/5/2021 00:00:00,"P02-2022"
"P&V","RIVER LEE COUNTRY PARK","PREMISES RELATED EXPENDITURE","GENERAL WASTE","2211","P111516-SERVICE-Additional Litter Pick - North Areas",17/5/2021 00:00:00,"247480",519.17,"GL0214","GLENDALE GROUNDS MANAGEMENT LIMITED",26/4/2021 00:00:00,30/5/2021 00:00:00,"P02-2022"
"P&V","RIVER LEE COUNTRY PARK","PREMISES RELATED EXPENDITURE","GENERAL WASTE","2211","P111741-SERVICE-12yd General Rubbish Skip at Holyfield Hall F",10/5/2021 00:00:00,"247670",540,"GB0239","GBN SERVICES LTD",26/4/2021 00:00:00,30/5/2021 00:00:00,"P02-2022"
"P&V","RIVER LEE COUNTRY PARK","PREMISES RELATED EXPENDITURE","GENERAL WASTE","2211","P111741-SERVICE-12yd General Rubbish Skip at Holyfield Hall F",10/5/2021 00:00:00,"247709",270,"GB0239","GBN SERVICES LTD",26/4/2021 00:00:00,30/5/2021 00:00:00,"P02-2022"
"P&V","RIVER LEE COUNTRY PARK","PREMISES RELATED EXPENDITURE","GENERAL WASTE","2211","P112172-SERVICE-12yd General Rubbish Skip at Holyfield Hall F",24/5/2021 00:00:00,"248147",270,"GB0239","GBN SERVICES LTD",26/4/2021 00:00:00,30/5/2021 00:00:00,"P02-2022"
,"LEE VALLEY VELOPARK","PREMISES RELATED EXPENDITURE","GENERAL WASTE","2211","P112121-SERVICE-Waste Collection",17/5/2021 00:00:00,"247648",697.37,"CL0037","VEOLIA ES (UK) LTD",26/4/2021 00:00:00,30/5/2021 00:00:00,"P02-2022"
,"LEE VALLEY RIDING CENTRE","PREMISES RELATED EXPENDITURE","GENERAL WASTE","2211","P112045-SERVICE-RECYCLING WASTE AND COMPACTOR RENTAL",12/5/2021 00:00:00,"247733",2220.25,"BY0049","BYWATERS (LEYTON) LTD",26/4/2021 00:00:00,30/5/2021 00:00:00,"P02-2022"
,"LEE VALLEY ICE CENTRE","PREMISES RELATED EXPENDITURE","GENERAL WASTE","2211","P111915-SERVICE-Rental Skip Portapacker",5/5/2021 00:00:00,"246695",150,"CA0341","F & R CAWLEY LTD",26/4/2021 00:00:00,30/5/2021 00:00:00,"P02-2022"
,"LEE VALLEY ICE CENTRE","PREMISES RELATED EXPENDITURE","GENERAL WASTE","2211","P111917-SERVICE-Portable Compactor",5/5/2021 00:00:00,"247029",232.5,"BY0049","BYWATERS (LEYTON) LTD",26/4/2021 00:00:00,30/5/2021 00:00:00,"P02-2022"
,"LEE VALLEY ICE CENTRE","PREMISES RELATED EXPENDITURE","GENERAL WASTE","2211","P111918-SERVICE-Portable Compactor",5/5/2021 00:00:00,"247030",515.1,"BY0049","BYWATERS (LEYTON) LTD",26/4/2021 00:00:00,30/5/2021 00:00:00,"P02-2022"
,"LEE VALLEY ICE CENTRE","PREMISES RELATED EXPENDITURE","GENERAL WASTE","2211","P111919-SERVICE-Portable Compactor",5/5/2021 00:00:00,"247031",210,"BY0049","BYWATERS (LEYTON) LTD",26/4/2021 00:00:00,30/5/2021 00:00:00,"P02-2022"
,"LEE VALLEY ICE CENTRE","PREMISES RELATED EXPENDITURE","GENERAL WASTE","2211","P112324-SERVICE-Rental Skip Portapacker",30/5/2021 00:00:00,"247832",150,"CA0341","F & R CAWLEY LTD",26/4/2021 00:00:00,30/5/2021 00:00:00,"P02-2022"
,"LEE VALLEY ICE CENTRE","PREMISES RELATED EXPENDITURE","GENERAL WASTE","2211","P112020-SERVICE-Skip Exchange May 21",30/5/2021 00:00:00,"248288",282.15,"OD0010","O'DONOVAN (WASTE DISPOSAL) LTD",26/4/2021 00:00:00,30/5/2021 00:00:00,"P02-2022"
,"LV LEISURE CENTRE CAMPSITE","PREMISES RELATED EXPENDITURE","GENERAL WASTE","2211","P112253-SERVICE-waste collection and skip",26/5/2021 00:00:00,"247681",360.37,"CL0037","VEOLIA ES (UK) LTD",26/4/2021 00:00:00,30/5/2021 00:00:00,"P02-2022"
,"LEE VALLEY WHITE WATER CENTRE","PREMISES RELATED EXPENDITURE","GENERAL WASTE","2211","P112021-SERVICE-Refuse Collections April 21 to March 22",11/5/2021 00:00:00,"247734",522.23,"BY0049","BYWATERS (LEYTON) LTD",26/4/2021 00:00:00,30/5/2021 00:00:00,"P02-2022"
"P&V","MYDDELTON HOUSE","PREMISES RELATED EXPENDITURE","RECYCLING","2214","P111711-SERVICE-Recycling",25/5/2021 00:00:00,"247833",173.94,"CA0341","F & R CAWLEY LTD",26/4/2021 00:00:00,30/5/2021 00:00:00,"P02-2022"
"P&V","MYDDELTON HOUSE","PREMISES RELATED EXPENDITURE","BUILDING SERVICE AGREEMENTS","2220","P111582-SERVICE-Sanitary Services",4/5/2021 00:00:00,"247244",22.52,"PE0015","PHS GROUP PLC",26/4/2021 00:00:00,30/5/2021 00:00:00,"P02-2022"
"P&V","MYDDELTON HOUSE","PREMISES RELATED EXPENDITURE","BUILDING SERVICE AGREEMENTS","2220","P111582-SERVICE-Sanitary Services",4/5/2021 00:00:00,"247245",159.91,"PE0015","PHS GROUP PLC",26/4/2021 00:00:00,30/5/2021 00:00:00,"P02-2022"
"P&V","MYDDELTON HOUSE","PREMISES RELATED EXPENDITURE","BUILDING SERVICE AGREEMENTS","2220","P111582-SERVICE-Sanitary Services",4/5/2021 00:00:00,"247285",22.52,"PE0015","PHS GROUP PLC",26/4/2021 00:00:00,30/5/2021 00:00:00,"P02-2022"
"P&V","MYDDELTON HOUSE","PREMISES RELATED EXPENDITURE","BUILDING SERVICE AGREEMENTS","2220","P111582-SERVICE-Sanitary Services",4/5/2021 00:00:00,"247286",159.91,"PE0015","PHS GROUP PLC",26/4/2021 00:00:00,30/5/2021 00:00:00,"P02-2022"
"P&V","MYDDELTON HOUSE","PREMISES RELATED EXPENDITURE","BUILDING SERVICE AGREEMENTS","2220","P111942-SERVICE-Collection Fee",10/5/2021 00:00:00,"247460",787,"RO0022","ROYAL MAIL GROUP PLC",26/4/2021 00:00:00,30/5/2021 00:00:00,"P02-2022"
"P&V","MYDDELTON HOUSE","PREMISES RELATED EXPENDITURE","BUILDING SERVICE AGREEMENTS","2220","P112243-SERVICE-Fire Alarm Maintenance 04/21 - 03/22",30/5/2021 00:00:00,"248264",3363.3,"AD0015","ADT FIRE & SECURITY PLC",26/4/2021 00:00:00,30/5/2021 00:00:00,"P02-2022"
"P&V","MYDDELTON HOUSE","PREMISES RELATED EXPENDITURE","BUILDING SERVICE AGREEMENTS","2220","P111582-SERVICE-Sanitary Services",30/5/2021 00:00:00,"248291",53.44,"PE0015","PHS GROUP PLC",26/4/2021 00:00:00,30/5/2021 00:00:00,"P02-2022"
"P&V","MYDDELTON HOUSE","PREMISES RELATED EXPENDITURE","BUILDING SERVICE AGREEMENTS","2220","P111582-SERVICE-Sanitary Services",30/5/2021 00:00:00,"248522",159.91,"PE0015","PHS GROUP PLC",26/4/2021 00:00:00,30/5/2021 00:00:00,"P02-2022"
"P&V","MYDDELTON HOUSE","PREMISES RELATED EXPENDITURE","BUILDING SERVICE AGREEMENTS","2220","P111582-SERVICE-Sanitary Services",30/5/2021 00:00:00,"248523",22.52,"PE0015","PHS GROUP PLC",26/4/2021 00:00:00,30/5/2021 00:00:00,"P02-2022"
,"LEE VALLEY WATERWORKS CENTRE","PREMISES RELATED EXPENDITURE","BUILDING SERVICE AGREEMENTS","2220","P111840-SERVICE-Fire Alarm System Service",4/5/2021 00:00:00,"247186",207.3,"CO0199","ENGIE FM LIMITED",26/4/2021 00:00:00,30/5/2021 00:00:00,"P02-2022"
,"LEE VALLEY WATERWORKS CENTRE","PREMISES RELATED EXPENDITURE","BUILDING SERVICE AGREEMENTS","2220","P111839-SERVICE-Engineering Service to Carry out PPM - Jan 20",4/5/2021 00:00:00,"247187",451.5,"CO0199","ENGIE FM LIMITED",26/4/2021 00:00:00,30/5/2021 00:00:00,"P02-2022"
,"LEE VALLEY WATERWORKS CENTRE","PREMISES RELATED EXPENDITURE","BUILDING SERVICE AGREEMENTS","2220","P111839-SERVICE-Engineering Service to Carry out PPM - Feb 20",4/5/2021 00:00:00,"247188",177.38,"CO0199","ENGIE FM LIMITED",26/4/2021 00:00:00,30/5/2021 00:00:00,"P02-2022"
,"LEE VALLEY WATERWORKS CENTRE","PREMISES RELATED EXPENDITURE","BUILDING SERVICE AGREEMENTS","2220","P111839-SERVICE-Engineering Service to Carry out PPM - Mar 20",4/5/2021 00:00:00,"247189",274.13,"CO0199","ENGIE FM LIMITED",26/4/2021 00:00:00,30/5/2021 00:00:00,"P02-2022"
,"LEE VALLEY WATERWORKS CENTRE","PREMISES RELATED EXPENDITURE","BUILDING SERVICE AGREEMENTS","2220","P112008-SERVICE-Alarm System Maintenance & Monitoring",10/5/2021 00:00:00,"247528",900,"AA0003","AAI SECURITY SYSTEMS",26/4/2021 00:00:00,30/5/2021 00:00:00,"P02-2022"
,"LEE VALLEY CAMPSITE","PREMISES RELATED EXPENDITURE","BUILDING SERVICE AGREEMENTS","2220","P112211-SERVICE-Pest Control FEB/MAR 21",25/5/2021 00:00:00,"247869",140,"VE0006","VERMINATE CITY & RURAL PEST CONTROL LTD",26/4/2021 00:00:00,30/5/2021 00:00:00,"P02-2022"
,"LEE VALLEY CAMPSITE","PREMISES RELATED EXPENDITURE","BUILDING SERVICE AGREEMENTS","2220","P112212-SERVICE-Pest Control APRIl - May 21",25/5/2021 00:00:00,"247870",70,"VE0006","VERMINATE CITY & RURAL PEST CONTROL LTD",26/4/2021 00:00:00,30/5/2021 00:00:00,"P02-2022"
,"LEE VALLEY CAMPSITE","PREMISES RELATED EXPENDITURE","BUILDING SERVICE AGREEMENTS","2220","P112212-SERVICE-Pest Control APRIl - May 21",25/5/2021 00:00:00,"247871",70,"VE0006","VERMINATE CITY & RURAL PEST CONTROL LTD",26/4/2021 00:00:00,30/5/2021 00:00:00,"P02-2022"
,"LEE VALLEY CAMPSITE","PREMISES RELATED EXPENDITURE","BUILDING SERVICE AGREEMENTS","2220","P112213-SERVICE-Annual Maintenance Alarm 21-22",26/5/2021 00:00:00,"248262",131.07,"AC0012","ACTIVE SECURITY GROUP LTD",26/4/2021 00:00:00,30/5/2021 00:00:00,"P02-2022"
,"LEE VALLEY CAMPSITE","PREMISES RELATED EXPENDITURE","BUILDING SERVICE AGREEMENTS","2220","P112213-SERVICE-Galaxy Monitoring Intruder alalrm",26/5/2021 00:00:00,"248263",131.07,"AC0012","ACTIVE SECURITY GROUP LTD",26/4/2021 00:00:00,30/5/2021 00:00:00,"P02-2022"
"P&V","NORTH AREA RANGERS","PREMISES RELATED EXPENDITURE","BUILDING SERVICE AGREEMENTS","2220","P111201-SERVICE-Sanitary Disposal - Old Mill & Meadows Toilet",30/5/2021 00:00:00,"248292",17.58,"PE0015","PHS GROUP PLC",26/4/2021 00:00:00,30/5/2021 00:00:00,"P02-2022"
"P&V","GUNPOWDER PARK","PREMISES RELATED EXPENDITURE","BUILDING SERVICE AGREEMENTS","2220","P108593-SERVICE-Building Servcie Agreement - Gunpowder Park",5/5/2021 00:00:00,"247273",139.16,"CO0199","ENGIE FM LIMITED",26/4/2021 00:00:00,30/5/2021 00:00:00,"P02-2022"
"P&V","GUNPOWDER PARK","PREMISES RELATED EXPENDITURE","BUILDING SERVICE AGREEMENTS","2220","P111199-SERVICE-Sanitary Disposal - Gunpowder Park Office Toi",4/5/2021 00:00:00,"247284",2.7,"PE0015","PHS GROUP PLC",26/4/2021 00:00:00,30/5/2021 00:00:00,"P02-2022"
"P&V","GUNPOWDER PARK","PREMISES RELATED EXPENDITURE","BUILDING SERVICE AGREEMENTS","2220","P111199-SERVICE-Sanitary Disposal - Gunpowder Park Office Toi",10/5/2021 00:00:00,"247542",-2.7,"PE0015","PHS GROUP PLC",26/4/2021 00:00:00,30/5/2021 00:00:00,"P02-2022"
"P&V","GUNPOWDER PARK","PREMISES RELATED EXPENDITURE","BUILDING SERVICE AGREEMENTS","2220","P111200-SERVICE-Sanitary Disposal - Gunpowder Park - Public T",17/5/2021 00:00:00,"247811",14.3,"PE0015","PHS GROUP PLC",26/4/2021 00:00:00,30/5/2021 00:00:00,"P02-2022"
"P&V","GUNPOWDER PARK","PREMISES RELATED EXPENDITURE","BUILDING SERVICE AGREEMENTS","2220","P108593-SERVICE-Building Servcie Agreement - Gunpowder Park",24/5/2021 00:00:00,"248265",139.16,"CO0199","ENGIE FM LIMITED",26/4/2021 00:00:00,30/5/2021 00:00:00,"P02-2022"
"P&V","GUNPOWDER PARK","PREMISES RELATED EXPENDITURE","BUILDING SERVICE AGREEMENTS","2220","P111199-SERVICE-Sanitary Disposal - Gunpowder Park Office Toi",30/5/2021 00:00:00,"248521",2.7,"PE0015","PHS GROUP PLC",26/4/2021 00:00:00,30/5/2021 00:00:00,"P02-2022"
"P&V","RIVER LEE COUNTRY PARK","PREMISES RELATED EXPENDITURE","BUILDING SERVICE AGREEMENTS","2220","P111202-SERVICE-Sanitary Disposal - Fishers Green Toilets",10/5/2021 00:00:00,"247688",6.07,"PE0015","PHS GROUP PLC",26/4/2021 00:00:00,30/5/2021 00:00:00,"P02-2022"
"P&V","RIVER LEE COUNTRY PARK","PREMISES RELATED EXPENDITURE","BUILDING SERVICE AGREEMENTS","2220","P111202-SERVICE-Sanitary Disposal - Fishers Green Toilets",17/5/2021 00:00:00,"247810",11.59,"PE0015","PHS GROUP PLC",26/4/2021 00:00:00,30/5/2021 00:00:00,"P02-2022"
"P&V","RIVER LEE COUNTRY PARK","PREMISES RELATED EXPENDITURE","BUILDING SERVICE AGREEMENTS","2220","P107354-SERVICE-Sharps Container - Ranger Farm Office",30/5/2021 00:00:00,"248520",5.72,"PE0015","PHS GROUP PLC",26/4/2021 00:00:00,30/5/2021 00:00:00,"P02-2022"
,"LEE VALLEY VELOPARK","PREMISES RELATED EXPENDITURE","BUILDING SERVICE AGREEMENTS","2220","P112134-SERVICE-Maintenance contract",17/5/2021 00:00:00,"245937",590,"IN0197","INTEGRATED BUILDING MANAGEMENT SYSTEMS LTD",26/4/2021 00:00:00,30/5/2021 00:00:00,"P02-2022"
,"LEE VALLEY VELOPARK","PREMISES RELATED EXPENDITURE","BUILDING SERVICE AGREEMENTS","2220","P111616-SERVICE-British Telecom Redcare",4/5/2021 00:00:00,"246639",420.27,"AD0015","ADT FIRE & SECURITY PLC",26/4/2021 00:00:00,30/5/2021 00:00:00,"P02-2022"
,"LEE VALLEY VELOPARK","PREMISES RELATED EXPENDITURE","BUILDING SERVICE AGREEMENTS","2220","P111616-SERVICE-British Telecom Redcare",4/5/2021 00:00:00,"246640",79.64,"AD0015","ADT FIRE & SECURITY PLC",26/4/2021 00:00:00,30/5/2021 00:00:00,"P02-2022"
,"LEE VALLEY VELOPARK","PREMISES RELATED EXPENDITURE","BUILDING SERVICE AGREEMENTS","2220","P111429-SERVICE-BMS Contract VP",17/5/2021 00:00:00,"247446",590,"IN0197","INTEGRATED BUILDING MANAGEMENT SYSTEMS LTD",26/4/2021 00:00:00,30/5/2021 00:00:00,"P02-2022"
,"LEE VALLEY VELOPARK","PREMISES RELATED EXPENDITURE","BUILDING SERVICE AGREEMENTS","2220","P111426-SERVICE-Maintenance and Clean of Blinds",17/5/2021 00:00:00,"247549",4480,"BR0532","BRIGHT A BLIND LIMITED",26/4/2021 00:00:00,30/5/2021 00:00:00,"P02-2022"
,"LEE VALLEY VELOPARK","PREMISES RELATED EXPENDITURE","BUILDING SERVICE AGREEMENTS","2220","P110442-SERVICE-Legionella Risk Assessment",17/5/2021 00:00:00,"247653",1725,"GO0211","GOODWATER LTD",26/4/2021 00:00:00,30/5/2021 00:00:00,"P02-2022"
,"LEE VALLEY VELOPARK","PREMISES RELATED EXPENDITURE","BUILDING SERVICE AGREEMENTS","2220","P112126-SERVICE-Fire alarm & BT redcare contra",17/5/2021 00:00:00,"247728",4177.11,"AD0015","ADT FIRE & SECURITY PLC",26/4/2021 00:00:00,30/5/2021 00:00:00,"P02-2022"
,"LEE VALLEY VELOPARK","PREMISES RELATED EXPENDITURE","BUILDING SERVICE AGREEMENTS","2220","P112128-SERVICE-Access Control System contract",17/5/2021 00:00:00,"247751",2877,"AD0015","ADT FIRE & SECURITY PLC",26/4/2021 00:00:00,30/5/2021 00:00:00,"P02-2022"
,"LEE VALLEY VELOPARK","PREMISES RELATED EXPENDITURE","BUILDING SERVICE AGREEMENTS","2220","P112130-SERVICE-British Telecom Redcare & Intruder contract",17/5/2021 00:00:00,"247754",1684.72,"AD0015","ADT FIRE & SECURITY PLC",26/4/2021 00:00:00,30/5/2021 00:00:00,"P02-2022"
,"LEE VALLEY VELOPARK","PREMISES RELATED EXPENDITURE","BUILDING SERVICE AGREEMENTS","2220","P110516-SERVICE-Service Contract Renewal 2021-2022",17/5/2021 00:00:00,"247787",835,"GO0211","GOODWATER LTD",26/4/2021 00:00:00,30/5/2021 00:00:00,"P02-2022"
,"LEE VALLEY VELOPARK","PREMISES RELATED EXPENDITURE","BUILDING SERVICE AGREEMENTS","2220","P112237-SERVICE-Contract - Extinguishing syste",26/5/2021 00:00:00,"248056",1756,"AD0015","ADT FIRE & SECURITY PLC",26/4/2021 00:00:00,30/5/2021 00:00:00,"P02-2022"
,"LEE VALLEY VELOPARK","PREMISES RELATED EXPENDITURE","BUILDING SERVICE AGREEMENTS","2220","P112262-SERVICE-Maintenance of Extinguishing System 21-22",30/5/2021 00:00:00,"248057",2616,"AD0015","ADT FIRE & SECURITY PLC",26/4/2021 00:00:00,30/5/2021 00:00:00,"P02-2022"
,"LEE VALLEY VELOPARK","PREMISES RELATED EXPENDITURE","BUILDING SERVICE AGREEMENTS","2220","P112262-SERVICE-Maintenance of Extinguishing System 21-22",30/5/2021 00:00:00,"248058",318,"AD0015","ADT FIRE & SECURITY PLC",26/4/2021 00:00:00,30/5/2021 00:00:00,"P02-2022"
,"LEE VALLEY VELOPARK","PREMISES RELATED EXPENDITURE","BUILDING SERVICE AGREEMENTS","2220","P112262-SERVICE-Maintenance of Extinguishing System 21-22",30/5/2021 00:00:00,"248069",318,"AD0015","ADT FIRE & SECURITY PLC",26/4/2021 00:00:00,30/5/2021 00:00:00,"P02-2022"
,"LEE VALLEY VELOPARK","PREMISES RELATED EXPENDITURE","BUILDING SERVICE AGREEMENTS","2220","P112262-SERVICE-Maintenance of Extinguishing System 21-22",30/5/2021 00:00:00,"248070",970,"AD0015","ADT FIRE & SECURITY PLC",26/4/2021 00:00:00,30/5/2021 00:00:00,"P02-2022"
,"LEE VALLEY VELOPARK","PREMISES RELATED EXPENDITURE","BUILDING SERVICE AGREEMENTS","2220","P111429-SERVICE-BMS Contract VP",26/5/2021 00:00:00,"248151",590,"IN0197","INTEGRATED BUILDING MANAGEMENT SYSTEMS LTD",26/4/2021 00:00:00,30/5/2021 00:00:00,"P02-2022"
,"LEE VALLEY VELOPARK","PREMISES RELATED EXPENDITURE","BUILDING SERVICE AGREEMENTS","2220","P111432-SERVICE-Lightning Protection System HTC",30/5/2021 00:00:00,"248481",100,"OM0097","OMEGA RED GROUP LTD",26/4/2021 00:00:00,30/5/2021 00:00:00,"P02-2022"
,"LEE VALLEY VELOPARK","PREMISES RELATED EXPENDITURE","BUILDING SERVICE AGREEMENTS","2220","P111432-SERVICE-Lightning Protection System HTC",30/5/2021 00:00:00,"248482",100,"OM0097","OMEGA RED GROUP LTD",26/4/2021 00:00:00,30/5/2021 00:00:00,"P02-2022"
,"LEE VALLEY VELOPARK","PREMISES RELATED EXPENDITURE","BUILDING SERVICE AGREEMENTS","2220","P111432-SERVICE-Lightning Protection System HTC",30/5/2021 00:00:00,"248483",100,"OM0097","OMEGA RED GROUP LTD",26/4/2021 00:00:00,30/5/2021 00:00:00,"P02-2022"
,"LEE VALLEY VELOPARK","PREMISES RELATED EXPENDITURE","BUILDING SERVICE AGREEMENTS","2220","P111432-SERVICE-Lightning Protection System HTC",30/5/2021 00:00:00,"248484",100,"OM0097","OMEGA RED GROUP LTD",26/4/2021 00:00:00,30/5/2021 00:00:00,"P02-2022"
,"LEE VALLEY VELOPARK","PREMISES RELATED EXPENDITURE","BUILDING SERVICE AGREEMENTS","2220","P111432-SERVICE-Lightning Protection System HTC",30/5/2021 00:00:00,"248485",100,"OM0097","OMEGA RED GROUP LTD",26/4/2021 00:00:00,30/5/2021 00:00:00,"P02-2022"
,"LEE VALLEY VELOPARK","PREMISES RELATED EXPENDITURE","BUILDING SERVICE AGREEMENTS","2220","P111432-SERVICE-Lightning Protection System HTC",30/5/2021 00:00:00,"248486",100,"OM0097","OMEGA RED GROUP LTD",26/4/2021 00:00:00,30/5/2021 00:00:00,"P02-2022"
,"LEE VALLEY VELOPARK","PREMISES RELATED EXPENDITURE","BUILDING SERVICE AGREEMENTS","2220","P111432-SERVICE-Lightning Protection System HTC",30/5/2021 00:00:00,"248487",100,"OM0097","OMEGA RED GROUP LTD",26/4/2021 00:00:00,30/5/2021 00:00:00,"P02-2022"
,"LEE VALLEY VELOPARK","PREMISES RELATED EXPENDITURE","BUILDING SERVICE AGREEMENTS","2220","P111432-SERVICE-Lightning Protection System HTC",30/5/2021 00:00:00,"248488",100,"OM0097","OMEGA RED GROUP LTD",26/4/2021 00:00:00,30/5/2021 00:00:00,"P02-2022"
,"LEE VALLEY VELOPARK","PREMISES RELATED EXPENDITURE","BUILDING SERVICE AGREEMENTS","2220","P111432-SERVICE-Lightning Protection System HTC",30/5/2021 00:00:00,"248489",100,"OM0097","OMEGA RED GROUP LTD",26/4/2021 00:00:00,30/5/2021 00:00:00,"P02-2022"
,"LEE VALLEY VELOPARK","PREMISES RELATED EXPENDITURE","BUILDING SERVICE AGREEMENTS","2220","P111432-SERVICE-Lightning Protection System HTC",30/5/2021 00:00:00,"248490",100,"OM0097","OMEGA RED GROUP LTD",26/4/2021 00:00:00,30/5/2021 00:00:00,"P02-2022"
,"LEE VALLEY VELOPARK","PREMISES RELATED EXPENDITURE","BUILDING SERVICE AGREEMENTS","2220","P111432-SERVICE-Lightning Protection System HTC",30/5/2021 00:00:00,"248491",150,"OM0097","OMEGA RED GROUP LTD",26/4/2021 00:00:00,30/5/2021 00:00:00,"P02-2022"
,"LV HOCKEY AND TENNIS CENTRE","PREMISES RELATED EXPENDITURE","BUILDING SERVICE AGREEMENTS","2220","P111719-SERVICE-Contract - British Telecom Red",26/5/2021 00:00:00,"246955",78.87,"AD0015","ADT FIRE & SECURITY PLC",26/4/2021 00:00:00,30/5/2021 00:00:00,"P02-2022"
,"LV HOCKEY AND TENNIS CENTRE","PREMISES RELATED EXPENDITURE","BUILDING SERVICE AGREEMENTS","2220","P110443-SERVICE-Legionella Risk Assessment",17/5/2021 00:00:00,"247654",1625,"GO0211","GOODWATER LTD",26/4/2021 00:00:00,30/5/2021 00:00:00,"P02-2022"
,"LV HOCKEY AND TENNIS CENTRE","PREMISES RELATED EXPENDITURE","BUILDING SERVICE AGREEMENTS","2220","P112127-SERVICE-Fire alarm & BT redcare contract",17/5/2021 00:00:00,"247731",1502.49,"AD0015","ADT FIRE & SECURITY PLC",26/4/2021 00:00:00,30/5/2021 00:00:00,"P02-2022"
,"LV HOCKEY AND TENNIS CENTRE","PREMISES RELATED EXPENDITURE","BUILDING SERVICE AGREEMENTS","2220","P112129-SERVICE-British Telecom Redcare Contrat",17/5/2021 00:00:00,"247753",316.35,"AD0015","ADT FIRE & SECURITY PLC",26/4/2021 00:00:00,30/5/2021 00:00:00,"P02-2022"
,"LV HOCKEY AND TENNIS CENTRE","PREMISES RELATED EXPENDITURE","BUILDING SERVICE AGREEMENTS","2220","P112264-SERVICE-Care system contract",30/5/2021 00:00:00,"248059",582,"AD0015","ADT FIRE & SECURITY PLC",26/4/2021 00:00:00,30/5/2021 00:00:00,"P02-2022"
,"LV HOCKEY AND TENNIS CENTRE","PREMISES RELATED EXPENDITURE","BUILDING SERVICE AGREEMENTS","2220","P111429-SERVICE-BMS Contract HTC",26/5/2021 00:00:00,"248065",590,"IN0197","INTEGRATED BUILDING MANAGEMENT SYSTEMS LTD",26/4/2021 00:00:00,30/5/2021 00:00:00,"P02-2022"
,"LV HOCKEY AND TENNIS CENTRE","PREMISES RELATED EXPENDITURE","BUILDING SERVICE AGREEMENTS","2220","P112264-SERVICE-Care system contract",30/5/2021 00:00:00,"248066",1064,"AD0015","ADT FIRE & SECURITY PLC",26/4/2021 00:00:00,30/5/2021 00:00:00,"P02-2022"
,"LV HOCKEY AND TENNIS CENTRE","PREMISES RELATED EXPENDITURE","BUILDING SERVICE AGREEMENTS","2220","P112264-SERVICE-Care system contract",30/5/2021 00:00:00,"248067",320,"AD0015","ADT FIRE & SECURITY PLC",26/4/2021 00:00:00,30/5/2021 00:00:00,"P02-2022"
,"LV HOCKEY AND TENNIS CENTRE","PREMISES RELATED EXPENDITURE","BUILDING SERVICE AGREEMENTS","2220","P112264-SERVICE-Care system contract",30/5/2021 00:00:00,"248071",756,"AD0015","ADT FIRE & SECURITY PLC",26/4/2021 00:00:00,30/5/2021 00:00:00,"P02-2022"
,"LV HOCKEY AND TENNIS CENTRE","PREMISES RELATED EXPENDITURE","BUILDING SERVICE AGREEMENTS","2220","P111719-SERVICE-Contract - British Telecom Red",30/5/2021 00:00:00,"248328",-24.86,"AD0015","ADT FIRE & SECURITY PLC",26/4/2021 00:00:00,30/5/2021 00:00:00,"P02-2022"
,"LV HOCKEY AND TENNIS CENTRE","PREMISES RELATED EXPENDITURE","BUILDING SERVICE AGREEMENTS","2220","P111432-SERVICE-Lightning Protection System VP",30/5/2021 00:00:00,"248480",495,"OM0097","OMEGA RED GROUP LTD",26/4/2021 00:00:00,30/5/2021 00:00:00,"P02-2022"
,"LEE VALLEY RIDING CENTRE","PREMISES RELATED EXPENDITURE","BUILDING SERVICE AGREEMENTS","2220","P110519-SERVICE-Service Contract Renewal 2021-2022",17/5/2021 00:00:00,"247757",620,"GO0211","GOODWATER LTD",26/4/2021 00:00:00,30/5/2021 00:00:00,"P02-2022"
,"LEE VALLEY ICE CENTRE","PREMISES RELATED EXPENDITURE","BUILDING SERVICE AGREEMENTS","2220","P111916-SERVICE-Drains/Fogging Service",5/5/2021 00:00:00,"246952",557.98,"RE0215","RENTOKIL SPECIALIST HYGIENE",26/4/2021 00:00:00,30/5/2021 00:00:00,"P02-2022"
,"LEE VALLEY ICE CENTRE","PREMISES RELATED EXPENDITURE","BUILDING SERVICE AGREEMENTS","2220","P112301-SERVICE-Quarterly Cover Service",30/5/2021 00:00:00,"247707",126.66,"VE0006","VERMINATE CITY & RURAL PEST CONTROL LTD",26/4/2021 00:00:00,30/5/2021 00:00:00,"P02-2022"
,"LEE VALLEY ICE CENTRE","PREMISES RELATED EXPENDITURE","BUILDING SERVICE AGREEMENTS","2220","P110518-SERVICE-Service Contract Renewal 2021-2022",17/5/2021 00:00:00,"247758",785,"GO0211","GOODWATER LTD",26/4/2021 00:00:00,30/5/2021 00:00:00,"P02-2022"
,"LEE VALLEY ICE CENTRE","PREMISES RELATED EXPENDITURE","BUILDING SERVICE AGREEMENTS","2220","P111299-SERVICE-Scissor Lift Bi-Annual Service April 21",24/5/2021 00:00:00,"248138",227.9,"PA0500","PARAMOUNT PLATFORMS LTD",26/4/2021 00:00:00,30/5/2021 00:00:00,"P02-2022"
,"LV LEISURE CENTRE CAMPSITE","PREMISES RELATED EXPENDITURE","BUILDING SERVICE AGREEMENTS","2220","P111880-SERVICE-Fire Extinguisher Checks",5/5/2021 00:00:00,"247303",1140.78,"MO0478","MORGAN FIRE PROTECTION LTD",26/4/2021 00:00:00,30/5/2021 00:00:00,"P02-2022"
,"LV LEISURE CENTRE CAMPSITE","PREMISES RELATED EXPENDITURE","BUILDING SERVICE AGREEMENTS","2220","P112255-SERVICE-hygiene collection and hire",26/5/2021 00:00:00,"247771",142.29,"PE0015","PHS GROUP PLC",26/4/2021 00:00:00,30/5/2021 00:00:00,"P02-2022"
,"LEE VALLEY WHITE WATER CENTRE","PREMISES RELATED EXPENDITURE","BUILDING SERVICE AGREEMENTS","2220","P111339-SERVICE-Annual Service Contract 01.04.21 to 31.03.22",5/5/2021 00:00:00,"247247",3221.24,"ST0642","STANLEY SECURITY SOLUTIONS LTD",26/4/2021 00:00:00,30/5/2021 00:00:00,"P02-2022"
,"LEE VALLEY WHITE WATER CENTRE","PREMISES RELATED EXPENDITURE","BUILDING SERVICE AGREEMENTS","2220","P111254-SERVICE-Hygiene Services April 2021 to 2022",4/5/2021 00:00:00,"247287",168.6,"PE0015","PHS GROUP PLC",26/4/2021 00:00:00,30/5/2021 00:00:00,"P02-2022"
,"LEE VALLEY WHITE WATER CENTRE","PREMISES RELATED EXPENDITURE","BUILDING SERVICE AGREEMENTS","2220","P111114-SERVICE-2 x visits for chiller maint",10/5/2021 00:00:00,"247536",2006.55,"RI0175","RITTAL LIMITED",26/4/2021 00:00:00,30/5/2021 00:00:00,"P02-2022"
,"LEE VALLEY WHITE WATER CENTRE","PREMISES RELATED EXPENDITURE","BUILDING SERVICE AGREEMENTS","2220","P112022-SERVICE-Redcare Period 28.04.21 to 27.04.22",12/5/2021 00:00:00,"247729",2206.88,"AD0015","ADT FIRE & SECURITY PLC",26/4/2021 00:00:00,30/5/2021 00:00:00,"P02-2022"
,"LEE VALLEY WHITE WATER CENTRE","PREMISES RELATED EXPENDITURE","BUILDING SERVICE AGREEMENTS","2220","P112023-SERVICE-Redcare 28.04.21 to 27.04.22",12/5/2021 00:00:00,"247730",4688.49,"AD0015","ADT FIRE & SECURITY PLC",26/4/2021 00:00:00,30/5/2021 00:00:00,"P02-2022"
,"LEE VALLEY WHITE WATER CENTRE","PREMISES RELATED EXPENDITURE","BUILDING SERVICE AGREEMENTS","2220","P112024-SERVICE-Maintenance of the Acess Control System perio",12/5/2021 00:00:00,"247750",2436,"AD0015","ADT FIRE & SECURITY PLC",26/4/2021 00:00:00,30/5/2021 00:00:00,"P02-2022"
,"LEE VALLEY WHITE WATER CENTRE","PREMISES RELATED EXPENDITURE","BUILDING SERVICE AGREEMENTS","2220","P112099-SERVICE-20th and 21st April air conditioning maintena",18/5/2021 00:00:00,"248014",1380,"GI0137","R & P GIBBS LIMITED",26/4/2021 00:00:00,30/5/2021 00:00:00,"P02-2022"
,"LEE VALLEY WHITE WATER CENTRE","PREMISES RELATED EXPENDITURE","BUILDING SERVICE AGREEMENTS","2220","P112199-SERVICE-Maintenance of IntruderAlarm System for Perio",25/5/2021 00:00:00,"248073",1877,"AD0015","ADT FIRE & SECURITY PLC",26/4/2021 00:00:00,30/5/2021 00:00:00,"P02-2022"
,"LEE VALLEY WHITE WATER CENTRE","PREMISES RELATED EXPENDITURE","BUILDING SERVICE AGREEMENTS","2220","P111254-SERVICE-Hygiene Services April 2021 to 2022",30/5/2021 00:00:00,"248519",168.6,"PE0015","PHS GROUP PLC",26/4/2021 00:00:00,30/5/2021 00:00:00,"P02-2022"
,"LEE VALLEY VELOPARK","PREMISES RELATED EXPENDITURE","ENGINEERING SERVICE AGREEMENTS","2221","P112154-SERVICE-Preventative maintenance of CCTV",18/5/2021 00:00:00,"246473",1956.6,"ST0642","STANLEY SECURITY SOLUTIONS LTD",26/4/2021 00:00:00,30/5/2021 00:00:00,"P02-2022"
,"LEE VALLEY ICE CENTRE","PREMISES RELATED EXPENDITURE","ENGINEERING SERVICE AGREEMENTS","2221","P112142-SERVICE-Cleaning Machines Hire",17/5/2021 00:00:00,"247472",440,"CL0606","CLEAN SWEEP UK LTD",26/4/2021 00:00:00,30/5/2021 00:00:00,"P02-2022"
,"LV LEISURE CENTRE CAMPSITE","PREMISES RELATED EXPENDITURE","ENGINEERING SERVICE AGREEMENTS","2221","P111877-SERVICE-Monthly Hygiene Collection",4/5/2021 00:00:00,"247270",142.29,"PE0015","PHS GROUP PLC",26/4/2021 00:00:00,30/5/2021 00:00:00,"P02-2022"
,"LV LEISURE CENTRE CAMPSITE","PREMISES RELATED EXPENDITURE","ENGINEERING SERVICE AGREEMENTS","2221","P111871-SERVICE-Compactor Service May 21",30/5/2021 00:00:00,"248473",246,"PD0171","PDE WASTE TECHNOLOGIES",26/4/2021 00:00:00,30/5/2021 00:00:00,"P02-2022"
"CEO","RESIDENTIAL ACCOMMODATION","PREMISES RELATED EXPENDITURE","BUILDING REPAIRS & MAINTENANCE","2222","P111961-SERVICE-Chimney Works",10/5/2021 00:00:00,"247306",599.62,"ES0397","ESSEX STOVES AND CHIMNEYS",26/4/2021 00:00:00,30/5/2021 00:00:00,"P02-2022"
"CEO","RESIDENTIAL ACCOMMODATION","PREMISES RELATED EXPENDITURE","BUILDING REPAIRS & MAINTENANCE","2222","P111960-SERVICE-Aquaside - Steel Liner",10/5/2021 00:00:00,"247307",825,"ES0397","ESSEX STOVES AND CHIMNEYS",26/4/2021 00:00:00,30/5/2021 00:00:00,"P02-2022"
"CEO","RESIDENTIAL ACCOMMODATION","PREMISES RELATED EXPENDITURE","BUILDING REPAIRS & MAINTENANCE","2222","P111963-SERVICE-Roselea Bungalow Service Contract",10/5/2021 00:00:00,"247315",297.71,"KI0080","KINGSPAN WATER & ENERGY LIMITED",26/4/2021 00:00:00,30/5/2021 00:00:00,"P02-2022"
"CEO","RESIDENTIAL ACCOMMODATION","PREMISES RELATED EXPENDITURE","BUILDING REPAIRS & MAINTENANCE","2222","P111964-SERVICE-Aquaside - Service Contract",10/5/2021 00:00:00,"247316",360.62,"KI0080","KINGSPAN WATER & ENERGY LIMITED",26/4/2021 00:00:00,30/5/2021 00:00:00,"P02-2022"
"CEO","RESIDENTIAL ACCOMMODATION","PREMISES RELATED EXPENDITURE","BUILDING REPAIRS & MAINTENANCE","2222","KINGSPAN WATER & ENERGY LIMITE",30/5/2021 00:00:00,"248597",0,"KI0080","KINGSPAN WATER & ENERGY LIMITED",26/4/2021 00:00:00,30/5/2021 00:00:00,"P02-2022"
"CEO","RESIDENTIAL ACCOMMODATION","PREMISES RELATED EXPENDITURE","BUILDING REPAIRS & MAINTENANCE","2222","KINGSPAN WATER & ENERGY LIMITE",30/5/2021 00:00:00,"248598",0,"KI0080","KINGSPAN WATER & ENERGY LIMITED",26/4/2021 00:00:00,30/5/2021 00:00:00,"P02-2022"
"CEO","COMMERCIAL ACCOMMODATION","PREMISES RELATED EXPENDITURE","BUILDING REPAIRS & MAINTENANCE","2222","P111994-SERVICE-2 x Stop blocks concrete barriers",17/5/2021 00:00:00,"247440",60,"NA0171","NAIVETTE SERVICES LTD",26/4/2021 00:00:00,30/5/2021 00:00:00,"P02-2022"
,"LEE VALLEY MARINA SPRINGFIELD","PREMISES RELATED EXPENDITURE","BUILDING REPAIRS & MAINTENANCE","2222","P111828-SERVICE-To supply items as requsted",4/5/2021 00:00:00,"247428",31.63,"SC0057","SCREWFIX DIRECT LTD",26/4/2021 00:00:00,30/5/2021 00:00:00,"P02-2022"
,"LEE VALLEY MARINA SPRINGFIELD","PREMISES RELATED EXPENDITURE","BUILDING REPAIRS & MAINTENANCE","2222","P111828-SERVICE-To supply items as requsted",17/5/2021 00:00:00,"247873",12.61,"BQ0164","TRADE UK ACCOUNT",26/4/2021 00:00:00,30/5/2021 00:00:00,"P02-2022"
,"LEE VALLEY MARINA STANSTEAD","PREMISES RELATED EXPENDITURE","BUILDING REPAIRS & MAINTENANCE","2222","P111752-SERVICE-call out to gate/barrier",5/5/2021 00:00:00,"247422",185,"AI0262","AIS ( ADVANCED INTEGRATED SECURITY)",26/4/2021 00:00:00,30/5/2021 00:00:00,"P02-2022"
,"STANSTEAD RECHARGEABLE WORKS","PREMISES RELATED EXPENDITURE","BUILDING REPAIRS & MAINTENANCE","2222","P111941-SERVICE-5x 8x4 shuttering ply",17/5/2021 00:00:00,"247784",128.85,"TI0068","A10 TIMBER COMPANY",26/4/2021 00:00:00,30/5/2021 00:00:00,"P02-2022"
"P&V","LEE VALLEY FARM HOLYFIELDHALL","PREMISES RELATED EXPENDITURE","BUILDING REPAIRS & MAINTENANCE","2222","P111925-SERVICE-Steel",17/5/2021 00:00:00,"247545",101,"JP0017","JPS STEEL FABRICATION LTD",26/4/2021 00:00:00,30/5/2021 00:00:00,"P02-2022"
"P&V","LEE VALLEY FARM HOLYFIELDHALL","PREMISES RELATED EXPENDITURE","BUILDING REPAIRS & MAINTENANCE","2222","P112029-SERVICE-Repair Key Pad",30/5/2021 00:00:00,"248154",278.28,"PS0429","PSL AUTOMATION",26/4/2021 00:00:00,30/5/2021 00:00:00,"P02-2022"
,"LEE VALLEY FARM HAYES HILL","PREMISES RELATED EXPENDITURE","BUILDING REPAIRS & MAINTENANCE","2222","P111811-SERVICE-Electrical works",26/5/2021 00:00:00,"247040",1950,"BR0018","BRADSHAW ELECTRICAL LIMITED",26/4/2021 00:00:00,30/5/2021 00:00:00,"P02-2022"
,"LEE VALLEY FARM HAYES HILL","PREMISES RELATED EXPENDITURE","BUILDING REPAIRS & MAINTENANCE","2222","P111821-SERVICE-Water heater works",26/5/2021 00:00:00,"247539",805,"RE0094","REACT 2 IT (BUILDING & REFURBISHMENT) LTD",26/4/2021 00:00:00,30/5/2021 00:00:00,"P02-2022"
,"LEE VALLEY CAMPSITE","PREMISES RELATED EXPENDITURE","BUILDING REPAIRS & MAINTENANCE","2222","P112038-SERVICE-increase of P/110848 To cover invoice",19/5/2021 00:00:00,"247318",60,"WA0339","WARMHOUSE SERVICES LTD",26/4/2021 00:00:00,30/5/2021 00:00:00,"P02-2022"
,"LEE VALLEY CAMPSITE","PREMISES RELATED EXPENDITURE","BUILDING REPAIRS & MAINTENANCE","2222","P110848-SERVICE-increase order to cover Invoice",19/5/2021 00:00:00,"247318",55.16,"WA0339","WARMHOUSE SERVICES LTD",26/4/2021 00:00:00,30/5/2021 00:00:00,"P02-2022"
"P&V","MYDDLETON HSE HERITAGE CENTRE","PREMISES RELATED EXPENDITURE","BUILDING REPAIRS & MAINTENANCE","2222","P111886-SERVICE-MHG - BTR ladies/disabled toilets",4/5/2021 00:00:00,"247469",240,"AB0257","ABBEY DRAINS LTD",26/4/2021 00:00:00,30/5/2021 00:00:00,"P02-2022"
"P&V","RYE HOUSE GATEHOUSE","PREMISES RELATED EXPENDITURE","BUILDING REPAIRS & MAINTENANCE","2222","P112171-SERVICE-Wall Damage at Rye House Gatehouse",24/5/2021 00:00:00,"248153",421.25,"BE0258","BETWEEN TIME LIMITED",26/4/2021 00:00:00,30/5/2021 00:00:00,"P02-2022"
"P&V","NORTH AREA RANGERS","PREMISES RELATED EXPENDITURE","BUILDING REPAIRS & MAINTENANCE","2222","P111800-SERVICE-Unblock Urinal at Fishers Green Toilets",4/5/2021 00:00:00,"247301",70,"KE0023","KENDALL & SONS LIMITED",26/4/2021 00:00:00,30/5/2021 00:00:00,"P02-2022"
"P&V","RIVER LEE COUNTRY PARK","PREMISES RELATED EXPENDITURE","BUILDING REPAIRS & MAINTENANCE","2222","P112095-SERVICE-Clean Pump at Fishers Green Toilets",19/5/2021 00:00:00,"247779",180,"CO0550","CONVERT WATER LTD",26/4/2021 00:00:00,30/5/2021 00:00:00,"P02-2022"
"P&V","RIVER LEE COUNTRY PARK","PREMISES RELATED EXPENDITURE","BUILDING REPAIRS & MAINTENANCE","2222","P112095-SERVICE-Clean Pump at Fishers Green Toilets",19/5/2021 00:00:00,"247824",460,"CO0550","CONVERT WATER LTD",26/4/2021 00:00:00,30/5/2021 00:00:00,"P02-2022"
,"LEE VALLEY VELOPARK","PREMISES RELATED EXPENDITURE","BUILDING REPAIRS & MAINTENANCE","2222","P111938-SERVICE-Compressed air equipment",17/5/2021 00:00:00,"247702",321.08,"GT0261","GTEC A DIV OF GT COMPRESSORS LTD",26/4/2021 00:00:00,30/5/2021 00:00:00,"P02-2022"
,"LEE VALLEY VELOPARK","PREMISES RELATED EXPENDITURE","BUILDING REPAIRS & MAINTENANCE","2222","P111861-SERVICE-Welding repair to St/St bollard.",17/5/2021 00:00:00,"247875",120,"RB0221","R 'n 'B ENGINEERING LTD",26/4/2021 00:00:00,30/5/2021 00:00:00,"P02-2022"
,"LEE VALLEY VELOPARK","PREMISES RELATED EXPENDITURE","BUILDING REPAIRS & MAINTENANCE","2222","P110991-SERVICE-Disabled Hoist Service 03/2021",26/5/2021 00:00:00,"248081",115,"CA0589","CARE SHOP, A DIVISION OF BUNZL HEALTHCARE",26/4/2021 00:00:00,30/5/2021 00:00:00,"P02-2022"
,"LEE VALLEY VELOPARK","PREMISES RELATED EXPENDITURE","BUILDING REPAIRS & MAINTENANCE","2222","P111988-SERVICE-Replace Motors",26/5/2021 00:00:00,"248105",680,"BR0532","BRIGHT A BLIND LIMITED",26/4/2021 00:00:00,30/5/2021 00:00:00,"P02-2022"
,"LEE VALLEY VELOPARK","PREMISES RELATED EXPENDITURE","BUILDING REPAIRS & MAINTENANCE","2222","P112272-SERVICE-Remedial works",30/5/2021 00:00:00,"248152",280,"JC0161","JCR SECURITY LIMITED",26/4/2021 00:00:00,30/5/2021 00:00:00,"P02-2022"
,"LV HOCKEY AND TENNIS CENTRE","PREMISES RELATED EXPENDITURE","BUILDING REPAIRS & MAINTENANCE","2222","P112273-SERVICE-HydroTech Power Wash",30/5/2021 00:00:00,"247236",3000,"TE0273","TECHNICAL SURFACES LTD",26/4/2021 00:00:00,30/5/2021 00:00:00,"P02-2022"
,"LV HOCKEY AND TENNIS CENTRE","PREMISES RELATED EXPENDITURE","BUILDING REPAIRS & MAINTENANCE","2222","P109251-SERVICE-Service Maintenance Contract",26/5/2021 00:00:00,"248104",164,"AR0335","ARJO UK LTD (FRMLY ARJOHUNTLEIGH UK)",26/4/2021 00:00:00,30/5/2021 00:00:00,"P02-2022"
,"LEE VALLEY RIDING CENTRE","PREMISES RELATED EXPENDITURE","BUILDING REPAIRS & MAINTENANCE","2222","P111738-SERVICE-lightening protection test and maintenance",4/5/2021 00:00:00,"247048",350,"BA0062","BACON LIGHTNING PROTECTION & MAINTENANCE LTD",26/4/2021 00:00:00,30/5/2021 00:00:00,"P02-2022"
,"LEE VALLEY RIDING CENTRE","PREMISES RELATED EXPENDITURE","BUILDING REPAIRS & MAINTENANCE","2222","P111757-SERVICE-cctv maintenance",10/5/2021 00:00:00,"247483",511,"CA0334","CAM TECH SECURITY SYSTEMS LTD",26/4/2021 00:00:00,30/5/2021 00:00:00,"P02-2022"
,"LEE VALLEY RIDING CENTRE","PREMISES RELATED EXPENDITURE","BUILDING REPAIRS & MAINTENANCE","2222","P111924-SERVICE-labour costs for pipe inspection",11/5/2021 00:00:00,"247540",180,"RE0094","REACT 2 IT (BUILDING & REFURBISHMENT) LTD",26/4/2021 00:00:00,30/5/2021 00:00:00,"P02-2022"
,"LV LEISURE CENTRE GOLF COURSE","PREMISES RELATED EXPENDITURE","BUILDING REPAIRS & MAINTENANCE","2222","P111856-SERVICE-repair and replace lock on container at GK",4/5/2021 00:00:00,"247218",124.05,"BA0005","BARNET LOCK  & SECURITY LTD",26/4/2021 00:00:00,30/5/2021 00:00:00,"P02-2022"
,"LEE VALLEY ATHLETICS CENTRE","PREMISES RELATED EXPENDITURE","BUILDING REPAIRS & MAINTENANCE","2222","P111912-SERVICE-invoice 103654 call out 7.1.21",5/5/2021 00:00:00,"246117",85.2,"KE0163","KERSHAW MECHANICAL SERVICES LTD",26/4/2021 00:00:00,30/5/2021 00:00:00,"P02-2022"
,"LEE VALLEY ATHLETICS CENTRE","PREMISES RELATED EXPENDITURE","BUILDING REPAIRS & MAINTENANCE","2222","P110818-SERVICE-LVAC OUTDOOR SHOT CIRCLE",10/5/2021 00:00:00,"246457",995,"PR0133","PROATHLETICS",26/4/2021 00:00:00,30/5/2021 00:00:00,"P02-2022"
,"LEE VALLEY ATHLETICS CENTRE","PREMISES RELATED EXPENDITURE","BUILDING REPAIRS & MAINTENANCE","2222","P111189-SERVICE-LVAC FIT ICE MACHINE & DRIPPING TAP",4/5/2021 00:00:00,"246674",170,"RE0094","REACT 2 IT (BUILDING & REFURBISHMENT) LTD",26/4/2021 00:00:00,30/5/2021 00:00:00,"P02-2022"
,"LEE VALLEY ATHLETICS CENTRE","PREMISES RELATED EXPENDITURE","BUILDING REPAIRS & MAINTENANCE","2222","P111846-SERVICE-jobs",4/5/2021 00:00:00,"246685",120,"WR0162","MR SIMON WRIGHT",26/4/2021 00:00:00,30/5/2021 00:00:00,"P02-2022"
,"LEE VALLEY ATHLETICS CENTRE","PREMISES RELATED EXPENDITURE","BUILDING REPAIRS & MAINTENANCE","2222","P110489-SERVICE-LVAC BOILER REPAIR",12/5/2021 00:00:00,"247418",476,"KE0163","KERSHAW MECHANICAL SERVICES LTD",26/4/2021 00:00:00,30/5/2021 00:00:00,"P02-2022"
,"LEE VALLEY ATHLETICS CENTRE","PREMISES RELATED EXPENDITURE","BUILDING REPAIRS & MAINTENANCE","2222","P112180-SERVICE-LVAC CALL OUT 7.5.21 INVOICE P7012",24/5/2021 00:00:00,"247829",75,"PR0446","PRECISION GYM SERVICES LTD",26/4/2021 00:00:00,30/5/2021 00:00:00,"P02-2022"
,"LEE VALLEY WHITE WATER CENTRE","PREMISES RELATED EXPENDITURE","BUILDING REPAIRS & MAINTENANCE","2222","P110674-SERVICE-Reapirs to conveyor belt",5/5/2021 00:00:00,"247162",6145.5,"FO0223","FORBO SIEGLING UK LTD",26/4/2021 00:00:00,30/5/2021 00:00:00,"P02-2022"
,"LEE VALLEY WHITE WATER CENTRE","PREMISES RELATED EXPENDITURE","BUILDING REPAIRS & MAINTENANCE","2222","P111766-SERVICE-Est No. 2020-090 Option 1",4/5/2021 00:00:00,"247319",1468.27,"GI0137","R & P GIBBS LIMITED",26/4/2021 00:00:00,30/5/2021 00:00:00,"P02-2022"
,"LEE VALLEY WHITE WATER CENTRE","PREMISES RELATED EXPENDITURE","BUILDING REPAIRS & MAINTENANCE","2222","P111440-SERVICE-Call out on 30.03.21 Docket CX92419",10/5/2021 00:00:00,"247752",12.38,"AD0015","ADT FIRE & SECURITY PLC",26/4/2021 00:00:00,30/5/2021 00:00:00,"P02-2022"
,"LEE VALLEY WHITE WATER CENTRE","PREMISES RELATED EXPENDITURE","BUILDING REPAIRS & MAINTENANCE","2222","P111493-SERVICE-Replacement Crankcase",24/5/2021 00:00:00,"248127",176.9,"RI0175","RITTAL LIMITED",26/4/2021 00:00:00,30/5/2021 00:00:00,"P02-2022"
,"LEE VALLEY WHITE WATER CENTRE","PREMISES RELATED EXPENDITURE","BUILDING REPAIRS & MAINTENANCE","2222","P111023-SERVICE-Potable water booster set",26/5/2021 00:00:00,"248141",1116.08,"GI0137","R & P GIBBS LIMITED",26/4/2021 00:00:00,30/5/2021 00:00:00,"P02-2022"
,"LEE VALLEY ATHLETICS CENTRE","PREMISES RELATED EXPENDITURE","ENGINEERING SERVICES CONTRACT","2223","P108872-SERVICE-LVAC ANNUAL CONTRACT OCT 2020 TO MARCH 2021",10/5/2021 00:00:00,"245703",1306.63,"CH0675","CHEAPERWASTE LIMITED",26/4/2021 00:00:00,30/5/2021 00:00:00,"P02-2022"
,"LEE VALLEY ATHLETICS CENTRE","PREMISES RELATED EXPENDITURE","ENGINEERING SERVICES CONTRACT","2223","P111602-SERVICE-LVAC ANNUAL WINDOW MAINTENACE",10/5/2021 00:00:00,"246991",3075,"WI0143","WINDOW MASTER",26/4/2021 00:00:00,30/5/2021 00:00:00,"P02-2022"
,"LEE VALLEY ATHLETICS CENTRE","PREMISES RELATED EXPENDITURE","ENGINEERING SERVICES CONTRACT","2223","P111584-SERVICE-LVAC ANNUAL CONTRACT",4/5/2021 00:00:00,"247265",1075,"DA0075","D.A.T.A. CLEANING SERVICES",26/4/2021 00:00:00,30/5/2021 00:00:00,"P02-2022"
,"LEE VALLEY ATHLETICS CENTRE","PREMISES RELATED EXPENDITURE","ENGINEERING SERVICES CONTRACT","2223","P112050-SERVICE-lvac invoice 60177847 20/21 contract",12/5/2021 00:00:00,"247282",1019.17,"IN0012","INITIAL WASHROOM HYGIENE",26/4/2021 00:00:00,30/5/2021 00:00:00,"P02-2022"
,"LEE VALLEY ATHLETICS CENTRE","PREMISES RELATED EXPENDITURE","ENGINEERING SERVICES CONTRACT","2223","P112047-SERVICE-LVAC ANNUAL CONTRACT 21/22",12/5/2021 00:00:00,"247283",1080.32,"IN0012","INITIAL WASHROOM HYGIENE",26/4/2021 00:00:00,30/5/2021 00:00:00,"P02-2022"
,"LEE VALLEY ATHLETICS CENTRE","PREMISES RELATED EXPENDITURE","ENGINEERING SERVICES CONTRACT","2223","P111604-SERVICE-LVAC ANNUAL REFUSE COLLECTION 21/22",10/5/2021 00:00:00,"247694",362.7,"SI0659","SIMPLY WASTE SOLUTIONS",26/4/2021 00:00:00,30/5/2021 00:00:00,"P02-2022"
,"LEE VALLEY ATHLETICS CENTRE","PREMISES RELATED EXPENDITURE","ENGINEERING SERVICES CONTRACT","2223","P111755-SERVICE-LVAC ANNUAL MAINTENANCE 21/22",18/5/2021 00:00:00,"247783",1415,"KE0163","KERSHAW MECHANICAL SERVICES LTD",26/4/2021 00:00:00,30/5/2021 00:00:00,"P02-2022"
,"LEE VALLEY ATHLETICS CENTRE","PREMISES RELATED EXPENDITURE","ENGINEERING SERVICES CONTRACT","2223","P111755-SERVICE-LVAC ANNUAL MAINTENANCE 21/22",26/5/2021 00:00:00,"248130",1415,"KE0163","KERSHAW MECHANICAL SERVICES LTD",26/4/2021 00:00:00,30/5/2021 00:00:00,"P02-2022"
,"LEE VALLEY ATHLETICS CENTRE","PREMISES RELATED EXPENDITURE","ENGINEERING SERVICES CONTRACT","2223","P111600-SERVICE-LVAC ANNUAL AUTO DOORS MAINTENANCE 21/22",26/5/2021 00:00:00,"248139",250,"SU0398","SUPREME DOOR SPRING CO",26/4/2021 00:00:00,30/5/2021 00:00:00,"P02-2022"
,"LEE VALLEY WHITE WATER CENTRE","PREMISES RELATED EXPENDITURE","ENGINEERING SERVICES CONTRACT","2223","P112007-SERVICE-To provide the services of an authorised pers",11/5/2021 00:00:00,"247527",1530,"AM0309","AMP 5 LIMITED",26/4/2021 00:00:00,30/5/2021 00:00:00,"P02-2022"
,"LEE VALLEY WHITE WATER CENTRE","PREMISES RELATED EXPENDITURE","ENGINEERING SERVICES CONTRACT","2223","P111151-SERVICE-SITE INSPECTIONS AND REPAIR for winch",10/5/2021 00:00:00,"247748",395,"RO0212","ROTREX GROUP LIMITED",26/4/2021 00:00:00,30/5/2021 00:00:00,"P02-2022"
"P&V","SOUTH AREA RANGERS","SUPPLIES AND SERVICES","FENCES/GATES ETC.","2231","P111947-SERVICE-Remove & Replace Fence - Horse Shoe Thicket",30/5/2021 00:00:00,"248290",550,"JO0019","R G JOYCE",26/4/2021 00:00:00,30/5/2021 00:00:00,"P02-2022"
"P&V","RIVER LEE COUNTRY PARK","SUPPLIES AND SERVICES","FENCES/GATES ETC.","2231","P111775-SERVICE-Repair Height Barrier at Broxbourne Riverside",4/5/2021 00:00:00,"247297",102.5,"LW0268","LWC ENGINEERING LIMITED",26/4/2021 00:00:00,30/5/2021 00:00:00,"P02-2022"
"P&V","RIVER LEE COUNTRY PARK","SUPPLIES AND SERVICES","FENCES/GATES ETC.","2231","P111775-SERVICE-Repair Height Barrier at Broxbourne Riverside",4/5/2021 00:00:00,"247297",296,"LW0268","LWC ENGINEERING LIMITED",26/4/2021 00:00:00,30/5/2021 00:00:00,"P02-2022"
"P&V","LEE VALLEY FARM HOLYFIELDHALL","PREMISES RELATED EXPENDITURE","HLS EXPENDITURE","2234","P111969-SERVICE-HLS Seed Mix",30/5/2021 00:00:00,"248258",1528.02,"HA0013","HARLOW AGRICULTURAL MERCHANTS",26/4/2021 00:00:00,30/5/2021 00:00:00,"P02-2022"
"CEO","RESIDENTIAL ACCOMMODATION","EXPENDITURE FROM REPAIRS FUND","EXPENDITURE FROM REPAIRS FUND","2240","P110727-SERVICE-Window Repairs at 9 Picketts Lock",4/5/2021 00:00:00,"247329",525,"WI0334","WINDOW REPAIR ENFIELD LTD",26/4/2021 00:00:00,30/5/2021 00:00:00,"P02-2022"
"CEO","COMMERCIAL ACCOMMODATION","PREMISES RELATED EXPENDITURE","EAST HALE ALLOTMENTS","2261","P112083-SERVICE-Allotment Bins",17/5/2021 00:00:00,"247649",136.38,"CL0037","VEOLIA ES (UK) LTD",26/4/2021 00:00:00,30/5/2021 00:00:00,"P02-2022"
"P&V","MYDDELTON HOUSE","PREMISES RELATED EXPENDITURE","ENERGY COSTS (ELECTRICITY)","2332","KENT COUNTY COUNCIL (KCS)",25/5/2021 00:00:00,"248121",1080.64,"KE0007","KENT COUNTY COUNCIL (KCS)",26/4/2021 00:00:00,30/5/2021 00:00:00,"P02-2022"
"CEO","COMMERCIAL ACCOMMODATION","PREMISES RELATED EXPENDITURE","ENERGY COSTS (ELECTRICITY)","2332","E-ON",24/5/2021 00:00:00,"245054",353.28,"PO0025","E-ON",26/4/2021 00:00:00,30/5/2021 00:00:00,"P02-2022"
"CEO","COMMERCIAL ACCOMMODATION","PREMISES RELATED EXPENDITURE","ENERGY COSTS (ELECTRICITY)","2332","P111958-SERVICE-LV Forge Gas",10/5/2021 00:00:00,"247209",19.61,"CA0006","CALOR GAS LIMITED",26/4/2021 00:00:00,30/5/2021 00:00:00,"P02-2022"
"CEO","COMMERCIAL ACCOMMODATION","PREMISES RELATED EXPENDITURE","ENERGY COSTS (ELECTRICITY)","2332","E-ON",10/5/2021 00:00:00,"247461",-27.25,"PO0025","E-ON",26/4/2021 00:00:00,30/5/2021 00:00:00,"P02-2022"
"CEO","COMMERCIAL ACCOMMODATION","PREMISES RELATED EXPENDITURE","ENERGY COSTS (ELECTRICITY)","2332","E-ON",10/5/2021 00:00:00,"247461",24.78,"PO0025","E-ON",26/4/2021 00:00:00,30/5/2021 00:00:00,"P02-2022"
"CEO","COMMERCIAL ACCOMMODATION","PREMISES RELATED EXPENDITURE","ENERGY COSTS (ELECTRICITY)","2332","E-ON",10/5/2021 00:00:00,"247461",10,"PO0025","E-ON",26/4/2021 00:00:00,30/5/2021 00:00:00,"P02-2022"
"CEO","COMMERCIAL ACCOMMODATION","PREMISES RELATED EXPENDITURE","ENERGY COSTS (ELECTRICITY)","2332","E-ON",17/5/2021 00:00:00,"247660",16.32,"PO0025","E-ON",26/4/2021 00:00:00,30/5/2021 00:00:00,"P02-2022"
"CEO","COMMERCIAL ACCOMMODATION","PREMISES RELATED EXPENDITURE","ENERGY COSTS (ELECTRICITY)","2332","E-ON",17/5/2021 00:00:00,"247660",40,"PO0025","E-ON",26/4/2021 00:00:00,30/5/2021 00:00:00,"P02-2022"
"CEO","COMMERCIAL ACCOMMODATION","PREMISES RELATED EXPENDITURE","ENERGY COSTS (ELECTRICITY)","2332","E-ON",17/5/2021 00:00:00,"247690",14.4,"PO0025","E-ON",26/4/2021 00:00:00,30/5/2021 00:00:00,"P02-2022"
"CEO","COMMERCIAL ACCOMMODATION","PREMISES RELATED EXPENDITURE","ENERGY COSTS (ELECTRICITY)","2332","E-ON",17/5/2021 00:00:00,"247691",13.44,"PO0025","E-ON",26/4/2021 00:00:00,30/5/2021 00:00:00,"P02-2022"
"CEO","COMMERCIAL ACCOMMODATION","PREMISES RELATED EXPENDITURE","ENERGY COSTS (ELECTRICITY)","2332","E-ON NEXT ENERGY LTD",17/5/2021 00:00:00,"247712",32.89,"EO0398","E-ON NEXT ENERGY LTD",26/4/2021 00:00:00,30/5/2021 00:00:00,"P02-2022"
,"LEE VALLEY MARINA SPRINGFIELD","PREMISES RELATED EXPENDITURE","ENERGY COSTS (ELECTRICITY)","2332","KENT COUNTY COUNCIL (KCS)",24/5/2021 00:00:00,"248102",3582.07,"KE0007","KENT COUNTY COUNCIL (KCS)",26/4/2021 00:00:00,30/5/2021 00:00:00,"P02-2022"
,"LEE VALLEY CAMPSITE","PREMISES RELATED EXPENDITURE","ENERGY COSTS (ELECTRICITY)","2332","KENT COUNTY COUNCIL (KCS)",24/5/2021 00:00:00,"247879",3107.46,"KE0007","KENT COUNTY COUNCIL (KCS)",26/4/2021 00:00:00,30/5/2021 00:00:00,"P02-2022"
,"LEE VALLEY CAMPSITE","PREMISES RELATED EXPENDITURE","ENERGY COSTS (ELECTRICITY)","2332","KENT COUNTY COUNCIL (KCS)",24/5/2021 00:00:00,"247880",2454.3,"KE0007","KENT COUNTY COUNCIL (KCS)",26/4/2021 00:00:00,30/5/2021 00:00:00,"P02-2022"
"P&V","EAST INDIA DOCK AND BOW CREEK","PREMISES RELATED EXPENDITURE","ENERGY COSTS (ELECTRICITY)","2332","KENT COUNTY COUNCIL (KCS)",24/5/2021 00:00:00,"248119",74.34,"KE0007","KENT COUNTY COUNCIL (KCS)",26/4/2021 00:00:00,30/5/2021 00:00:00,"P02-2022"
"P&V","GUNPOWDER PARK","PREMISES RELATED EXPENDITURE","ENERGY COSTS (ELECTRICITY)","2332","KENT COUNTY COUNCIL (KCS)",24/5/2021 00:00:00,"248120",294.67,"KE0007","KENT COUNTY COUNCIL (KCS)",26/4/2021 00:00:00,30/5/2021 00:00:00,"P02-2022"
"P&V","CAR PARK INCOME","PREMISES RELATED EXPENDITURE","ENERGY COSTS (ELECTRICITY)","2332","NPOWER LIMITED",4/5/2021 00:00:00,"246949",43.36,"NP0123","NPOWER LIMITED",26/4/2021 00:00:00,30/5/2021 00:00:00,"P02-2022"
"P&V","CAR PARK INCOME","PREMISES RELATED EXPENDITURE","ENERGY COSTS (ELECTRICITY)","2332","NPOWER LIMITED",4/5/2021 00:00:00,"246950",43.36,"NP0123","NPOWER LIMITED",26/4/2021 00:00:00,30/5/2021 00:00:00,"P02-2022"
,"LEE VALLEY VELOPARK","PREMISES RELATED EXPENDITURE","ENERGY COSTS (ELECTRICITY)","2332","KENT COUNTY COUNCIL (KCS)",4/5/2021 00:00:00,"247229",107.7,"KE0007","KENT COUNTY COUNCIL (KCS)",26/4/2021 00:00:00,30/5/2021 00:00:00,"P02-2022"
,"LEE VALLEY VELOPARK","PREMISES RELATED EXPENDITURE","ENERGY COSTS (ELECTRICITY)","2332","KENT COUNTY COUNCIL (KCS)",4/5/2021 00:00:00,"247230",109.53,"KE0007","KENT COUNTY COUNCIL (KCS)",26/4/2021 00:00:00,30/5/2021 00:00:00,"P02-2022"
,"LEE VALLEY VELOPARK","PREMISES RELATED EXPENDITURE","ENERGY COSTS (ELECTRICITY)","2332","KENT COUNTY COUNCIL (KCS)",4/5/2021 00:00:00,"247231",92.1,"KE0007","KENT COUNTY COUNCIL (KCS)",26/4/2021 00:00:00,30/5/2021 00:00:00,"P02-2022"
,"LEE VALLEY VELOPARK","PREMISES RELATED EXPENDITURE","ENERGY COSTS (ELECTRICITY)","2332","KENT COUNTY COUNCIL (KCS)",4/5/2021 00:00:00,"247232",81.56,"KE0007","KENT COUNTY COUNCIL (KCS)",26/4/2021 00:00:00,30/5/2021 00:00:00,"P02-2022"
,"LEE VALLEY VELOPARK","PREMISES RELATED EXPENDITURE","ENERGY COSTS (ELECTRICITY)","2332","KENT COUNTY COUNCIL (KCS)",4/5/2021 00:00:00,"247233",90.92,"KE0007","KENT COUNTY COUNCIL (KCS)",26/4/2021 00:00:00,30/5/2021 00:00:00,"P02-2022"
,"LEE VALLEY VELOPARK","PREMISES RELATED EXPENDITURE","ENERGY COSTS (ELECTRICITY)","2332","KENT COUNTY COUNCIL (KCS)",4/5/2021 00:00:00,"247234",82.46,"KE0007","KENT COUNTY COUNCIL (KCS)",26/4/2021 00:00:00,30/5/2021 00:00:00,"P02-2022"
,"LEE VALLEY VELOPARK","PREMISES RELATED EXPENDITURE","ENERGY COSTS (ELECTRICITY)","2332","P111858-SERVICE-Heating and cooling Oct-Mar 21",17/5/2021 00:00:00,"247435",40793.14,"LO0410","(MAIN) LONDON LEGACY DEVELOPMENT CORPORATION",26/4/2021 00:00:00,30/5/2021 00:00:00,"P02-2022"
,"LEE VALLEY VELOPARK","PREMISES RELATED EXPENDITURE","ENERGY COSTS (ELECTRICITY)","2332","KENT COUNTY COUNCIL (KCS)",17/5/2021 00:00:00,"247881",75.85,"KE0007","KENT COUNTY COUNCIL (KCS)",26/4/2021 00:00:00,30/5/2021 00:00:00,"P02-2022"
,"LEE VALLEY VELOPARK","PREMISES RELATED EXPENDITURE","ENERGY COSTS (ELECTRICITY)","2332","NPOWER LIMITED",30/5/2021 00:00:00,"248584",10774.23,"NP0123","NPOWER LIMITED",26/4/2021 00:00:00,30/5/2021 00:00:00,"P02-2022"
,"LV HOCKEY AND TENNIS CENTRE","PREMISES RELATED EXPENDITURE","ENERGY COSTS (ELECTRICITY)","2332","P111859-SERVICE-Heating and cooling Oct-Mar 21",17/5/2021 00:00:00,"247436",18605.62,"LO0410","(MAIN) LONDON LEGACY DEVELOPMENT CORPORATION",26/4/2021 00:00:00,30/5/2021 00:00:00,"P02-2022"
,"LV HOCKEY AND TENNIS CENTRE","PREMISES RELATED EXPENDITURE","ENERGY COSTS (ELECTRICITY)","2332","NPOWER LIMITED",30/5/2021 00:00:00,"248583",7836.08,"NP0123","NPOWER LIMITED",26/4/2021 00:00:00,30/5/2021 00:00:00,"P02-2022"
,"LEE VALLEY RIDING CENTRE","PREMISES RELATED EXPENDITURE","ENERGY COSTS (ELECTRICITY)","2332","EDF ENERGY 1 LIMITED",30/5/2021 00:00:00,"248561",69.01,"ED0077","EDF ENERGY 1 LIMITED",26/4/2021 00:00:00,30/5/2021 00:00:00,"P02-2022"
,"LEE VALLEY VELOPARK CATERING","PREMISES RELATED EXPENDITURE","ENERGY COSTS (ELECTRICITY)","2332","P112116-SERVICE-Suremix gas 60v",17/5/2021 00:00:00,"247516",51.3,"BO0015","BOC LTD",26/4/2021 00:00:00,30/5/2021 00:00:00,"P02-2022"
,"LV HOCKEY AND TENNIS CATERING","PREMISES RELATED EXPENDITURE","ENERGY COSTS (ELECTRICITY)","2332","P112117-SERVICE-Suremix gas 60v",17/5/2021 00:00:00,"247517",16.8,"BO0015","BOC LTD",26/4/2021 00:00:00,30/5/2021 00:00:00,"P02-2022"
,"LEE VALLEY ICE CENTRE","PREMISES RELATED EXPENDITURE","ENERGY COSTS (ELECTRICITY)","2332","NPOWER LIMITED",4/5/2021 00:00:00,"246980",10622.87,"NP0123","NPOWER LIMITED",26/4/2021 00:00:00,30/5/2021 00:00:00,"P02-2022"
"P&V","FORMER LV LIDO SITE","PREMISES RELATED EXPENDITURE","ENERGY COSTS (ELECTRICITY)","2332","KENT COUNTY COUNCIL (KCS)",24/5/2021 00:00:00,"248157",33.91,"KE0007","KENT COUNTY COUNCIL (KCS)",26/4/2021 00:00:00,30/5/2021 00:00:00,"P02-2022"
,"LEE VALLEY WHITE WATER CENTRE","PREMISES RELATED EXPENDITURE","ENERGY COSTS (ELECTRICITY)","2332","BRITISH GAS BUSINESS",19/5/2021 00:00:00,"247552",144.38,"BR0030","BRITISH GAS BUSINESS",26/4/2021 00:00:00,30/5/2021 00:00:00,"P02-2022"
,"LEE VALLEY WHITE WATER CENTRE","PREMISES RELATED EXPENDITURE","ENERGY COSTS (ELECTRICITY)","2332","NPOWER LIMITED",30/5/2021 00:00:00,"248574",12461.67,"NP0123","NPOWER LIMITED",26/4/2021 00:00:00,30/5/2021 00:00:00,"P02-2022"
,"LEE VALLEY WHITE WATER CENTRE","PREMISES RELATED EXPENDITURE","ENERGY COSTS (ELECTRICITY)","2332","NPOWER LIMITED",30/5/2021 00:00:00,"248575",13712.2,"NP0123","NPOWER LIMITED",26/4/2021 00:00:00,30/5/2021 00:00:00,"P02-2022"
,"LEE VALLEY WHITE WATER CENTRE","PREMISES RELATED EXPENDITURE","ENERGY COSTS (ELECTRICITY)","2332","NPOWER LIMITED",30/5/2021 00:00:00,"248576",11844.75,"NP0123","NPOWER LIMITED",26/4/2021 00:00:00,30/5/2021 00:00:00,"P02-2022"
,"LEE VALLEY WHITE WATER CENTRE","PREMISES RELATED EXPENDITURE","ENERGY COSTS (ELECTRICITY)","2332","NPOWER LIMITED",30/5/2021 00:00:00,"248577",7578.39,"NP0123","NPOWER LIMITED",26/4/2021 00:00:00,30/5/2021 00:00:00,"P02-2022"
,"LEE VALLEY WHITE WATER CENTRE","PREMISES RELATED EXPENDITURE","ENERGY COSTS (ELECTRICITY)","2332","NPOWER LIMITED",30/5/2021 00:00:00,"248578",148.78,"NP0123","NPOWER LIMITED",26/4/2021 00:00:00,30/5/2021 00:00:00,"P02-2022"
,"LEE VALLEY WHITE WATER CENTRE","PREMISES RELATED EXPENDITURE","ENERGY COSTS (ELECTRICITY)","2332","NPOWER LIMITED",30/5/2021 00:00:00,"248579",342.49,"NP0123","NPOWER LIMITED",26/4/2021 00:00:00,30/5/2021 00:00:00,"P02-2022"
,"LEE VALLEY MARINA SPRINGFIELD","PREMISES RELATED EXPENDITURE","ENERGY COSTS (GAS)","2333","KENT COUNTY COUNCIL (KCS)",17/5/2021 00:00:00,"247883",400.99,"KE0007","KENT COUNTY COUNCIL (KCS)",26/4/2021 00:00:00,30/5/2021 00:00:00,"P02-2022"
,"LEE VALLEY MARINA STANSTEAD","PREMISES RELATED EXPENDITURE","ENERGY COSTS (GAS)","2333","KENT COUNTY COUNCIL (KCS)",17/5/2021 00:00:00,"247996",276.23,"KE0007","KENT COUNTY COUNCIL (KCS)",26/4/2021 00:00:00,30/5/2021 00:00:00,"P02-2022"
,"LEE VALLEY MARINA STANSTEAD","PREMISES RELATED EXPENDITURE","ENERGY COSTS (GAS)","2333","KENT COUNTY COUNCIL (KCS)",17/5/2021 00:00:00,"247997",112.48,"KE0007","KENT COUNTY COUNCIL (KCS)",26/4/2021 00:00:00,30/5/2021 00:00:00,"P02-2022"
,"LEE VALLEY WATERWORKS CENTRE","PREMISES RELATED EXPENDITURE","ENERGY COSTS (GAS)","2333","KENT COUNTY COUNCIL (KCS)",19/5/2021 00:00:00,"247885",334.02,"KE0007","KENT COUNTY COUNCIL (KCS)",26/4/2021 00:00:00,30/5/2021 00:00:00,"P02-2022"
,"LEE VALLEY CAMPSITE","PREMISES RELATED EXPENDITURE","ENERGY COSTS (GAS)","2333","KENT COUNTY COUNCIL (KCS)",24/5/2021 00:00:00,"247999",465.06,"KE0007","KENT COUNTY COUNCIL (KCS)",26/4/2021 00:00:00,30/5/2021 00:00:00,"P02-2022"
,"LEE VALLEY CARAVAN PARK","PREMISES RELATED EXPENDITURE","ENERGY COSTS (GAS)","2333","P111922-SERVICE-Avanti Gas standing charge",4/5/2021 00:00:00,"247252",60,"AV0327","AVANTI GAS LIMITED",26/4/2021 00:00:00,30/5/2021 00:00:00,"P02-2022"
,"LEE VALLEY CARAVAN PARK","PREMISES RELATED EXPENDITURE","ENERGY COSTS (GAS)","2333","P111922-SERVICE-Avanti Gas standing charge",4/5/2021 00:00:00,"247253",60,"AV0327","AVANTI GAS LIMITED",26/4/2021 00:00:00,30/5/2021 00:00:00,"P02-2022"
,"LEE VALLEY CARAVAN PARK","PREMISES RELATED EXPENDITURE","ENERGY COSTS (GAS)","2333","P111922-SERVICE-Avanti Gas standing charge",4/5/2021 00:00:00,"247254",60,"AV0327","AVANTI GAS LIMITED",26/4/2021 00:00:00,30/5/2021 00:00:00,"P02-2022"
,"LEE VALLEY CARAVAN PARK","PREMISES RELATED EXPENDITURE","ENERGY COSTS (GAS)","2333","P111922-SERVICE-Avanti Gas standing charge",4/5/2021 00:00:00,"247255",60,"AV0327","AVANTI GAS LIMITED",26/4/2021 00:00:00,30/5/2021 00:00:00,"P02-2022"
,"LEE VALLEY CARAVAN PARK","PREMISES RELATED EXPENDITURE","ENERGY COSTS (GAS)","2333","P111922-SERVICE-Avanti Gas standing charge",4/5/2021 00:00:00,"247256",60,"AV0327","AVANTI GAS LIMITED",26/4/2021 00:00:00,30/5/2021 00:00:00,"P02-2022"
,"LEE VALLEY CARAVAN PARK","PREMISES RELATED EXPENDITURE","ENERGY COSTS (GAS)","2333","P111922-SERVICE-Avanti Gas standing charge",10/5/2021 00:00:00,"247257",60,"AV0327","AVANTI GAS LIMITED",26/4/2021 00:00:00,30/5/2021 00:00:00,"P02-2022"
"P&V","MYDDELTON HOUSE GARDENS","PREMISES RELATED EXPENDITURE","ENERGY COSTS (GAS)","2333","KENT COUNTY COUNCIL (KCS)",25/5/2021 00:00:00,"247882",953.31,"KE0007","KENT COUNTY COUNCIL (KCS)",26/4/2021 00:00:00,30/5/2021 00:00:00,"P02-2022"
"P&V","GUNPOWDER PARK","PREMISES RELATED EXPENDITURE","ENERGY COSTS (GAS)","2333","KENT COUNTY COUNCIL (KCS)",17/5/2021 00:00:00,"247998",68.52,"KE0007","KENT COUNTY COUNCIL (KCS)",26/4/2021 00:00:00,30/5/2021 00:00:00,"P02-2022"
,"LEE VALLEY RIDING CENTRE","PREMISES RELATED EXPENDITURE","ENERGY COSTS (GAS)","2333","BRITISH GAS BUSINESS",30/5/2021 00:00:00,"248572",103.89,"BR0029","BRITISH GAS BUSINESS",26/4/2021 00:00:00,30/5/2021 00:00:00,"P02-2022"
,"LV LEISURE CENTRE CAMPSITE","PREMISES RELATED EXPENDITURE","ENERGY COSTS (GAS)","2333","KENT COUNTY COUNCIL (KCS)",24/5/2021 00:00:00,"247884",1463.66,"KE0007","KENT COUNTY COUNCIL (KCS)",26/4/2021 00:00:00,30/5/2021 00:00:00,"P02-2022"
,"LEE VALLEY WHITE WATER CENTRE","PREMISES RELATED EXPENDITURE","ENERGY COSTS (GAS)","2333","BRITISH GAS BUSINESS",19/5/2021 00:00:00,"247552",27.87,"BR0030","BRITISH GAS BUSINESS",26/4/2021 00:00:00,30/5/2021 00:00:00,"P02-2022"
"P&V","MYDDELTON HOUSE","PREMISES RELATED EXPENDITURE","ENERGY COSTS (BIOMASS FUEL)","2334","P111879-SERVICE-Wood Pellets",4/5/2021 00:00:00,"247314",1134.2,"BA0631","BALCAS TIMBER LTD/BALCAS ENERGY",26/4/2021 00:00:00,30/5/2021 00:00:00,"P02-2022"
,"LEE VALLEY MARINA SPRINGFIELD","PREMISES RELATED EXPENDITURE","RENT (EXTERNAL)","2442","THAMES WATER UTILITIES LIMITED",26/5/2021 00:00:00,"248075",2618.75,"TH0020","THAMES WATER UTILITIES LIMITED-  SAVILLS",26/4/2021 00:00:00,30/5/2021 00:00:00,"P02-2022"
,"LEE VALLEY MARINA STANSTEAD","PREMISES RELATED EXPENDITURE","RENT (EXTERNAL)","2442","CANAL & RIVER TRUST",25/5/2021 00:00:00,"248266",11875,"BR0036","CANAL & RIVER TRUST",26/4/2021 00:00:00,30/5/2021 00:00:00,"P02-2022"
"P&V","KING GEORGE RESERVOIR SOUTH","PREMISES RELATED EXPENDITURE","RENT (EXTERNAL)","2442","THAMES WATER UTILITIES LIMITED",10/5/2021 00:00:00,"247213",3375,"TH0020","THAMES WATER UTILITIES LIMITED-  SAVILLS",26/4/2021 00:00:00,30/5/2021 00:00:00,"P02-2022"
"P&V","NORTH AREA RANGERS","PREMISES RELATED EXPENDITURE","RENT (EXTERNAL)","2442","NETWORK RAIL",24/5/2021 00:00:00,"248076",100,"RA0005","NETWORK RAIL",26/4/2021 00:00:00,30/5/2021 00:00:00,"P02-2022"
"P&V","NORTH AREA RANGERS","PREMISES RELATED EXPENDITURE","RENT (EXTERNAL)","2442","ROYDON PARISH COUNCIL",30/5/2021 00:00:00,"248535",1077.48,"RO0025","ROYDON PARISH COUNCIL",26/4/2021 00:00:00,30/5/2021 00:00:00,"P02-2022"
,"LEE VALLEY MARINA STANSTEAD","PREMISES RELATED EXPENDITURE","BUSINESS RATES","2444","EAST HERTS COUNCIL",11/5/2021 00:00:00,"245826",3143.7,"EA0086","EAST HERTS COUNCIL",26/4/2021 00:00:00,30/5/2021 00:00:00,"P02-2022"
,"LEE VALLEY MARINA STANSTEAD","PREMISES RELATED EXPENDITURE","BUSINESS RATES","2444","EAST HERTS COUNCIL",11/5/2021 00:00:00,"245827",21082.75,"EA0086","EAST HERTS COUNCIL",26/4/2021 00:00:00,30/5/2021 00:00:00,"P02-2022"
"CEO","RESIDENTIAL ACCOMMODATION","PREMISES RELATED EXPENDITURE","COUNCIL TAX","2445","BOROUGH OF BROXBOURNE",12/5/2021 00:00:00,"246610",499.66,"BR0016","BOROUGH OF BROXBOURNE",26/4/2021 00:00:00,30/5/2021 00:00:00,"P02-2022"
"CEO","RESIDENTIAL ACCOMMODATION","PREMISES RELATED EXPENDITURE","COUNCIL TAX","2445","BOROUGH OF BROXBOURNE",12/5/2021 00:00:00,"246611",2139.43,"BR0016","BOROUGH OF BROXBOURNE",26/4/2021 00:00:00,30/5/2021 00:00:00,"P02-2022"
"CEO","RESIDENTIAL ACCOMMODATION","PREMISES RELATED EXPENDITURE","COUNCIL TAX","2445","BOROUGH OF BROXBOURNE",12/5/2021 00:00:00,"246612",2232.84,"BR0016","BOROUGH OF BROXBOURNE",26/4/2021 00:00:00,30/5/2021 00:00:00,"P02-2022"
"CEO","RESIDENTIAL ACCOMMODATION","PREMISES RELATED EXPENDITURE","PROPERTY MANAGEMT/LETTING FEES","2447","P111957-SERVICE-Railway Cottage 6 Month Management Fee",11/5/2021 00:00:00,"247058",750,"WA0315","PAUL WALLACE LETTINGS",26/4/2021 00:00:00,30/5/2021 00:00:00,"P02-2022"
"CEO","RESIDENTIAL ACCOMMODATION","PREMISES RELATED EXPENDITURE","PROPERTY MANAGEMT/LETTING FEES","2447","P112079-SERVICE-Springfield Bungalow - Landlord Fees & Warran",17/5/2021 00:00:00,"247163",2034,"CA0165","CASTLES",26/4/2021 00:00:00,30/5/2021 00:00:00,"P02-2022"
"CEO","RESIDENTIAL ACCOMMODATION","PREMISES RELATED EXPENDITURE","PROPERTY MANAGEMT/LETTING FEES","2447","P112079-SERVICE-Springfield Bungalow - Landlord Fees & Warran",17/5/2021 00:00:00,"247164",169.5,"CA0165","CASTLES",26/4/2021 00:00:00,30/5/2021 00:00:00,"P02-2022"
"CEO","RESIDENTIAL ACCOMMODATION","PREMISES RELATED EXPENDITURE","PROPERTY MANAGEMT/LETTING FEES","2447","P112079-SERVICE-Springfield Bungalow - Landlord Fees & Warran",17/5/2021 00:00:00,"247165",28.81,"CA0165","CASTLES",26/4/2021 00:00:00,30/5/2021 00:00:00,"P02-2022"
"CEO","RESIDENTIAL ACCOMMODATION","PREMISES RELATED EXPENDITURE","PROPERTY MANAGEMT/LETTING FEES","2447","P112079-SERVICE-Springfield Bungalow - Landlord Fees & Warran",25/5/2021 00:00:00,"247166",437.31,"CA0165","CASTLES",26/4/2021 00:00:00,30/5/2021 00:00:00,"P02-2022"
"CEO","RESIDENTIAL ACCOMMODATION","PREMISES RELATED EXPENDITURE","PROPERTY MANAGEMT/LETTING FEES","2447","P111965-SERVICE-Aquaside Landlord Fees",17/5/2021 00:00:00,"247452",1815,"CA0165","CASTLES",26/4/2021 00:00:00,30/5/2021 00:00:00,"P02-2022"
"CEO","RESIDENTIAL ACCOMMODATION","PREMISES RELATED EXPENDITURE","PROPERTY MANAGEMT/LETTING FEES","2447","P111966-SERVICE-Aquaside Landlord Warranty",10/5/2021 00:00:00,"247453",199.65,"CA0165","CASTLES",26/4/2021 00:00:00,30/5/2021 00:00:00,"P02-2022"
,"LEE VALLEY MARINA STANSTEAD","PREMISES RELATED EXPENDITURE","WATER","2555","CASTLE WATER LIMITED",10/5/2021 00:00:00,"247497",121.19,"CA0625","CASTLE WATER LIMITED",26/4/2021 00:00:00,30/5/2021 00:00:00,"P02-2022"
,"LEE VALLEY MARINA STANSTEAD","PREMISES RELATED EXPENDITURE","WATER","2555","CASTLE WATER LIMITED",10/5/2021 00:00:00,"247497",126.8,"CA0625","CASTLE WATER LIMITED",26/4/2021 00:00:00,30/5/2021 00:00:00,"P02-2022"
"P&V","LEE VALLEY FARM HOLYFIELDHALL","PREMISES RELATED EXPENDITURE","WATER","2555","CASTLE WATER LIMITED",17/5/2021 00:00:00,"247693",3169.97,"CA0625","CASTLE WATER LIMITED",26/4/2021 00:00:00,30/5/2021 00:00:00,"P02-2022"
,"LEE VALLEY CAMPSITE","PREMISES RELATED EXPENDITURE","WATER","2555","CASTLE WATER LIMITED",19/5/2021 00:00:00,"247692",1399.8,"CA0625","CASTLE WATER LIMITED",26/4/2021 00:00:00,30/5/2021 00:00:00,"P02-2022"
"P&V","EAST INDIA DOCK AND BOW CREEK","PREMISES RELATED EXPENDITURE","WATER","2555","CASTLE WATER LIMITED",24/5/2021 00:00:00,"248074",12.91,"CA0625","CASTLE WATER LIMITED",26/4/2021 00:00:00,30/5/2021 00:00:00,"P02-2022"
,"LEE VALLEY VELOPARK","PREMISES RELATED EXPENDITURE","WATER","2555","CASTLE WATER LIMITED",30/5/2021 00:00:00,"248332",873.93,"CA0625","CASTLE WATER LIMITED",26/4/2021 00:00:00,30/5/2021 00:00:00,"P02-2022"
,"LEE VALLEY VELOPARK","PREMISES RELATED EXPENDITURE","WATER","2555","CASTLE WATER LIMITED",30/5/2021 00:00:00,"248332",2070.71,"CA0625","CASTLE WATER LIMITED",26/4/2021 00:00:00,30/5/2021 00:00:00,"P02-2022"
,"LEE VALLEY ICE CENTRE","PREMISES RELATED EXPENDITURE","WATER","2555","CASTLE WATER LIMITED",30/5/2021 00:00:00,"248246",-5119.75,"CA0625","CASTLE WATER LIMITED",26/4/2021 00:00:00,30/5/2021 00:00:00,"P02-2022"
,"LV LEISURE CENTRE CAMPSITE","PREMISES RELATED EXPENDITURE","WATER","2555","CASTLE WATER LIMITED",5/5/2021 00:00:00,"247459",104.88,"CA0625","CASTLE WATER LIMITED",26/4/2021 00:00:00,30/5/2021 00:00:00,"P02-2022"
,"LV LEISURE CENTRE CAMPSITE","PREMISES RELATED EXPENDITURE","WATER","2555","CASTLE WATER LIMITED",5/5/2021 00:00:00,"247459",407.31,"CA0625","CASTLE WATER LIMITED",26/4/2021 00:00:00,30/5/2021 00:00:00,"P02-2022"
,"LEE VALLEY WHITE WATER CENTRE","PREMISES RELATED EXPENDITURE","WATER","2555","CASTLE WATER LIMITED",24/5/2021 00:00:00,"248245",2793.74,"CA0625","CASTLE WATER LIMITED",26/4/2021 00:00:00,30/5/2021 00:00:00,"P02-2022"
,"LEE VALLEY WHITE WATER CENTRE","PREMISES RELATED EXPENDITURE","WATER","2555","CASTLE WATER LIMITED",24/5/2021 00:00:00,"248245",2116.79,"CA0625","CASTLE WATER LIMITED",26/4/2021 00:00:00,30/5/2021 00:00:00,"P02-2022"
,"LEE VALLEY WHITE WATER CENTRE","PREMISES RELATED EXPENDITURE","WATER","2555","CASTLE WATER LIMITED",26/5/2021 00:00:00,"248247",45.51,"CA0625","CASTLE WATER LIMITED",26/4/2021 00:00:00,30/5/2021 00:00:00,"P02-2022"
,"LEE VALLEY WHITE WATER CENTRE","PREMISES RELATED EXPENDITURE","WATER","2555","CASTLE WATER LIMITED",26/5/2021 00:00:00,"248247",71.67,"CA0625","CASTLE WATER LIMITED",26/4/2021 00:00:00,30/5/2021 00:00:00,"P02-2022"
,"LEE VALLEY MARINA SPRINGFIELD","PREMISES RELATED EXPENDITURE","CLEANING & DOMESTIC SUPPLIES","2666","P112289-SERVICE-Sanitary Disposal/Dust Mats/Eco Shield/Air F",30/5/2021 00:00:00,"245923",179.8,"PE0015","PHS GROUP PLC",26/4/2021 00:00:00,30/5/2021 00:00:00,"P02-2022"
,"LEE VALLEY MARINA SPRINGFIELD","PREMISES RELATED EXPENDITURE","CLEANING & DOMESTIC SUPPLIES","2666","P112053-SERVICE-PHS Rental & Disposal 25-5-21 to 24-6-21",11/5/2021 00:00:00,"247473",179.8,"PE0015","PHS GROUP PLC",26/4/2021 00:00:00,30/5/2021 00:00:00,"P02-2022"
,"LEE VALLEY MARINA SPRINGFIELD","PREMISES RELATED EXPENDITURE","CLEANING & DOMESTIC SUPPLIES","2666","P112052-SERVICE-April 2021 Cleaning",11/5/2021 00:00:00,"247501",912.33,"MA0015","MAYFAIR CLEANING COMPANY LIMITED",26/4/2021 00:00:00,30/5/2021 00:00:00,"P02-2022"
,"LEE VALLEY MARINA SPRINGFIELD","PREMISES RELATED EXPENDITURE","CLEANING & DOMESTIC SUPPLIES","2666","P112289-SERVICE-Sanitary Disposal/Dust Mats/Eco Shield/Air F",30/5/2021 00:00:00,"248294",179.8,"PE0015","PHS GROUP PLC",26/4/2021 00:00:00,30/5/2021 00:00:00,"P02-2022"
,"LEE VALLEY MARINA SPRINGFIELD","PREMISES RELATED EXPENDITURE","CLEANING & DOMESTIC SUPPLIES","2666","P112164-SERVICE-To supply items as requested",30/5/2021 00:00:00,"248476",153.29,"HY0043","HYGIENE SYSTEMS LTD",26/4/2021 00:00:00,30/5/2021 00:00:00,"P02-2022"
,"LEE VALLEY MARINA SPRINGFIELD","PREMISES RELATED EXPENDITURE","CLEANING & DOMESTIC SUPPLIES","2666","P112325-SERVICE-Mat 2021 Site Cleaning",30/5/2021 00:00:00,"248551",912.33,"MA0015","MAYFAIR CLEANING COMPANY LIMITED",26/4/2021 00:00:00,30/5/2021 00:00:00,"P02-2022"
,"LEE VALLEY CAMPSITE","PREMISES RELATED EXPENDITURE","CLEANING & DOMESTIC SUPPLIES","2666","P111562-SERVICE-Toilet rolls",4/5/2021 00:00:00,"247010",31.56,"HY0043","HYGIENE SYSTEMS LTD",26/4/2021 00:00:00,30/5/2021 00:00:00,"P02-2022"
,"LEE VALLEY CAMPSITE","PREMISES RELATED EXPENDITURE","CLEANING & DOMESTIC SUPPLIES","2666","P112092-SERVICE-Toilet facilities - May 21",24/5/2021 00:00:00,"247051",82.09,"IN0012","INITIAL WASHROOM HYGIENE",26/4/2021 00:00:00,30/5/2021 00:00:00,"P02-2022"
,"LEE VALLEY CAMPSITE","PREMISES RELATED EXPENDITURE","CLEANING & DOMESTIC SUPPLIES","2666","P111751-SERVICE-Cleaning supplies",4/5/2021 00:00:00,"247237",9,"HY0043","HYGIENE SYSTEMS LTD",26/4/2021 00:00:00,30/5/2021 00:00:00,"P02-2022"
,"LEE VALLEY CAMPSITE","PREMISES RELATED EXPENDITURE","CLEANING & DOMESTIC SUPPLIES","2666","P111494-SERVICE-Cleaning supplies",4/5/2021 00:00:00,"247441",37.6,"HY0043","HYGIENE SYSTEMS LTD",26/4/2021 00:00:00,30/5/2021 00:00:00,"P02-2022"
,"LEE VALLEY CAMPSITE","PREMISES RELATED EXPENDITURE","CLEANING & DOMESTIC SUPPLIES","2666","P112335-SERVICE-Monthly Clean May-Jun 21",30/5/2021 00:00:00,"248334",82.09,"IN0012","INITIAL WASHROOM HYGIENE",26/4/2021 00:00:00,30/5/2021 00:00:00,"P02-2022"
,"LEE VALLEY CARAVAN PARK","PREMISES RELATED EXPENDITURE","CLEANING & DOMESTIC SUPPLIES","2666","P111923-SERVICE-johnsons linen hirer",4/5/2021 00:00:00,"247415",358.04,"JO0168","JOHNSON STALBRIDGE LINEN SERVICES",26/4/2021 00:00:00,30/5/2021 00:00:00,"P02-2022"
,"LEE VALLEY CARAVAN PARK","PREMISES RELATED EXPENDITURE","CLEANING & DOMESTIC SUPPLIES","2666","P109951-SERVICE-HYGEINE SYSTEMS",4/5/2021 00:00:00,"247442",323.24,"HY0043","HYGIENE SYSTEMS LTD",26/4/2021 00:00:00,30/5/2021 00:00:00,"P02-2022"
,"LEE VALLEY VELOPARK","PREMISES RELATED EXPENDITURE","CLEANING & DOMESTIC SUPPLIES","2666","P111881-SERVICE-Cleaning materials",30/5/2021 00:00:00,"248569",416.19,"BR0025","BREEZE SOUTHERN LTD",26/4/2021 00:00:00,30/5/2021 00:00:00,"P02-2022"
,"LEE VALLEY RIDING CENTRE","PREMISES RELATED EXPENDITURE","CLEANING & DOMESTIC SUPPLIES","2666","P107357-SERVICE-SUPPLIES AND SERVICES FOR TOILETS",24/5/2021 00:00:00,"245797",85.13,"PE0015","PHS GROUP PLC",26/4/2021 00:00:00,30/5/2021 00:00:00,"P02-2022"
,"LEE VALLEY RIDING CENTRE","PREMISES RELATED EXPENDITURE","CLEANING & DOMESTIC SUPPLIES","2666","P107357-SERVICE-SUPPLIES AND SERVICES FOR TOILETS",6/5/2021 00:00:00,"245798",85.13,"PE0015","PHS GROUP PLC",26/4/2021 00:00:00,30/5/2021 00:00:00,"P02-2022"
,"LEE VALLEY RIDING CENTRE","PREMISES RELATED EXPENDITURE","CLEANING & DOMESTIC SUPPLIES","2666","P107357-SERVICE-SUPPLIES AND SERVICES FOR TOILETS",6/5/2021 00:00:00,"246204",91.17,"PE0015","PHS GROUP PLC",26/4/2021 00:00:00,30/5/2021 00:00:00,"P02-2022"
,"LV LEISURE CENTRE CAMPSITE","PREMISES RELATED EXPENDITURE","CLEANING & DOMESTIC SUPPLIES","2666","P112256-SERVICE-cleaning supplies",26/5/2021 00:00:00,"247788",252.08,"HY0043","HYGIENE SYSTEMS LTD",26/4/2021 00:00:00,30/5/2021 00:00:00,"P02-2022"
,"LV LEISURE CENTRE CAMPSITE","PREMISES RELATED EXPENDITURE","CLEANING & DOMESTIC SUPPLIES","2666","P112244-SERVICE-CLEANING MATERIALS",30/5/2021 00:00:00,"248536",151.25,"HY0043","HYGIENE SYSTEMS LTD",26/4/2021 00:00:00,30/5/2021 00:00:00,"P02-2022"
,"LEE VALLEY ATHLETICS CENTRE","PREMISES RELATED EXPENDITURE","CLEANING & DOMESTIC SUPPLIES","2666","P111187-SERVICE-LVAC CLEANING PRODUCTS",4/5/2021 00:00:00,"247011",6.51,"HY0043","HYGIENE SYSTEMS LTD",26/4/2021 00:00:00,30/5/2021 00:00:00,"P02-2022"
,"LEE VALLEY ATHLETICS CENTRE","PREMISES RELATED EXPENDITURE","CLEANING & DOMESTIC SUPPLIES","2666","P111848-SERVICE-LVAC CLEANING PRODUCTS",10/5/2021 00:00:00,"247672",132.36,"HY0043","HYGIENE SYSTEMS LTD",26/4/2021 00:00:00,30/5/2021 00:00:00,"P02-2022"
,"LEE VALLEY WHITE WATER CENTRE","PREMISES RELATED EXPENDITURE","CLEANING & DOMESTIC SUPPLIES","2666","P111788-SERVICE-Cleaning supplies as per online order",5/5/2021 00:00:00,"247312",129.7,"SU0595","SUMMIT HYGIENE LTD",26/4/2021 00:00:00,30/5/2021 00:00:00,"P02-2022"
,"LEE VALLEY WHITE WATER CENTRE","PREMISES RELATED EXPENDITURE","CLEANING & DOMESTIC SUPPLIES","2666","P111506-SERVICE-Cleaning supplies as per order",10/5/2021 00:00:00,"247738",3.77,"SU0595","SUMMIT HYGIENE LTD",26/4/2021 00:00:00,30/5/2021 00:00:00,"P02-2022"
,"LEE VALLEY WHITE WATER CENTRE","PREMISES RELATED EXPENDITURE","CLEANING & DOMESTIC SUPPLIES","2666","P111952-SERVICE-Cleaning supplies - online order",11/5/2021 00:00:00,"247739",106.86,"SU0595","SUMMIT HYGIENE LTD",26/4/2021 00:00:00,30/5/2021 00:00:00,"P02-2022"
,"LEE VALLEY WHITE WATER CENTRE","PREMISES RELATED EXPENDITURE","CLEANING & DOMESTIC SUPPLIES","2666","P112068-SERVICE-Anti bac wipes",18/5/2021 00:00:00,"247834",20.79,"AM0406","AMAZON PAYMENTS UK LIMITED",26/4/2021 00:00:00,30/5/2021 00:00:00,"P02-2022"
,"LEE VALLEY WHITE WATER CENTRE","PREMISES RELATED EXPENDITURE","CLEANING & DOMESTIC SUPPLIES","2666","P112236-SERVICE-Online order",30/5/2021 00:00:00,"248525",296.49,"SU0595","SUMMIT HYGIENE LTD",26/4/2021 00:00:00,30/5/2021 00:00:00,"P02-2022"
"P&V","LEE VALLEY FARM HOLYFIELDHALL","TRANSPORT RELATED EXPENDITURE","TRANSPORT RUNNING EXPENSES","3333","P112032-SERVICE-Parts",11/5/2021 00:00:00,"238373",1009.32,"OL0059","OLIVER LANDPOWER LIMITED",26/4/2021 00:00:00,30/5/2021 00:00:00,"P02-2022"
"P&V","LEE VALLEY FARM HOLYFIELDHALL","TRANSPORT RELATED EXPENDITURE","TRANSPORT RUNNING EXPENSES","3333","P111465-SERVICE-Workshop Sundries",10/5/2021 00:00:00,"247272",28.5,"GR0022","GROUP COMPONENTS LIMITED",26/4/2021 00:00:00,30/5/2021 00:00:00,"P02-2022"
"P&V","LEE VALLEY FARM HOLYFIELDHALL","TRANSPORT RELATED EXPENDITURE","TRANSPORT RUNNING EXPENSES","3333","P111875-SERVICE-Year Service Contract",4/5/2021 00:00:00,"247445",3347.52,"OL0059","OLIVER LANDPOWER LIMITED",26/4/2021 00:00:00,30/5/2021 00:00:00,"P02-2022"
"P&V","LEE VALLEY FARM HOLYFIELDHALL","TRANSPORT RELATED EXPENDITURE","TRANSPORT RUNNING EXPENSES","3333","P111465-SERVICE-Workshop Sundries",10/5/2021 00:00:00,"247477",36,"GR0022","GROUP COMPONENTS LIMITED",26/4/2021 00:00:00,30/5/2021 00:00:00,"P02-2022"
"P&V","LEE VALLEY FARM HOLYFIELDHALL","TRANSPORT RELATED EXPENDITURE","TRANSPORT RUNNING EXPENSES","3333","P111468-SERVICE-Hose Repair/Sundries",17/5/2021 00:00:00,"247510",71.96,"HU0003","ALLIANCE AUTOMOTIVE UK CV LIMITED T/A",26/4/2021 00:00:00,30/5/2021 00:00:00,"P02-2022"
"P&V","LEE VALLEY FARM HOLYFIELDHALL","TRANSPORT RELATED EXPENDITURE","TRANSPORT RUNNING EXPENSES","3333","P111462-SERVICE-Welding Sundries",17/5/2021 00:00:00,"247515",138.05,"BO0015","BOC LTD",26/4/2021 00:00:00,30/5/2021 00:00:00,"P02-2022"
"P&V","LEE VALLEY FARM HOLYFIELDHALL","TRANSPORT RELATED EXPENDITURE","TRANSPORT RUNNING EXPENSES","3333","P112032-SERVICE-Parts",11/5/2021 00:00:00,"247697",-1009.32,"OL0059","OLIVER LANDPOWER LIMITED",26/4/2021 00:00:00,30/5/2021 00:00:00,"P02-2022"
"P&V","LEE VALLEY FARM HOLYFIELDHALL","TRANSPORT RELATED EXPENDITURE","TRANSPORT RUNNING EXPENSES","3333","P111474-SERVICE-Tractor Spares",30/5/2021 00:00:00,"248012",7.66,"OL0059","OLIVER LANDPOWER LIMITED",26/4/2021 00:00:00,30/5/2021 00:00:00,"P02-2022"
"P&V","LEE VALLEY FARM HOLYFIELDHALL","TRANSPORT RELATED EXPENDITURE","TRANSPORT RUNNING EXPENSES","3333","P111474-SERVICE-Tractor Spares",30/5/2021 00:00:00,"248013",418.61,"OL0059","OLIVER LANDPOWER LIMITED",26/4/2021 00:00:00,30/5/2021 00:00:00,"P02-2022"
"P&V","LEE VALLEY FARM HOLYFIELDHALL","TRANSPORT RELATED EXPENDITURE","TRANSPORT RUNNING EXPENSES","3333","P111469-SERVICE-Tractor Spares",30/5/2021 00:00:00,"248085",61.45,"RW0257","R. W. CRAWFORD AGRICULTURAL MACHINERY LTD",26/4/2021 00:00:00,30/5/2021 00:00:00,"P02-2022"
"P&V","LEE VALLEY FARM HOLYFIELDHALL","TRANSPORT RELATED EXPENDITURE","TRANSPORT RUNNING EXPENSES","3333","P111465-SERVICE-Workshop Sundries",30/5/2021 00:00:00,"248107",85.05,"GR0022","GROUP COMPONENTS LIMITED",26/4/2021 00:00:00,30/5/2021 00:00:00,"P02-2022"
"P&V","LEE VALLEY FARM HOLYFIELDHALL","TRANSPORT RELATED EXPENDITURE","TRANSPORT RUNNING EXPENSES","3333","P111462-SERVICE-Welding Sundries",30/5/2021 00:00:00,"248129",233.53,"BO0015","BOC LTD",26/4/2021 00:00:00,30/5/2021 00:00:00,"P02-2022"
"P&V","FISHERIES MANAGEMENT","TRANSPORT RELATED EXPENDITURE","VEHICLE FUEL","3335","ALLSTAR BUSINESS SOLUTIONS LTD",10/5/2021 00:00:00,"247520",27.06,"AR0035","ALLSTAR BUSINESS SOLUTIONS LTD",26/4/2021 00:00:00,30/5/2021 00:00:00,"P02-2022"
,"LEE VALLEY MARINA STANSTEAD","TRANSPORT RELATED EXPENDITURE","VEHICLE FUEL","3335","ALLSTAR BUSINESS SOLUTIONS LTD",10/5/2021 00:00:00,"247520",209.43,"AR0035","ALLSTAR BUSINESS SOLUTIONS LTD",26/4/2021 00:00:00,30/5/2021 00:00:00,"P02-2022"
,"LEE VALLEY FARM HAYES HILL","TRANSPORT RELATED EXPENDITURE","VEHICLE FUEL","3335","ALLSTAR BUSINESS SOLUTIONS LTD",10/5/2021 00:00:00,"247520",188.77,"AR0035","ALLSTAR BUSINESS SOLUTIONS LTD",26/4/2021 00:00:00,30/5/2021 00:00:00,"P02-2022"
,"LEE VALLEY CAMPSITE","TRANSPORT RELATED EXPENDITURE","VEHICLE FUEL","3335","ALLSTAR BUSINESS SOLUTIONS LTD",10/5/2021 00:00:00,"247520",66.46,"AR0035","ALLSTAR BUSINESS SOLUTIONS LTD",26/4/2021 00:00:00,30/5/2021 00:00:00,"P02-2022"
,"LEE VALLEY CARAVAN PARK","TRANSPORT RELATED EXPENDITURE","VEHICLE FUEL","3335","ALLSTAR BUSINESS SOLUTIONS LTD",10/5/2021 00:00:00,"247520",104.92,"AR0035","ALLSTAR BUSINESS SOLUTIONS LTD",26/4/2021 00:00:00,30/5/2021 00:00:00,"P02-2022"
"P&V","NORTH AREA RANGERS","TRANSPORT RELATED EXPENDITURE","VEHICLE FUEL","3335","ALLSTAR BUSINESS SOLUTIONS LTD",10/5/2021 00:00:00,"247520",126.15,"AR0035","ALLSTAR BUSINESS SOLUTIONS LTD",26/4/2021 00:00:00,30/5/2021 00:00:00,"P02-2022"
"P&V","SOUTH AREA RANGERS","TRANSPORT RELATED EXPENDITURE","VEHICLE FUEL","3335","ALLSTAR BUSINESS SOLUTIONS LTD",10/5/2021 00:00:00,"247520",179.94,"AR0035","ALLSTAR BUSINESS SOLUTIONS LTD",26/4/2021 00:00:00,30/5/2021 00:00:00,"P02-2022"
"P&V","GUNPOWDER PARK","TRANSPORT RELATED EXPENDITURE","VEHICLE FUEL","3335","ALLSTAR BUSINESS SOLUTIONS LTD",10/5/2021 00:00:00,"247520",52.55,"AR0035","ALLSTAR BUSINESS SOLUTIONS LTD",26/4/2021 00:00:00,30/5/2021 00:00:00,"P02-2022"
"P&V","RIVER LEE COUNTRY PARK","TRANSPORT RELATED EXPENDITURE","VEHICLE FUEL","3335","ALLSTAR BUSINESS SOLUTIONS LTD",10/5/2021 00:00:00,"247520",502.16,"AR0035","ALLSTAR BUSINESS SOLUTIONS LTD",26/4/2021 00:00:00,30/5/2021 00:00:00,"P02-2022"
,"LEE VALLEY RIDING CENTRE","TRANSPORT RELATED EXPENDITURE","VEHICLE FUEL","3335","ALLSTAR BUSINESS SOLUTIONS LTD",10/5/2021 00:00:00,"247521",107.17,"AR0035","ALLSTAR BUSINESS SOLUTIONS LTD",26/4/2021 00:00:00,30/5/2021 00:00:00,"P02-2022"
,"LV LEISURE CENTRE CAMPSITE","TRANSPORT RELATED EXPENDITURE","VEHICLE FUEL","3335","ALLSTAR BUSINESS SOLUTIONS LTD",10/5/2021 00:00:00,"247520",1.92,"AR0035","ALLSTAR BUSINESS SOLUTIONS LTD",26/4/2021 00:00:00,30/5/2021 00:00:00,"P02-2022"
,"LV LEISURE CENTRE CAMPSITE","TRANSPORT RELATED EXPENDITURE","VEHICLE FUEL","3335","ALLSTAR BUSINESS SOLUTIONS LTD",10/5/2021 00:00:00,"247520",81.51,"AR0035","ALLSTAR BUSINESS SOLUTIONS LTD",26/4/2021 00:00:00,30/5/2021 00:00:00,"P02-2022"
"P&V","SOUTH AREA RANGERS","TRANSPORT RELATED EXPENDITURE","VEHICLE REPAIRS & MAINTENANCE","3338","P111746-SERVICE-Vehicle Service GK65 MOF",4/5/2021 00:00:00,"247054",534.73,"LE0441","LES PAULS MOTORS LTD",26/4/2021 00:00:00,30/5/2021 00:00:00,"P02-2022"
"P&V","SOUTH AREA RANGERS","TRANSPORT RELATED EXPENDITURE","VEHICLE REPAIRS & MAINTENANCE","3338","P111746-SERVICE-Vehicle Service GK65 MMU",4/5/2021 00:00:00,"247217",490.74,"LE0441","LES PAULS MOTORS LTD",26/4/2021 00:00:00,30/5/2021 00:00:00,"P02-2022"
"P&V","RIVER LEE COUNTRY PARK","TRANSPORT RELATED EXPENDITURE","VEHICLE REPAIRS & MAINTENANCE","3338","P111678-SERVICE-Service - GK65MPO",4/5/2021 00:00:00,"247055",482.42,"LE0441","LES PAULS MOTORS LTD",26/4/2021 00:00:00,30/5/2021 00:00:00,"P02-2022"
"P&V","RIVER LEE COUNTRY PARK","TRANSPORT RELATED EXPENDITURE","VEHICLE REPAIRS & MAINTENANCE","3338","P111678-SERVICE-Service - GK65 MRU",4/5/2021 00:00:00,"247299",430.73,"LE0441","LES PAULS MOTORS LTD",26/4/2021 00:00:00,30/5/2021 00:00:00,"P02-2022"
"P&V","RIVER LEE COUNTRY PARK","TRANSPORT RELATED EXPENDITURE","VEHICLE REPAIRS & MAINTENANCE","3338","P111678-SERVICE-Service - GK65 MRO",4/5/2021 00:00:00,"247300",496.63,"LE0441","LES PAULS MOTORS LTD",26/4/2021 00:00:00,30/5/2021 00:00:00,"P02-2022"
"P&V","RIVER LEE COUNTRY PARK","TRANSPORT RELATED EXPENDITURE","VEHICLE REPAIRS & MAINTENANCE","3338","P112163-SERVICE-Landrover Spare Parts",30/5/2021 00:00:00,"248297",90.98,"AJ0064","A.J.D. LANDROVERS",26/4/2021 00:00:00,30/5/2021 00:00:00,"P02-2022"
"P&V","RIVER LEE COUNTRY PARK","TRANSPORT RELATED EXPENDITURE","VEHICLE REPAIRS & MAINTENANCE","3338","P112318-SERVICE-Radiator and Oil Cooler Pipework -  N713SAV",30/5/2021 00:00:00,"248585",170.98,"AJ0064","A.J.D. LANDROVERS",26/4/2021 00:00:00,30/5/2021 00:00:00,"P02-2022"
,"LEE VALLEY MARINA SPRINGFIELD","SUPPLIES AND SERVICES","EQUIPMENT & MATERIALS","4111","P111790-SERVICE-Carriage charged",4/5/2021 00:00:00,"247305",20,"AN0047","ANGLIA HANDLING SERVICES LTD",26/4/2021 00:00:00,30/5/2021 00:00:00,"P02-2022"
,"LEE VALLEY MARINA SPRINGFIELD","SUPPLIES AND SERVICES","EQUIPMENT & MATERIALS","4111","P111790-SERVICE-Chain Sling Verbal quotation from Mark",4/5/2021 00:00:00,"247305",74.96,"AN0047","ANGLIA HANDLING SERVICES LTD",26/4/2021 00:00:00,30/5/2021 00:00:00,"P02-2022"
,"LEE VALLEY MARINA SPRINGFIELD","SUPPLIES AND SERVICES","EQUIPMENT & MATERIALS","4111","P111795-SERVICE-BOC Welding Consumables",4/5/2021 00:00:00,"247310",426.73,"BO0015","BOC LTD",26/4/2021 00:00:00,30/5/2021 00:00:00,"P02-2022"
,"LEE VALLEY MARINA SPRINGFIELD","SUPPLIES AND SERVICES","EQUIPMENT & MATERIALS","4111","P111829-SERVICE-To supply items as requested",4/5/2021 00:00:00,"247423",120.14,"SA0008","SAFETEC DIRECT LTD",26/4/2021 00:00:00,30/5/2021 00:00:00,"P02-2022"
,"LEE VALLEY MARINA SPRINGFIELD","SUPPLIES AND SERVICES","EQUIPMENT & MATERIALS","4111","P112044-SERVICE-2 x Cylinder Rental Oxygen size W",11/5/2021 00:00:00,"247519",273.1,"BO0015","BOC LTD",26/4/2021 00:00:00,30/5/2021 00:00:00,"P02-2022"
,"STANSTEAD RECHARGEABLE WORKS","SUPPLIES AND SERVICES","EQUIPMENT & MATERIALS","4111","P111682-SERVICE-Blacking",4/5/2021 00:00:00,"247302",831,"SM0658","SML PAINTS AND COATINGS",26/4/2021 00:00:00,30/5/2021 00:00:00,"P02-2022"
,"STANSTEAD RECHARGEABLE WORKS","SUPPLIES AND SERVICES","EQUIPMENT & MATERIALS","4111","P111436-SERVICE-Workshop Supplies",17/5/2021 00:00:00,"247775",51.01,"HO0349","HOMETREND SUPPLIES LTD",26/4/2021 00:00:00,30/5/2021 00:00:00,"P02-2022"
,"STANSTEAD RECHARGEABLE WORKS","SUPPLIES AND SERVICES","EQUIPMENT & MATERIALS","4111","P111986-SERVICE-blacking",17/5/2021 00:00:00,"248030",831,"SM0658","SML PAINTS AND COATINGS",26/4/2021 00:00:00,30/5/2021 00:00:00,"P02-2022"
,"STANSTEAD RECHARGEABLE WORKS","SUPPLIES AND SERVICES","EQUIPMENT & MATERIALS","4111","P112185-SERVICE-WORKSHOP SUPPLIES",25/5/2021 00:00:00,"248274",66.7,"SC0057","SCREWFIX DIRECT LTD",26/4/2021 00:00:00,30/5/2021 00:00:00,"P02-2022"
,"LEE VALLEY CAMPSITE","SUPPLIES AND SERVICES","EQUIPMENT & MATERIALS","4111","P112003-SERVICE-Cushman & Motor Batteries",24/5/2021 00:00:00,"248061",407,"GE0440","GTEC'S",26/4/2021 00:00:00,30/5/2021 00:00:00,"P02-2022"
,"LEE VALLEY CAMPSITE","SUPPLIES AND SERVICES","EQUIPMENT & MATERIALS","4111","P112004-SERVICE-Showers x4",24/5/2021 00:00:00,"248249",32,"SL0528","SLAM SIGNS LTD",26/4/2021 00:00:00,30/5/2021 00:00:00,"P02-2022"
,"LEE VALLEY CAMPSITE","SUPPLIES AND SERVICES","EQUIPMENT & MATERIALS","4111","P112004-SERVICE-Waste Water x4",24/5/2021 00:00:00,"248249",20,"SL0528","SLAM SIGNS LTD",26/4/2021 00:00:00,30/5/2021 00:00:00,"P02-2022"
,"LEE VALLEY CAMPSITE","SUPPLIES AND SERVICES","EQUIPMENT & MATERIALS","4111","P112004-SERVICE-Drinking Water x4",24/5/2021 00:00:00,"248249",20,"SL0528","SLAM SIGNS LTD",26/4/2021 00:00:00,30/5/2021 00:00:00,"P02-2022"
,"LEE VALLEY CAMPSITE","SUPPLIES AND SERVICES","EQUIPMENT & MATERIALS","4111","P112004-SERVICE-Recycling x3",24/5/2021 00:00:00,"248249",36,"SL0528","SLAM SIGNS LTD",26/4/2021 00:00:00,30/5/2021 00:00:00,"P02-2022"
,"LEE VALLEY CAMPSITE","SUPPLIES AND SERVICES","EQUIPMENT & MATERIALS","4111","P112004-SERVICE-Ladies x2",24/5/2021 00:00:00,"248249",28,"SL0528","SLAM SIGNS LTD",26/4/2021 00:00:00,30/5/2021 00:00:00,"P02-2022"
,"LEE VALLEY CAMPSITE","SUPPLIES AND SERVICES","EQUIPMENT & MATERIALS","4111","P112004-SERVICE-Mens x2",24/5/2021 00:00:00,"248249",28,"SL0528","SLAM SIGNS LTD",26/4/2021 00:00:00,30/5/2021 00:00:00,"P02-2022"
,"LEE VALLEY CAMPSITE","SUPPLIES AND SERVICES","EQUIPMENT & MATERIALS","4111","P112004-SERVICE-Glass only x3",24/5/2021 00:00:00,"248249",36,"SL0528","SLAM SIGNS LTD",26/4/2021 00:00:00,30/5/2021 00:00:00,"P02-2022"
,"LEE VALLEY CAMPSITE","SUPPLIES AND SERVICES","EQUIPMENT & MATERIALS","4111","P112004-SERVICE-Washer/Dryer",24/5/2021 00:00:00,"248249",18,"SL0528","SLAM SIGNS LTD",26/4/2021 00:00:00,30/5/2021 00:00:00,"P02-2022"
,"LEE VALLEY CAMPSITE","SUPPLIES AND SERVICES","EQUIPMENT & MATERIALS","4111","P112004-SERVICE-Washing Up Area",24/5/2021 00:00:00,"248249",16,"SL0528","SLAM SIGNS LTD",26/4/2021 00:00:00,30/5/2021 00:00:00,"P02-2022"
,"LEE VALLEY CAMPSITE","SUPPLIES AND SERVICES","EQUIPMENT & MATERIALS","4111","P112004-SERVICE-Toilets x4",24/5/2021 00:00:00,"248249",32,"SL0528","SLAM SIGNS LTD",26/4/2021 00:00:00,30/5/2021 00:00:00,"P02-2022"
,"LEE VALLEY CAMPSITE","SUPPLIES AND SERVICES","EQUIPMENT & MATERIALS","4111","P112004-SERVICE-Disabled Toilet",24/5/2021 00:00:00,"248249",14,"SL0528","SLAM SIGNS LTD",26/4/2021 00:00:00,30/5/2021 00:00:00,"P02-2022"
,"LEE VALLEY CAMPSITE","SUPPLIES AND SERVICES","EQUIPMENT & MATERIALS","4111","P112338-SERVICE-Dewalt  DCZ twin pack",30/5/2021 00:00:00,"248503",149.99,"SC0057","SCREWFIX DIRECT LTD",26/4/2021 00:00:00,30/5/2021 00:00:00,"P02-2022"
,"LEE VALLEY CAMPSITE","SUPPLIES AND SERVICES","EQUIPMENT & MATERIALS","4111","P112338-SERVICE-heavy duty rubble sacks",30/5/2021 00:00:00,"248503",5.83,"SC0057","SCREWFIX DIRECT LTD",26/4/2021 00:00:00,30/5/2021 00:00:00,"P02-2022"
,"LEE VALLEY CAMPSITE","SUPPLIES AND SERVICES","EQUIPMENT & MATERIALS","4111","P112338-SERVICE-bath plug",30/5/2021 00:00:00,"248503",1.53,"SC0057","SCREWFIX DIRECT LTD",26/4/2021 00:00:00,30/5/2021 00:00:00,"P02-2022"
,"LEE VALLEY CAMPSITE","SUPPLIES AND SERVICES","EQUIPMENT & MATERIALS","4111","P112003-SERVICE-Autonator & Safety switches",30/5/2021 00:00:00,"248570",426,"GE0440","GTEC'S",26/4/2021 00:00:00,30/5/2021 00:00:00,"P02-2022"
,"LEE VALLEY CAMPSITE","SUPPLIES AND SERVICES","EQUIPMENT & MATERIALS","4111","P112003-SERVICE-Removed Blockage from Kubota",30/5/2021 00:00:00,"248591",126,"GE0440","GTEC'S",26/4/2021 00:00:00,30/5/2021 00:00:00,"P02-2022"
,"LEE VALLEY CAMPSITE","SUPPLIES AND SERVICES","EQUIPMENT & MATERIALS","4111","P111990-SERVICE-HH43 Window repair",30/5/2021 00:00:00,"248595",137,"DI0284","DIRECT WINDOWS & DOORS",26/4/2021 00:00:00,30/5/2021 00:00:00,"P02-2022"
,"LEE VALLEY CARAVAN PARK","SUPPLIES AND SERVICES","EQUIPMENT & MATERIALS","4111","P112057-SERVICE-ext ply 2440x1220x18mm",30/5/2021 00:00:00,"248078",49.96,"LE0012","LEASIDE TIMBER & BUILDERS MERCHANTS LTD",26/4/2021 00:00:00,30/5/2021 00:00:00,"P02-2022"
"P&V","MYDDELTON HOUSE GARDENS","SUPPLIES AND SERVICES","EQUIPMENT & MATERIALS","4111","P111028-SERVICE-Twine Fillis Natural Jute 5-Ply 500g (FI5) x",17/5/2021 00:00:00,"247671",6.12,"FA0149","FARGRO LIMITED",26/4/2021 00:00:00,30/5/2021 00:00:00,"P02-2022"
"P&V","MYDDELTON HOUSE GARDENS","SUPPLIES AND SERVICES","EQUIPMENT & MATERIALS","4111","P111028-SERVICE-Plantpak Seed Tray CHT - Black (DPCHTC) x 1",17/5/2021 00:00:00,"247671",51.54,"FA0149","FARGRO LIMITED",26/4/2021 00:00:00,30/5/2021 00:00:00,"P02-2022"
"P&V","MYDDELTON HOUSE GARDENS","SUPPLIES AND SERVICES","EQUIPMENT & MATERIALS","4111","P112010-SERVICE-Heavy lifting arm part - part X0014 x 1 unit",24/5/2021 00:00:00,"248079",85.45,"AL0324","ALITEX LTD",26/4/2021 00:00:00,30/5/2021 00:00:00,"P02-2022"
"P&V","NORTH AREA RANGERS","SUPPLIES AND SERVICES","EQUIPMENT & MATERIALS","4111","P111485-SERVICE-Equipment & Materials as and when required",4/5/2021 00:00:00,"247465",65.23,"JE0011","SAINT-GOBAIN BUILDING DISTRIBUTION",26/4/2021 00:00:00,30/5/2021 00:00:00,"P02-2022"
"P&V","NORTH AREA RANGERS","SUPPLIES AND SERVICES","EQUIPMENT & MATERIALS","4111","P111484-SERVICE-Equipment & Materials as and when required",24/5/2021 00:00:00,"248045",35.8,"JW0004","J & W FENCING LIMITED",26/4/2021 00:00:00,30/5/2021 00:00:00,"P02-2022"
"P&V","NORTH AREA RANGERS","SUPPLIES AND SERVICES","EQUIPMENT & MATERIALS","4111","P111484-SERVICE-Equipment & Materials as and when required",24/5/2021 00:00:00,"248046",165.45,"JW0004","J & W FENCING LIMITED",26/4/2021 00:00:00,30/5/2021 00:00:00,"P02-2022"
"P&V","NORTH AREA RANGERS","SUPPLIES AND SERVICES","EQUIPMENT & MATERIALS","4111","P111485-SERVICE-Equipment & Materials as and when required",30/5/2021 00:00:00,"248564",18.48,"JE0011","SAINT-GOBAIN BUILDING DISTRIBUTION",26/4/2021 00:00:00,30/5/2021 00:00:00,"P02-2022"
"P&V","NORTH AREA RANGERS","SUPPLIES AND SERVICES","EQUIPMENT & MATERIALS","4111","P111485-SERVICE-Equipment & Materials as and when required",30/5/2021 00:00:00,"248565",32.7,"JE0011","SAINT-GOBAIN BUILDING DISTRIBUTION",26/4/2021 00:00:00,30/5/2021 00:00:00,"P02-2022"
"P&V","SOUTH AREA RANGERS","SUPPLIES AND SERVICES","EQUIPMENT & MATERIALS","4111","P111955-SERVICE-1x Diall V23GA battery 2 pack (867HK)",17/5/2021 00:00:00,"247761",1.91,"SC0057","SCREWFIX DIRECT LTD",26/4/2021 00:00:00,30/5/2021 00:00:00,"P02-2022"
"P&V","SOUTH AREA RANGERS","SUPPLIES AND SERVICES","EQUIPMENT & MATERIALS","4111","P112242-SERVICE-2x Blue Circle Postcrete 20kg",30/5/2021 00:00:00,"248504",8.03,"BQ0164","TRADE UK ACCOUNT",26/4/2021 00:00:00,30/5/2021 00:00:00,"P02-2022"
"P&V","SOUTH AREA RANGERS","SUPPLIES AND SERVICES","EQUIPMENT & MATERIALS","4111","P111577-SERVICE-3x Disposable Chemical Coveralls - 307JAA110",30/5/2021 00:00:00,"248563",30,"SE0018","BRADY CORPORATION LIMITED/SETON",26/4/2021 00:00:00,30/5/2021 00:00:00,"P02-2022"
"P&V","SOUTH AREA RANGERS","SUPPLIES AND SERVICES","EQUIPMENT & MATERIALS","4111","P111577-SERVICE-1x Disposable Dust Masks - 86104021000",30/5/2021 00:00:00,"248563",19,"SE0018","BRADY CORPORATION LIMITED/SETON",26/4/2021 00:00:00,30/5/2021 00:00:00,"P02-2022"
"P&V","SOUTH AREA RANGERS","SUPPLIES AND SERVICES","EQUIPMENT & MATERIALS","4111","P111577-SERVICE-10x Disposable Chemical Coveralls - 307JAA110",30/5/2021 00:00:00,"248563",100,"SE0018","BRADY CORPORATION LIMITED/SETON",26/4/2021 00:00:00,30/5/2021 00:00:00,"P02-2022"
"P&V","SOUTH AREA RANGERS","SUPPLIES AND SERVICES","EQUIPMENT & MATERIALS","4111","P111577-SERVICE-2x Standard Face Shields - 86151041000",30/5/2021 00:00:00,"248563",32,"SE0018","BRADY CORPORATION LIMITED/SETON",26/4/2021 00:00:00,30/5/2021 00:00:00,"P02-2022"
"P&V","SOUTH AREA RANGERS","SUPPLIES AND SERVICES","EQUIPMENT & MATERIALS","4111","P111577-SERVICE-1x Saline Eye Wash  500ml - FAD2166",30/5/2021 00:00:00,"248563",1,"SE0018","BRADY CORPORATION LIMITED/SETON",26/4/2021 00:00:00,30/5/2021 00:00:00,"P02-2022"
"P&V","RIVER LEE COUNTRY PARK","SUPPLIES AND SERVICES","EQUIPMENT & MATERIALS","4111","P112196-SERVICE-2x Drill Bits",24/5/2021 00:00:00,"247727",4.85,"JE0011","SAINT-GOBAIN BUILDING DISTRIBUTION",26/4/2021 00:00:00,30/5/2021 00:00:00,"P02-2022"
"P&V","RIVER LEE COUNTRY PARK","SUPPLIES AND SERVICES","EQUIPMENT & MATERIALS","4111","P112196-SERVICE-2x Steel Screws",24/5/2021 00:00:00,"247727",5.82,"JE0011","SAINT-GOBAIN BUILDING DISTRIBUTION",26/4/2021 00:00:00,30/5/2021 00:00:00,"P02-2022"
"P&V","RIVER LEE COUNTRY PARK","SUPPLIES AND SERVICES","EQUIPMENT & MATERIALS","4111","P112196-SERVICE-10x Clipper Flat Metal Cutting",24/5/2021 00:00:00,"247749",24.7,"JE0011","SAINT-GOBAIN BUILDING DISTRIBUTION",26/4/2021 00:00:00,30/5/2021 00:00:00,"P02-2022"
"P&V","RIVER LEE COUNTRY PARK","SUPPLIES AND SERVICES","EQUIPMENT & MATERIALS","4111","P112196-SERVICE-1x Fiberglass Sledge Hammer",24/5/2021 00:00:00,"247749",29.77,"JE0011","SAINT-GOBAIN BUILDING DISTRIBUTION",26/4/2021 00:00:00,30/5/2021 00:00:00,"P02-2022"
"P&V","RIVER LEE COUNTRY PARK","SUPPLIES AND SERVICES","EQUIPMENT & MATERIALS","4111","P112196-SERVICE-4x Big Wipes",24/5/2021 00:00:00,"247749",45.04,"JE0011","SAINT-GOBAIN BUILDING DISTRIBUTION",26/4/2021 00:00:00,30/5/2021 00:00:00,"P02-2022"
,"LV HOCKEY AND TENNIS CENTRE","SUPPLIES AND SERVICES","EQUIPMENT & MATERIALS","4111","P111841-SERVICE-50 x carbon sticks",4/5/2021 00:00:00,"247063",50,"RO0314","ROOS SPORTS LTD",26/4/2021 00:00:00,30/5/2021 00:00:00,"P02-2022"
,"LV HOCKEY AND TENNIS CENTRE","SUPPLIES AND SERVICES","EQUIPMENT & MATERIALS","4111","P112124-SERVICE-Tip net belts",17/5/2021 00:00:00,"247711",115.5,"HE0386","HEAD UK LTD",26/4/2021 00:00:00,30/5/2021 00:00:00,"P02-2022"
,"LV HOCKEY AND TENNIS CENTRE","SUPPLIES AND SERVICES","EQUIPMENT & MATERIALS","4111","P112131-SERVICE-Equipment - Socks",17/5/2021 00:00:00,"247756",44,"CL0615","CLUB SOCKS",26/4/2021 00:00:00,30/5/2021 00:00:00,"P02-2022"
,"LV HOCKEY AND TENNIS CENTRE","SUPPLIES AND SERVICES","EQUIPMENT & MATERIALS","4111","P112269-SERVICE-Hocsocx / sleeves",30/5/2021 00:00:00,"248082",48,"HO0444","HOCSOCX UK",26/4/2021 00:00:00,30/5/2021 00:00:00,"P02-2022"
,"LEE VALLEY RIDING CENTRE","SUPPLIES AND SERVICES","EQUIPMENT & MATERIALS","4111","P112230-SERVICE-solocomb x 2",25/5/2021 00:00:00,"247786",18.5,"JE0001","B JENKINSON & SONS LTD",26/4/2021 00:00:00,30/5/2021 00:00:00,"P02-2022"
,"LEE VALLEY RIDING CENTRE","SUPPLIES AND SERVICES","EQUIPMENT & MATERIALS","4111","P112230-SERVICE-iodine x 4",25/5/2021 00:00:00,"247786",15.12,"JE0001","B JENKINSON & SONS LTD",26/4/2021 00:00:00,30/5/2021 00:00:00,"P02-2022"
,"LEE VALLEY RIDING CENTRE","SUPPLIES AND SERVICES","EQUIPMENT & MATERIALS","4111","P112230-SERVICE-pig oil",25/5/2021 00:00:00,"247786",4.45,"JE0001","B JENKINSON & SONS LTD",26/4/2021 00:00:00,30/5/2021 00:00:00,"P02-2022"
,"LEE VALLEY RIDING CENTRE","SUPPLIES AND SERVICES","EQUIPMENT & MATERIALS","4111","P112230-SERVICE-hayents x 30",25/5/2021 00:00:00,"247786",178.5,"JE0001","B JENKINSON & SONS LTD",26/4/2021 00:00:00,30/5/2021 00:00:00,"P02-2022"
,"LEE VALLEY RIDING CENTRE","SUPPLIES AND SERVICES","EQUIPMENT & MATERIALS","4111","P112230-SERVICE-rubber reins x 10",25/5/2021 00:00:00,"247786",72.5,"JE0001","B JENKINSON & SONS LTD",26/4/2021 00:00:00,30/5/2021 00:00:00,"P02-2022"
,"LEE VALLEY RIDING CENTRE","SUPPLIES AND SERVICES","EQUIPMENT & MATERIALS","4111","P112230-SERVICE-stirrup treads x 18",25/5/2021 00:00:00,"247786",22.2,"JE0001","B JENKINSON & SONS LTD",26/4/2021 00:00:00,30/5/2021 00:00:00,"P02-2022"
,"LEE VALLEY RIDING CENTRE","SUPPLIES AND SERVICES","EQUIPMENT & MATERIALS","4111","P112230-SERVICE-clipper oil",25/5/2021 00:00:00,"247786",9.92,"JE0001","B JENKINSON & SONS LTD",26/4/2021 00:00:00,30/5/2021 00:00:00,"P02-2022"
,"LEE VALLEY RIDING CENTRE","SUPPLIES AND SERVICES","EQUIPMENT & MATERIALS","4111","P112230-SERVICE-headcollar x 10",25/5/2021 00:00:00,"247786",26,"JE0001","B JENKINSON & SONS LTD",26/4/2021 00:00:00,30/5/2021 00:00:00,"P02-2022"
,"LEE VALLEY RIDING CENTRE","SUPPLIES AND SERVICES","EQUIPMENT & MATERIALS","4111","P112230-SERVICE-triscrub 5 litre",25/5/2021 00:00:00,"247786",30,"JE0001","B JENKINSON & SONS LTD",26/4/2021 00:00:00,30/5/2021 00:00:00,"P02-2022"
,"LEE VALLEY RIDING CENTRE","SUPPLIES AND SERVICES","EQUIPMENT & MATERIALS","4111","P112230-SERVICE-girths x 15",25/5/2021 00:00:00,"247786",74.25,"JE0001","B JENKINSON & SONS LTD",26/4/2021 00:00:00,30/5/2021 00:00:00,"P02-2022"
,"LEE VALLEY ICE CENTRE","SUPPLIES AND SERVICES","EQUIPMENT & MATERIALS","4111","P111914-SERVICE-Radio's Hire",5/5/2021 00:00:00,"246689",220.56,"LO0133","RADIOCOMS SYSTEMS LTD",26/4/2021 00:00:00,30/5/2021 00:00:00,"P02-2022"
,"LV ICE CENTRE CATERING","SUPPLIES AND SERVICES","EQUIPMENT & MATERIALS","4111","P112141-SERVICE-Coke Machine",17/5/2021 00:00:00,"247467",33.33,"CO0045","COCA COLA EUROPEAN PARTNERS GREAT BRITAIN LTD",26/4/2021 00:00:00,30/5/2021 00:00:00,"P02-2022"
,"LV ICE CENTRE CATERING","SUPPLIES AND SERVICES","EQUIPMENT & MATERIALS","4111","P112143-SERVICE-Suregas",17/5/2021 00:00:00,"247518",35.4,"BO0015","BOC LTD",26/4/2021 00:00:00,30/5/2021 00:00:00,"P02-2022"
,"LV LEISURE CENTRE CAMPSITE","SUPPLIES AND SERVICES","EQUIPMENT & MATERIALS","4111","P112252-SERVICE-Strimming wire and building materials",26/5/2021 00:00:00,"247562",37.49,"SC0057","SCREWFIX DIRECT LTD",26/4/2021 00:00:00,30/5/2021 00:00:00,"P02-2022"
,"LV LEISURE CENTRE GOLF COURSE","SUPPLIES AND SERVICES","EQUIPMENT & MATERIALS","4111","P111674-SERVICE-torro height adjusters",4/5/2021 00:00:00,"247046",408.81,"LE0279","REESINK TURFCARE UK LIMITED",26/4/2021 00:00:00,30/5/2021 00:00:00,"P02-2022"
,"LV LEISURE CENTRE GOLF COURSE","SUPPLIES AND SERVICES","EQUIPMENT & MATERIALS","4111","P111818-SERVICE-throttle cable",10/5/2021 00:00:00,"247290",95.19,"LE0279","REESINK TURFCARE UK LIMITED",26/4/2021 00:00:00,30/5/2021 00:00:00,"P02-2022"
,"LV LEISURE CENTRE GOLF COURSE","SUPPLIES AND SERVICES","EQUIPMENT & MATERIALS","4111","P112039-SERVICE-12x COVID Holecup lifters",24/5/2021 00:00:00,"248031",195,"MR0420","MR AMENITY LTD",26/4/2021 00:00:00,30/5/2021 00:00:00,"P02-2022"
,"LV LEISURE CENTRE GOLF COURSE","SUPPLIES AND SERVICES","EQUIPMENT & MATERIALS","4111","P112039-SERVICE-4 x Deluxe switch tips",24/5/2021 00:00:00,"248031",31,"MR0420","MR AMENITY LTD",26/4/2021 00:00:00,30/5/2021 00:00:00,"P02-2022"
,"LV LEISURE CENTRE GOLF COURSE","SUPPLIES AND SERVICES","EQUIPMENT & MATERIALS","4111","P112039-SERVICE-12x Economy Tee Log Markers - yellow",24/5/2021 00:00:00,"248031",90,"MR0420","MR AMENITY LTD",26/4/2021 00:00:00,30/5/2021 00:00:00,"P02-2022"
,"LV LEISURE CENTRE GOLF COURSE","SUPPLIES AND SERVICES","EQUIPMENT & MATERIALS","4111","P112187-SERVICE-irrigation for gold course",26/5/2021 00:00:00,"248261",796.34,"SJ0635","SJS IRRIGATION",26/4/2021 00:00:00,30/5/2021 00:00:00,"P02-2022"
,"LEE VALLEY ATHLETICS CENTRE","SUPPLIES AND SERVICES","EQUIPMENT & MATERIALS","4111","P111653-SERVICE-LVAC GYM EQUIPMENT",4/5/2021 00:00:00,"246936",99,"PR0446","PRECISION GYM SERVICES LTD",26/4/2021 00:00:00,30/5/2021 00:00:00,"P02-2022"
,"LEE VALLEY ATHLETICS CENTRE","SUPPLIES AND SERVICES","EQUIPMENT & MATERIALS","4111","P111486-SERVICE-LVAC ORDERS 271957 275450 DUMBBELLS + HEX BAR",4/5/2021 00:00:00,"247266",362.5,"JO0158","JORDAN FITNESS LTD",26/4/2021 00:00:00,30/5/2021 00:00:00,"P02-2022"
,"LEE VALLEY ATHLETICS CENTRE","SUPPLIES AND SERVICES","EQUIPMENT & MATERIALS","4111","P111486-SERVICE-LVAC ORDERS 271957 275450 DUMBBELLS + HEX BAR",4/5/2021 00:00:00,"247291",158.75,"JO0158","JORDAN FITNESS LTD",26/4/2021 00:00:00,30/5/2021 00:00:00,"P02-2022"
,"LEE VALLEY ATHLETICS CENTRE","SUPPLIES AND SERVICES","EQUIPMENT & MATERIALS","4111","P111847-SERVICE-supply/fit javelin holder",4/5/2021 00:00:00,"247443",75,"WR0162","MR SIMON WRIGHT",26/4/2021 00:00:00,30/5/2021 00:00:00,"P02-2022"
,"LEE VALLEY ATHLETICS CENTRE","SUPPLIES AND SERVICES","EQUIPMENT & MATERIALS","4111","P111650-SERVICE-LVAC SCISSOR LIFT HIRE QUOTE PA245379",10/5/2021 00:00:00,"247667",276.19,"MR0035","MR PLANT HIRE PLC",26/4/2021 00:00:00,30/5/2021 00:00:00,"P02-2022"
,"LEE VALLEY ATHLETICS CENTRE","SUPPLIES AND SERVICES","EQUIPMENT & MATERIALS","4111","P112046-SERVICE-RXV KEYS (PAIR) @ 4.22",18/5/2021 00:00:00,"247820",21.1,"GO0221","GOLF CAR UK LIMITED",26/4/2021 00:00:00,30/5/2021 00:00:00,"P02-2022"
,"LEE VALLEY ATHLETICS CENTRE","SUPPLIES AND SERVICES","EQUIPMENT & MATERIALS","4111","P112046-SERVICE-CARRAIGE",18/5/2021 00:00:00,"247820",8.5,"GO0221","GOLF CAR UK LIMITED",26/4/2021 00:00:00,30/5/2021 00:00:00,"P02-2022"
,"LEE VALLEY ATHLETICS CENTRE","SUPPLIES AND SERVICES","EQUIPMENT & MATERIALS","4111","P111968-SERVICE-25 PLIFIX GRASS MARKING CARROTS (CAT IT001572",24/5/2021 00:00:00,"247831",83.33,"NE0094","NEWITT AND CO LTD",26/4/2021 00:00:00,30/5/2021 00:00:00,"P02-2022"
,"LEE VALLEY ATHLETICS CENTRE","SUPPLIES AND SERVICES","EQUIPMENT & MATERIALS","4111","P111968-SERVICE-DELIVERY TO LVAC",24/5/2021 00:00:00,"247831",4.13,"NE0094","NEWITT AND CO LTD",26/4/2021 00:00:00,30/5/2021 00:00:00,"P02-2022"
,"LEE VALLEY WHITE WATER CENTRE","SUPPLIES AND SERVICES","EQUIPMENT & MATERIALS","4111","P111825-SERVICE-Mats and Equipment blanket order for MR and J",5/5/2021 00:00:00,"247228",3.74,"AM0406","AMAZON PAYMENTS UK LIMITED",26/4/2021 00:00:00,30/5/2021 00:00:00,"P02-2022"
,"LEE VALLEY WHITE WATER CENTRE","SUPPLIES AND SERVICES","EQUIPMENT & MATERIALS","4111","P111825-SERVICE-Mats and Equipment blanket order for MR and J",5/5/2021 00:00:00,"247248",4.24,"AM0406","AMAZON PAYMENTS UK LIMITED",26/4/2021 00:00:00,30/5/2021 00:00:00,"P02-2022"
,"LEE VALLEY WHITE WATER CENTRE","SUPPLIES AND SERVICES","EQUIPMENT & MATERIALS","4111","P111814-SERVICE-Black Cables Ties AN20 200 x 4.8mm",4/5/2021 00:00:00,"247275",13.87,"CA0117","CABLE TIES DIRECT",26/4/2021 00:00:00,30/5/2021 00:00:00,"P02-2022"
,"LEE VALLEY WHITE WATER CENTRE","SUPPLIES AND SERVICES","EQUIPMENT & MATERIALS","4111","P111814-SERVICE-Black Cable Ties AH75 7.6 mm",4/5/2021 00:00:00,"247275",51.21,"CA0117","CABLE TIES DIRECT",26/4/2021 00:00:00,30/5/2021 00:00:00,"P02-2022"
,"LEE VALLEY WHITE WATER CENTRE","SUPPLIES AND SERVICES","EQUIPMENT & MATERIALS","4111","P111789-SERVICE-12 x PVC Bull Canoe - Custom design for LV ba",4/5/2021 00:00:00,"247434",11780,"WA0300","WATER RESCUE SYSTEMS LTD",26/4/2021 00:00:00,30/5/2021 00:00:00,"P02-2022"
,"LEE VALLEY WHITE WATER CENTRE","SUPPLIES AND SERVICES","EQUIPMENT & MATERIALS","4111","P111825-SERVICE-Mats and Equipment blanket order for MR and J",10/5/2021 00:00:00,"247526",1.33,"AM0406","AMAZON PAYMENTS UK LIMITED",26/4/2021 00:00:00,30/5/2021 00:00:00,"P02-2022"
,"LEE VALLEY WHITE WATER CENTRE","SUPPLIES AND SERVICES","EQUIPMENT & MATERIALS","4111","P111634-SERVICE-Various mats and equip ordered by MR",13/5/2021 00:00:00,"247805",-8.74,"AM0406","AMAZON PAYMENTS UK LIMITED",26/4/2021 00:00:00,30/5/2021 00:00:00,"P02-2022"
,"LEE VALLEY WHITE WATER CENTRE","SUPPLIES AND SERVICES","EQUIPMENT & MATERIALS","4111","P111634-SERVICE-Various mats and equip ordered by MR",13/5/2021 00:00:00,"247806",-37.38,"AM0406","AMAZON PAYMENTS UK LIMITED",26/4/2021 00:00:00,30/5/2021 00:00:00,"P02-2022"
,"LEE VALLEY WHITE WATER CENTRE","SUPPLIES AND SERVICES","EQUIPMENT & MATERIALS","4111","P112203-SERVICE-HDMI Cables",30/5/2021 00:00:00,"248321",8.88,"AM0406","AMAZON PAYMENTS UK LIMITED",26/4/2021 00:00:00,30/5/2021 00:00:00,"P02-2022"
,"LEE VALLEY WHITE WATER CENTRE","SUPPLIES AND SERVICES","EQUIPMENT & MATERIALS","4111","P111825-SERVICE-Mats and Equipment blanket order for MR and J",30/5/2021 00:00:00,"248322",33.24,"AM0406","AMAZON PAYMENTS UK LIMITED",26/4/2021 00:00:00,30/5/2021 00:00:00,"P02-2022"
,"LEE VALLEY WHITE WATER CENTRE","SUPPLIES AND SERVICES","EQUIPMENT & MATERIALS","4111","P112203-SERVICE-HDMI Cables",30/5/2021 00:00:00,"248323",7.49,"AM0406","AMAZON PAYMENTS UK LIMITED",26/4/2021 00:00:00,30/5/2021 00:00:00,"P02-2022"
,"LEE VALLEY WHITE WATER CENTRE","SUPPLIES AND SERVICES","EQUIPMENT & MATERIALS","4111","P112203-SERVICE-HDMI Cables",30/5/2021 00:00:00,"248324",5.25,"AM0406","AMAZON PAYMENTS UK LIMITED",26/4/2021 00:00:00,30/5/2021 00:00:00,"P02-2022"
,"LEE VALLEY WHITE WATER CENTRE","SUPPLIES AND SERVICES","EQUIPMENT & MATERIALS","4111","P112203-SERVICE-Tin snips",30/5/2021 00:00:00,"248324",3.89,"AM0406","AMAZON PAYMENTS UK LIMITED",26/4/2021 00:00:00,30/5/2021 00:00:00,"P02-2022"
,"LEE VALLEY WHITE WATER CENTRE","SUPPLIES AND SERVICES","EQUIPMENT & MATERIALS","4111","P112203-SERVICE-HDMI Cables",30/5/2021 00:00:00,"248526",8.88,"AM0406","AMAZON PAYMENTS UK LIMITED",26/4/2021 00:00:00,30/5/2021 00:00:00,"P02-2022"
,"LEE VALLEY WHITE WATER CENTRE","SUPPLIES AND SERVICES","EQUIPMENT & MATERIALS","4111","P112203-SERVICE-HDMI Cables",30/5/2021 00:00:00,"248527",-8.88,"AM0406","AMAZON PAYMENTS UK LIMITED",26/4/2021 00:00:00,30/5/2021 00:00:00,"P02-2022"
"CEO","RESIDENTIAL ACCOMMODATION","SUPPLIES AND SERVICES","EQUIPMENT MAINTENANCE","4112","P111962-SERVICE-Aquaside Connect & Commission Stove",10/5/2021 00:00:00,"247308",250,"ES0397","ESSEX STOVES AND CHIMNEYS",26/4/2021 00:00:00,30/5/2021 00:00:00,"P02-2022"
,"LEE VALLEY CAMPSITE","SUPPLIES AND SERVICES","EQUIPMENT MAINTENANCE","4112","P112209-SERVICE-Cnnect 2x Rentals Statics from Dobbs",25/5/2021 00:00:00,"247817",220,"BR0018","BRADSHAW ELECTRICAL LIMITED",26/4/2021 00:00:00,30/5/2021 00:00:00,"P02-2022"
,"LEE VALLEY CAMPSITE","SUPPLIES AND SERVICES","EQUIPMENT MAINTENANCE","4112","P112214-SERVICE-Supply & fit socket for Copier",26/5/2021 00:00:00,"248098",140,"BR0018","BRADSHAW ELECTRICAL LIMITED",26/4/2021 00:00:00,30/5/2021 00:00:00,"P02-2022"
,"LEE VALLEY CAMPSITE","SUPPLIES AND SERVICES","EQUIPMENT MAINTENANCE","4112","P112334-SERVICE-Touring Socket Test",30/5/2021 00:00:00,"248317",50,"BR0018","BRADSHAW ELECTRICAL LIMITED",26/4/2021 00:00:00,30/5/2021 00:00:00,"P02-2022"
"P&V","MYDDELTON HOUSE GARDENS","SUPPLIES AND SERVICES","EQUIPMENT MAINTENANCE","4112","P112043-SERVICE-IrisBG Standard Package - Annual software fee",30/5/2021 00:00:00,"248281",342,"CO0728","COMPOSITAE AS",26/4/2021 00:00:00,30/5/2021 00:00:00,"P02-2022"
,"LEE VALLEY VELOPARK","SUPPLIES AND SERVICES","EQUIPMENT MAINTENANCE","4112","P111500-SERVICE-Disposal of 17 x Box of Air filters",26/5/2021 00:00:00,"248064",1218,"CL0037","VEOLIA ES (UK) LTD",26/4/2021 00:00:00,30/5/2021 00:00:00,"P02-2022"
,"LEE VALLEY VELOPARK","SUPPLIES AND SERVICES","EQUIPMENT MAINTENANCE","4112","P112108-SERVICE-Derny & Motorcycle Service",24/5/2021 00:00:00,"248134",198.25,"CA0666","DERNY REPAIR AND SERVICE",26/4/2021 00:00:00,30/5/2021 00:00:00,"P02-2022"
,"LV LEISURE CENTRE CAMPSITE","SUPPLIES AND SERVICES","EQUIPMENT MAINTENANCE","4112","RIJO 42 LIMITED",4/5/2021 00:00:00,"247296",5,"RI0176","RIJO 42 INGREDIENTS LIMITED",26/4/2021 00:00:00,30/5/2021 00:00:00,"P02-2022"
,"LV LEISURE CENTRE CAMPSITE","SUPPLIES AND SERVICES","EQUIPMENT MAINTENANCE","4112","P111878-SERVICE-Repair to Coffee Machine",4/5/2021 00:00:00,"247296",197.66,"RI0176","RIJO 42 INGREDIENTS LIMITED",26/4/2021 00:00:00,30/5/2021 00:00:00,"P02-2022"
,"LV LEISURE CENTRE CAMPSITE","SUPPLIES AND SERVICES","EQUIPMENT MAINTENANCE","4112","RIJO 42 LIMITED",4/5/2021 00:00:00,"247296",-197.66,"RI0176","RIJO 42 INGREDIENTS LIMITED",26/4/2021 00:00:00,30/5/2021 00:00:00,"P02-2022"
,"LV LEISURE CENTRE CAMPSITE","SUPPLIES AND SERVICES","EQUIPMENT MAINTENANCE","4112","RIJO 42 LIMITED",4/5/2021 00:00:00,"247296",192.66,"RI0176","RIJO 42 INGREDIENTS LIMITED",26/4/2021 00:00:00,30/5/2021 00:00:00,"P02-2022"
,"LV LEISURE CENTRE CAMPSITE","SUPPLIES AND SERVICES","EQUIPMENT MAINTENANCE","4112","P111900-SERVICE-Pat Testing at edmonton",10/5/2021 00:00:00,"247448",306,"BR0018","BRADSHAW ELECTRICAL LIMITED",26/4/2021 00:00:00,30/5/2021 00:00:00,"P02-2022"
,"LV LEISURE CENTRE CAMPSITE","SUPPLIES AND SERVICES","EQUIPMENT MAINTENANCE","4112","P112091-SERVICE-Emergency Light testing",24/5/2021 00:00:00,"247471",345,"BR0018","BRADSHAW ELECTRICAL LIMITED",26/4/2021 00:00:00,30/5/2021 00:00:00,"P02-2022"
"R&B","INFORMATION TECHNOLOGY","SUPPLIES AND SERVICES","IT CORE SYSTEMS","4113","P112137-SERVICE-Managed Fee 14Jul-13Aug21",24/5/2021 00:00:00,"247789",1246.24,"CE0021","ADVANCED BUSINESS SOLUTIONS",26/4/2021 00:00:00,30/5/2021 00:00:00,"P02-2022"
"R&B","INFORMATION TECHNOLOGY","SUPPLIES AND SERVICES","IT CORE SYSTEMS","4113","P112216-SERVICE-Monthly fees 15/05//21",25/5/2021 00:00:00,"248136",351,"CO0440","VERIFONE SERVICES UK & IRELAND LTD",26/4/2021 00:00:00,30/5/2021 00:00:00,"P02-2022"
"R&B","INFORMATION TECHNOLOGY","SUPPLIES AND SERVICES","IT CORE SYSTEMS","4113","P111362-SERVICE-Hosted Payroll May 21- March 22",30/5/2021 00:00:00,"248497",542.51,"PA0453","PAYROLL BUSINESS SOLUTIONS LTD",26/4/2021 00:00:00,30/5/2021 00:00:00,"P02-2022"
,"LSC INFORMATION TECHNOLOGY","SUPPLIES AND SERVICES","IT CORE SYSTEMS","4113","P110746-SERVICE-Clarity licenses and support",30/5/2021 00:00:00,"248283",17138.57,"CL0377","OMNICO GROUP UK LIMITED",26/4/2021 00:00:00,30/5/2021 00:00:00,"P02-2022"
"R&B","INFORMATION TECHNOLOGY","SUPPLIES AND SERVICES","IT NETWORK & TELECOMS COSTS","4114","PPSNET LIMITED",11/5/2021 00:00:00,"247309",12831.86,"PP0200","PPSNET LIMITED",26/4/2021 00:00:00,30/5/2021 00:00:00,"P02-2022"
"R&B","INFORMATION TECHNOLOGY","SUPPLIES AND SERVICES","IT NETWORK & TELECOMS COSTS","4114","P111480-SERVICE-Monthly SIP Apr 21-Mar 22",12/5/2021 00:00:00,"247522",154.24,"FR0131","VOICEFLEX LTD",26/4/2021 00:00:00,30/5/2021 00:00:00,"P02-2022"
"R&B","INFORMATION TECHNOLOGY","SUPPLIES AND SERVICES","IT NETWORK & TELECOMS COSTS","4114","P111948-SERVICE-MPLS for all sites May 21",10/5/2021 00:00:00,"247530",11996.86,"PP0200","PPSNET LIMITED",26/4/2021 00:00:00,30/5/2021 00:00:00,"P02-2022"
"R&B","INFORMATION TECHNOLOGY","SUPPLIES AND SERVICES","IT NETWORK & TELECOMS COSTS","4114","P111949-SERVICE-MPLS for all sites April 21",10/5/2021 00:00:00,"247531",11996.86,"PP0200","PPSNET LIMITED",26/4/2021 00:00:00,30/5/2021 00:00:00,"P02-2022"
"R&B","INFORMATION TECHNOLOGY","SUPPLIES AND SERVICES","IT NETWORK & TELECOMS COSTS","4114","PPSNET LIMITED",11/5/2021 00:00:00,"247665",-12831.86,"PP0200","PPSNET LIMITED",26/4/2021 00:00:00,30/5/2021 00:00:00,"P02-2022"
"P&V","FISHERIES MANAGEMENT","SUPPLIES AND SERVICES","EQUIPMENT HIRE","4115","P111980-SERVICE-52 weeks hire at Stansted Innings, Marsh Lane",10/5/2021 00:00:00,"247541",92,"TO0092","TOILETS+ LTD",26/4/2021 00:00:00,30/5/2021 00:00:00,"P02-2022"
,"LV HOCKEY AND TENNIS CENTRE","SUPPLIES AND SERVICES","EQUIPMENT HIRE","4115","P112118-SERVICE-Equipment Hire - July",17/5/2021 00:00:00,"247524",364.82,"PE0015","PHS GROUP PLC",26/4/2021 00:00:00,30/5/2021 00:00:00,"P02-2022"
"P&V","MYDDELTON HOUSE","SUPPLIES AND SERVICES","IT HARDWARE & SOFTWARE COSTS","4116","ZEN INTERNET LTD",5/5/2021 00:00:00,"247289",29.5,"ZE0007","ZEN INTERNET LTD",26/4/2021 00:00:00,30/5/2021 00:00:00,"P02-2022"
"P&V","MYDDELTON HOUSE","SUPPLIES AND SERVICES","IT HARDWARE & SOFTWARE COSTS","4116","ZEN INTERNET LTD",19/5/2021 00:00:00,"247812",42,"ZE0007","ZEN INTERNET LTD",26/4/2021 00:00:00,30/5/2021 00:00:00,"P02-2022"
"P&V","MYDDELTON HOUSE","SUPPLIES AND SERVICES","IT HARDWARE & SOFTWARE COSTS","4116","ZEN INTERNET LTD",30/5/2021 00:00:00,"248464",29.5,"ZE0007","ZEN INTERNET LTD",26/4/2021 00:00:00,30/5/2021 00:00:00,"P02-2022"
"R&B","INFORMATION TECHNOLOGY","SUPPLIES AND SERVICES","IT HARDWARE & SOFTWARE COSTS","4116","P111692-SERVICE-Email filtering & large Files",4/5/2021 00:00:00,"246754",876,"IQ0022","IQUAL",26/4/2021 00:00:00,30/5/2021 00:00:00,"P02-2022"
"R&B","INFORMATION TECHNOLOGY","SUPPLIES AND SERVICES","IT HARDWARE & SOFTWARE COSTS","4116","P111693-SERVICE-Exclaimer Cloud 21-22",30/5/2021 00:00:00,"246755",2394,"IQ0022","IQUAL",26/4/2021 00:00:00,30/5/2021 00:00:00,"P02-2022"
"R&B","INFORMATION TECHNOLOGY","SUPPLIES AND SERVICES","IT HARDWARE & SOFTWARE COSTS","4116","P111689-SERVICE-Honeywell HF680 fixed barcade reader 2D LED b",5/5/2021 00:00:00,"247447",147.87,"BY0531","BYTES SOFTWARE SERVICES LIMITED",26/4/2021 00:00:00,30/5/2021 00:00:00,"P02-2022"
"R&B","INFORMATION TECHNOLOGY","SUPPLIES AND SERVICES","IT HARDWARE & SOFTWARE COSTS","4116","P111692-SERVICE-Email filtering & large Files",17/5/2021 00:00:00,"247710",738,"IQ0022","IQUAL",26/4/2021 00:00:00,30/5/2021 00:00:00,"P02-2022"
,"LEE VALLEY MARINA SPRINGFIELD","SUPPLIES AND SERVICES","IT HARDWARE & SOFTWARE COSTS","4116","P111997-SERVICE-Annual services/maintenace fee Springfield",17/5/2021 00:00:00,"247416",1671.12,"WI0209","WI FI SPARK LIMITED",26/4/2021 00:00:00,30/5/2021 00:00:00,"P02-2022"
,"LEE VALLEY MARINA SPRINGFIELD","SUPPLIES AND SERVICES","IT HARDWARE & SOFTWARE COSTS","4116","ZEN INTERNET LTD",17/5/2021 00:00:00,"247813",38,"ZE0007","ZEN INTERNET LTD",26/4/2021 00:00:00,30/5/2021 00:00:00,"P02-2022"
,"LEE VALLEY MARINA STANSTEAD","SUPPLIES AND SERVICES","IT HARDWARE & SOFTWARE COSTS","4116","P111997-SERVICE-Annual services/maintenace fee Stanstead",17/5/2021 00:00:00,"247416",2620.32,"WI0209","WI FI SPARK LIMITED",26/4/2021 00:00:00,30/5/2021 00:00:00,"P02-2022"
,"LEE VALLEY MARINA STANSTEAD","SUPPLIES AND SERVICES","IT HARDWARE & SOFTWARE COSTS","4116","ZEN INTERNET LTD",19/5/2021 00:00:00,"248027",31.32,"ZE0007","ZEN INTERNET LTD",26/4/2021 00:00:00,30/5/2021 00:00:00,"P02-2022"
,"LEE VALLEY CAMPSITE","SUPPLIES AND SERVICES","IT HARDWARE & SOFTWARE COSTS","4116","P111997-SERVICE-Annual services/maintenance fees Sewardstone",17/5/2021 00:00:00,"247416",2627.04,"WI0209","WI FI SPARK LIMITED",26/4/2021 00:00:00,30/5/2021 00:00:00,"P02-2022"
,"LEE VALLEY CARAVAN PARK","SUPPLIES AND SERVICES","IT HARDWARE & SOFTWARE COSTS","4116","P111997-SERVICE-Annual services/maintenace fee Dobbs",17/5/2021 00:00:00,"247416",3727.8,"WI0209","WI FI SPARK LIMITED",26/4/2021 00:00:00,30/5/2021 00:00:00,"P02-2022"
,"LEE VALLEY CARAVAN PARK","SUPPLIES AND SERVICES","IT HARDWARE & SOFTWARE COSTS","4116","P111950-SERVICE-Fibre connection for public Wi-Fi",17/5/2021 00:00:00,"247532",835,"PP0200","PPSNET LIMITED",26/4/2021 00:00:00,30/5/2021 00:00:00,"P02-2022"
,"LEE VALLEY CARAVAN PARK","SUPPLIES AND SERVICES","IT HARDWARE & SOFTWARE COSTS","4116","P111951-SERVICE-Fibre connection",17/5/2021 00:00:00,"247533",835,"PP0200","PPSNET LIMITED",26/4/2021 00:00:00,30/5/2021 00:00:00,"P02-2022"
,"LEE VALLEY VELOPARK","SUPPLIES AND SERVICES","IT HARDWARE & SOFTWARE COSTS","4116","P111997-SERVICE-Annual services/maintenace fee Velo",17/5/2021 00:00:00,"247416",8095.68,"WI0209","WI FI SPARK LIMITED",26/4/2021 00:00:00,30/5/2021 00:00:00,"P02-2022"
,"LV HOCKEY AND TENNIS CENTRE","SUPPLIES AND SERVICES","IT HARDWARE & SOFTWARE COSTS","4116","P111997-SERVICE-Annual services/maintenace fee HTC",17/5/2021 00:00:00,"247416",1283.52,"WI0209","WI FI SPARK LIMITED",26/4/2021 00:00:00,30/5/2021 00:00:00,"P02-2022"
,"LEE VALLEY RIDING CENTRE","SUPPLIES AND SERVICES","IT HARDWARE & SOFTWARE COSTS","4116","P111997-SERVICE-Annual services/maintenace fee Riding",17/5/2021 00:00:00,"247416",1283.52,"WI0209","WI FI SPARK LIMITED",26/4/2021 00:00:00,30/5/2021 00:00:00,"P02-2022"
,"LEE VALLEY RIDING CENTRE","SUPPLIES AND SERVICES","IT HARDWARE & SOFTWARE COSTS","4116","ZEN INTERNET LTD",12/5/2021 00:00:00,"247685",31.32,"ZE0007","ZEN INTERNET LTD",26/4/2021 00:00:00,30/5/2021 00:00:00,"P02-2022"
,"LEE VALLEY ICE CENTRE","SUPPLIES AND SERVICES","IT HARDWARE & SOFTWARE COSTS","4116","P111997-SERVICE-Annual services/maintenace fee Ice Centre",17/5/2021 00:00:00,"247416",1222.92,"WI0209","WI FI SPARK LIMITED",26/4/2021 00:00:00,30/5/2021 00:00:00,"P02-2022"
,"LEE VALLEY ICE CENTRE","SUPPLIES AND SERVICES","IT HARDWARE & SOFTWARE COSTS","4116","ZEN INTERNET LTD",24/5/2021 00:00:00,"248128",42,"ZE0007","ZEN INTERNET LTD",26/4/2021 00:00:00,30/5/2021 00:00:00,"P02-2022"
,"LV LEISURE CENTRE CAMPSITE","SUPPLIES AND SERVICES","IT HARDWARE & SOFTWARE COSTS","4116","P111997-SERVICE-Annual services/maintenace fee Picketts",17/5/2021 00:00:00,"247416",1961.04,"WI0209","WI FI SPARK LIMITED",26/4/2021 00:00:00,30/5/2021 00:00:00,"P02-2022"
,"LEE VALLEY ATHLETICS CENTRE","SUPPLIES AND SERVICES","IT HARDWARE & SOFTWARE COSTS","4116","P111997-SERVICE-Annual services/maintenace fee LVAC",17/5/2021 00:00:00,"247416",1548.12,"WI0209","WI FI SPARK LIMITED",26/4/2021 00:00:00,30/5/2021 00:00:00,"P02-2022"
,"LEE VALLEY WHITE WATER CENTRE","SUPPLIES AND SERVICES","IT HARDWARE & SOFTWARE COSTS","4116","P111997-SERVICE-Annual services/maintenace fee WWC",17/5/2021 00:00:00,"247416",6266.76,"WI0209","WI FI SPARK LIMITED",26/4/2021 00:00:00,30/5/2021 00:00:00,"P02-2022"
,"LEE VALLEY WHITE WATER CENTRE","SUPPLIES AND SERVICES","IT HARDWARE & SOFTWARE COSTS","4116","ZEN INTERNET LTD",25/5/2021 00:00:00,"248269",17.83,"ZE0007","ZEN INTERNET LTD",26/4/2021 00:00:00,30/5/2021 00:00:00,"P02-2022"
,"LEE VALLEY WHITE WATER CENTRE","SUPPLIES AND SERVICES","IT HARDWARE & SOFTWARE COSTS","4116","ZEN INTERNET LTD",25/5/2021 00:00:00,"248270",13.49,"ZE0007","ZEN INTERNET LTD",26/4/2021 00:00:00,30/5/2021 00:00:00,"P02-2022"
,"LEE VALLEY ATHLETICS CENTRE","SUPPLIES AND SERVICES","VENDING AGREEMENTS","4117","BRAKE BROTHERS LIMITED",10/5/2021 00:00:00,"247547",27.78,"BR0019","BRAKE BROTHERS LIMITED",26/4/2021 00:00:00,30/5/2021 00:00:00,"P02-2022"
,"LEE VALLEY ATHLETICS CENTRE","SUPPLIES AND SERVICES","VENDING AGREEMENTS","4117","BRAKE BROTHERS LIMITED",10/5/2021 00:00:00,"247547",502,"BR0019","BRAKE BROTHERS LIMITED",26/4/2021 00:00:00,30/5/2021 00:00:00,"P02-2022"
,"LEE VALLEY ATHLETICS CENTRE","SUPPLIES AND SERVICES","VENDING AGREEMENTS","4117","BRAKE BROTHERS LIMITED",10/5/2021 00:00:00,"247547",-529.78,"BR0019","BRAKE BROTHERS LIMITED",26/4/2021 00:00:00,30/5/2021 00:00:00,"P02-2022"
,"LEE VALLEY ATHLETICS CENTRE","SUPPLIES AND SERVICES","VENDING AGREEMENTS","4117","P112017-SERVICE-lvac inv 9296361201 30.4.21 vending stock",10/5/2021 00:00:00,"247547",529.78,"BR0019","BRAKE BROTHERS LIMITED",26/4/2021 00:00:00,30/5/2021 00:00:00,"P02-2022"
"R&B","INFORMATION TECHNOLOGY","SUPPLIES AND SERVICES","IT MAINTENANCE AGREEMENTS","4119","P111971-SERVICE-Provision of Software, infrastructure, storag",10/5/2021 00:00:00,"247222",4680,"IQ0022","IQUAL",26/4/2021 00:00:00,30/5/2021 00:00:00,"P02-2022"
,"LEE VALLEY MARINA SPRINGFIELD","SUPPLIES AND SERVICES","IT MAINTENANCE AGREEMENTS","4119","P112062-SERVICE-Support & Data May 21",17/5/2021 00:00:00,"247659",72.44,"CY0653","CYBERTILL",26/4/2021 00:00:00,30/5/2021 00:00:00,"P02-2022"
,"LEE VALLEY MARINA STANSTEAD","SUPPLIES AND SERVICES","IT MAINTENANCE AGREEMENTS","4119","P112062-SERVICE-Support & Data May 21",17/5/2021 00:00:00,"247659",72.44,"CY0653","CYBERTILL",26/4/2021 00:00:00,30/5/2021 00:00:00,"P02-2022"
,"LEE VALLEY CAMPSITE","SUPPLIES AND SERVICES","IT MAINTENANCE AGREEMENTS","4119","P111852-SERVICE-Monthlt Subscription may 21 - Oct 21 Sewardst",25/5/2021 00:00:00,"248155",145.5,"NE0218","NETGUIDES LIMITED",26/4/2021 00:00:00,30/5/2021 00:00:00,"P02-2022"
,"LEE VALLEY CARAVAN PARK","SUPPLIES AND SERVICES","IT MAINTENANCE AGREEMENTS","4119","P111852-SERVICE-Monthly Subscription May 21 - Oct 21 DW",25/5/2021 00:00:00,"248155",145.5,"NE0218","NETGUIDES LIMITED",26/4/2021 00:00:00,30/5/2021 00:00:00,"P02-2022"
"P&V","ALMOST WILD CAMPSITE","SUPPLIES AND SERVICES","IT MAINTENANCE AGREEMENTS","4119","P111852-SERVICE-Monthly Subscription May 21 - Oct 21 AWC",25/5/2021 00:00:00,"248155",145.5,"NE0218","NETGUIDES LIMITED",26/4/2021 00:00:00,30/5/2021 00:00:00,"P02-2022"
,"LV LEISURE CENTRE CAMPSITE","SUPPLIES AND SERVICES","IT MAINTENANCE AGREEMENTS","4119","P111852-SERVICE-Monthly Subscription May 21 - Oct 21 Edmonton",25/5/2021 00:00:00,"248155",145.5,"NE0218","NETGUIDES LIMITED",26/4/2021 00:00:00,30/5/2021 00:00:00,"P02-2022"
,"LV LEISURE CENTRE GOLF COURSE","SUPPLIES AND SERVICES","IT MAINTENANCE AGREEMENTS","4119","P112135-SERVICE-Digitickets April 2021",24/5/2021 00:00:00,"247770",936.88,"DI0304","DIGITAL TICKETING SYSTEMS LTD (DIGITICKETS)",26/4/2021 00:00:00,30/5/2021 00:00:00,"P02-2022"
"P&V","LEE VALLEY FARM HOLYFIELDHALL","EXPENDITURE FROM RENEWALS FUND","EXPENDITURE FROM RENEWALS FUND","4121","P110275-SERVICE-JCB 532-70 Agri Xtra (as quoted)",10/5/2021 00:00:00,"246995",81750,"OL0059","OLIVER LANDPOWER LIMITED",26/4/2021 00:00:00,30/5/2021 00:00:00,"P02-2022"
"P&V","LEE VALLEY FARM HOLYFIELDHALL","EXPENDITURE FROM RENEWALS FUND","EXPENDITURE FROM RENEWALS FUND","4121","P110275-SERVICE-JCB 532-70 Agri Xtra (as quoted)",10/5/2021 00:00:00,"247025",-33000,"OL0059","OLIVER LANDPOWER LIMITED",26/4/2021 00:00:00,30/5/2021 00:00:00,"P02-2022"
,"LV LEISURE CENTRE GOLF COURSE","SUPPLIES AND SERVICES","MATERIALS (GROUNDS MAINT)","4125","P111874-SERVICE-fertilser and chemicals",4/5/2021 00:00:00,"246672",975,"MR0420","MR AMENITY LTD",26/4/2021 00:00:00,30/5/2021 00:00:00,"P02-2022"
,"LV LEISURE CENTRE GOLF COURSE","SUPPLIES AND SERVICES","MATERIALS (GROUNDS MAINT)","4125","MR AMENITY LTD",4/5/2021 00:00:00,"246672",25,"MR0420","MR AMENITY LTD",26/4/2021 00:00:00,30/5/2021 00:00:00,"P02-2022"
,"LV LEISURE CENTRE GOLF COURSE","SUPPLIES AND SERVICES","MATERIALS (GROUNDS MAINT)","4125","MR AMENITY LTD",4/5/2021 00:00:00,"246672",-975,"MR0420","MR AMENITY LTD",26/4/2021 00:00:00,30/5/2021 00:00:00,"P02-2022"
,"LV LEISURE CENTRE GOLF COURSE","SUPPLIES AND SERVICES","MATERIALS (GROUNDS MAINT)","4125","MR AMENITY LTD",4/5/2021 00:00:00,"246672",950,"MR0420","MR AMENITY LTD",26/4/2021 00:00:00,30/5/2021 00:00:00,"P02-2022"
,"LV LEISURE CENTRE GOLF COURSE","SUPPLIES AND SERVICES","MATERIALS (GROUNDS MAINT)","4125","P111905-SERVICE-oil and filter",17/5/2021 00:00:00,"247544",515.93,"LE0279","REESINK TURFCARE UK LIMITED",26/4/2021 00:00:00,30/5/2021 00:00:00,"P02-2022"
"P&V","MYDDELTON HOUSE GARDENS","SUPPLIES AND SERVICES","MATERIALS (PLANTS & SHRUBS)","4126","BALL COLEGRAVE LTD",11/5/2021 00:00:00,"246739",424.49,"BA0627","BALL COLEGRAVE LTD",26/4/2021 00:00:00,30/5/2021 00:00:00,"P02-2022"
"P&V","MYDDELTON HOUSE GARDENS","SUPPLIES AND SERVICES","MATERIALS (PLANTS & SHRUBS)","4126","BALL COLEGRAVE LTD",11/5/2021 00:00:00,"247546",-424.49,"BA0627","BALL COLEGRAVE LTD",26/4/2021 00:00:00,30/5/2021 00:00:00,"P02-2022"
"P&V","MYDDELTON HOUSE GARDENS","SUPPLIES AND SERVICES","MATERIALS (PLANTS & SHRUBS)","4126","P111973-SERVICE-Plant order May 2021",18/5/2021 00:00:00,"247776",135.08,"CL0093","CLOCKHOUSE NURSERY",26/4/2021 00:00:00,30/5/2021 00:00:00,"P02-2022"
"P&V","MYDDELTON HOUSE GARDENS","SUPPLIES AND SERVICES","MATERIALS (PLANTS & SHRUBS)","4126","P111256-SERVICE-Agastache rugosa, 'Liquorice White' (60L) x 1",30/5/2021 00:00:00,"248287",2.21,"CH0298","CHILTERN SEEDS",26/4/2021 00:00:00,30/5/2021 00:00:00,"P02-2022"
"P&V","MYDDELTON HOUSE GARDENS","SUPPLIES AND SERVICES","MATERIALS (PLANTS & SHRUBS)","4126","P111256-SERVICE-Oenothera versicolor, 'Sunset Boulevard' - (9",30/5/2021 00:00:00,"248287",2.46,"CH0298","CHILTERN SEEDS",26/4/2021 00:00:00,30/5/2021 00:00:00,"P02-2022"
"P&V","MYDDELTON HOUSE GARDENS","SUPPLIES AND SERVICES","MATERIALS (PLANTS & SHRUBS)","4126","P111256-SERVICE-Geum triflorum - (627M) x 1",30/5/2021 00:00:00,"248287",2.46,"CH0298","CHILTERN SEEDS",26/4/2021 00:00:00,30/5/2021 00:00:00,"P02-2022"
"P&V","MYDDELTON HOUSE GARDENS","SUPPLIES AND SERVICES","MATERIALS (PLANTS & SHRUBS)","4126","P111256-SERVICE-Agastache nepetoides - (60N) x 1",30/5/2021 00:00:00,"248287",1.88,"CH0298","CHILTERN SEEDS",26/4/2021 00:00:00,30/5/2021 00:00:00,"P02-2022"
"P&V","MYDDELTON HOUSE GARDENS","SUPPLIES AND SERVICES","MATERIALS (PLANTS & SHRUBS)","4126","P111256-SERVICE-Tweedia caerulea, 'Heavenborn' - (1265G) x 1",30/5/2021 00:00:00,"248287",3.54,"CH0298","CHILTERN SEEDS",26/4/2021 00:00:00,30/5/2021 00:00:00,"P02-2022"
"P&V","MYDDELTON HOUSE GARDENS","SUPPLIES AND SERVICES","MATERIALS (PLANTS & SHRUBS)","4126","P111256-SERVICE-Scabiosa atropurpurea, 'Dwarf Mixed Colours'",30/5/2021 00:00:00,"248287",1.63,"CH0298","CHILTERN SEEDS",26/4/2021 00:00:00,30/5/2021 00:00:00,"P02-2022"
"P&V","MYDDELTON HOUSE GARDENS","SUPPLIES AND SERVICES","MATERIALS (PLANTS & SHRUBS)","4126","P111256-SERVICE-Verbena hastata, 'Pink Spires' - (1271C) x 1",30/5/2021 00:00:00,"248287",1.88,"CH0298","CHILTERN SEEDS",26/4/2021 00:00:00,30/5/2021 00:00:00,"P02-2022"
"P&V","MYDDELTON HOUSE GARDENS","SUPPLIES AND SERVICES","MATERIALS (PLANTS & SHRUBS)","4126","P111256-SERVICE-Lychnis chalcedonica - (829A) x 1",30/5/2021 00:00:00,"248287",1.63,"CH0298","CHILTERN SEEDS",26/4/2021 00:00:00,30/5/2021 00:00:00,"P02-2022"
"P&V","MYDDELTON HOUSE GARDENS","SUPPLIES AND SERVICES","MATERIALS (PLANTS & SHRUBS)","4126","P111256-SERVICE-Limonium sinuatum, Pastel Mixed - (811W) x 1",30/5/2021 00:00:00,"248287",1.88,"CH0298","CHILTERN SEEDS",26/4/2021 00:00:00,30/5/2021 00:00:00,"P02-2022"
"P&V","MYDDELTON HOUSE GARDENS","SUPPLIES AND SERVICES","MATERIALS (PLANTS & SHRUBS)","4126","P111256-SERVICE-Alonsoa meridionalis, 'Rebel' - (80X) x 1",30/5/2021 00:00:00,"248287",1.88,"CH0298","CHILTERN SEEDS",26/4/2021 00:00:00,30/5/2021 00:00:00,"P02-2022"
"P&V","MYDDELTON HOUSE GARDENS","SUPPLIES AND SERVICES","MATERIALS (PLANTS & SHRUBS)","4126","P111256-SERVICE-Alstroemeria pulchella, 'Mona Lisa' - (79K) x",30/5/2021 00:00:00,"248287",3.13,"CH0298","CHILTERN SEEDS",26/4/2021 00:00:00,30/5/2021 00:00:00,"P02-2022"
"P&V","MYDDELTON HOUSE GARDENS","SUPPLIES AND SERVICES","MATERIALS (PLANTS & SHRUBS)","4126","P111256-SERVICE-Helianthus annuus, 'Moonshine' - (673X) x 1",30/5/2021 00:00:00,"248287",1.63,"CH0298","CHILTERN SEEDS",26/4/2021 00:00:00,30/5/2021 00:00:00,"P02-2022"
"P&V","MYDDELTON HOUSE GARDENS","SUPPLIES AND SERVICES","MATERIALS (PLANTS & SHRUBS)","4126","P111256-SERVICE-Tripterocalyx wootonii - (5H) x 1",30/5/2021 00:00:00,"248287",3.21,"CH0298","CHILTERN SEEDS",26/4/2021 00:00:00,30/5/2021 00:00:00,"P02-2022"
"P&V","MYDDELTON HOUSE GARDENS","SUPPLIES AND SERVICES","MATERIALS (PLANTS & SHRUBS)","4126","P111256-SERVICE-Echinacea purpurea, 'Green Twister' - (491G)",30/5/2021 00:00:00,"248287",2.92,"CH0298","CHILTERN SEEDS",26/4/2021 00:00:00,30/5/2021 00:00:00,"P02-2022"
"P&V","MYDDELTON HOUSE GARDENS","SUPPLIES AND SERVICES","MATERIALS (PLANTS & SHRUBS)","4126","P111256-SERVICE-Asclepias tuberosa - (143 ) x 1",30/5/2021 00:00:00,"248287",2.21,"CH0298","CHILTERN SEEDS",26/4/2021 00:00:00,30/5/2021 00:00:00,"P02-2022"
"P&V","MYDDELTON HOUSE GARDENS","SUPPLIES AND SERVICES","MATERIALS (PLANTS & SHRUBS)","4126","P111256-SERVICE-Bean, Runner, 'Moonlight' - (1709C) x 1",30/5/2021 00:00:00,"248287",3.15,"CH0298","CHILTERN SEEDS",26/4/2021 00:00:00,30/5/2021 00:00:00,"P02-2022"
"P&V","MYDDELTON HOUSE GARDENS","SUPPLIES AND SERVICES","MATERIALS (PLANTS & SHRUBS)","4126","P111256-SERVICE-Pumpkin, 'Mammoth' or 'Hundredweight' -( 1362",30/5/2021 00:00:00,"248287",1.95,"CH0298","CHILTERN SEEDS",26/4/2021 00:00:00,30/5/2021 00:00:00,"P02-2022"
"P&V","MYDDELTON HOUSE GARDENS","SUPPLIES AND SERVICES","MATERIALS (PLANTS & SHRUBS)","4126","P111256-SERVICE-Dianthus knappii, 'Yellow Harmony' - (453L) x",30/5/2021 00:00:00,"248287",2.71,"CH0298","CHILTERN SEEDS",26/4/2021 00:00:00,30/5/2021 00:00:00,"P02-2022"
"P&V","MYDDELTON HOUSE GARDENS","SUPPLIES AND SERVICES","MATERIALS (PLANTS & SHRUBS)","4126","P111256-SERVICE-Asclepias curassavica, 'Apollo Orange' - (138",30/5/2021 00:00:00,"248287",1.63,"CH0298","CHILTERN SEEDS",26/4/2021 00:00:00,30/5/2021 00:00:00,"P02-2022"
"P&V","MYDDELTON HOUSE GARDENS","SUPPLIES AND SERVICES","MATERIALS (PLANTS & SHRUBS)","4126","P111256-SERVICE-Bean, Runner, 'Lady Di' - (1709A) x 1",30/5/2021 00:00:00,"248287",3.65,"CH0298","CHILTERN SEEDS",26/4/2021 00:00:00,30/5/2021 00:00:00,"P02-2022"
"P&V","MYDDELTON HOUSE GARDENS","SUPPLIES AND SERVICES","MATERIALS (PLANTS & SHRUBS)","4126","P111256-SERVICE-Cabbage, Winter & Ballhead, 'January King 3'",30/5/2021 00:00:00,"248287",2.25,"CH0298","CHILTERN SEEDS",26/4/2021 00:00:00,30/5/2021 00:00:00,"P02-2022"
"P&V","MYDDELTON HOUSE GARDENS","SUPPLIES AND SERVICES","MATERIALS (PLANTS & SHRUBS)","4126","P111256-SERVICE-Berkheya purpurea, 'Zulu Warrior' - (201F) x",30/5/2021 00:00:00,"248287",2.46,"CH0298","CHILTERN SEEDS",26/4/2021 00:00:00,30/5/2021 00:00:00,"P02-2022"
"P&V","MYDDELTON HOUSE GARDENS","SUPPLIES AND SERVICES","MATERIALS (PLANTS & SHRUBS)","4126","P111256-SERVICE-Carthamus tinctorius, 'Zanzibar' - (277P) x 1",30/5/2021 00:00:00,"248287",1.63,"CH0298","CHILTERN SEEDS",26/4/2021 00:00:00,30/5/2021 00:00:00,"P02-2022"
"P&V","MYDDELTON HOUSE GARDENS","SUPPLIES AND SERVICES","MATERIALS (PLANTS & SHRUBS)","4126","P111256-SERVICE-Basil, 'Mrs. Burns' Lemon' - (1376C) x 1",30/5/2021 00:00:00,"248287",1.95,"CH0298","CHILTERN SEEDS",26/4/2021 00:00:00,30/5/2021 00:00:00,"P02-2022"
,"LEE VALLEY MARINA SPRINGFIELD","SUPPLIES AND SERVICES","MATERIALS (TOOLS & PLANT)","4127","P111786-SERVICE-T300E Major Service Kit (Nitrile)",4/5/2021 00:00:00,"247274",634.84,"LE0059","LEE SANITATION LTD",26/4/2021 00:00:00,30/5/2021 00:00:00,"P02-2022"
,"LEE VALLEY MARINA SPRINGFIELD","SUPPLIES AND SERVICES","MATERIALS (TOOLS & PLANT)","4127","P112198-SERVICE-to Supply items as requested",30/5/2021 00:00:00,"248467",419.46,"EL0281","ELTHAM WELDING SUPPLIES LIMITED",26/4/2021 00:00:00,30/5/2021 00:00:00,"P02-2022"
,"STANSTEAD RECHARGEABLE WORKS","SUPPLIES AND SERVICES","MATERIALS (TOOLS & PLANT)","4127","P111902-SERVICE-marina services",10/5/2021 00:00:00,"247462",480,"WA0251","M J MARINE SERVICES",26/4/2021 00:00:00,30/5/2021 00:00:00,"P02-2022"
,"STANSTEAD RECHARGEABLE WORKS","SUPPLIES AND SERVICES","MATERIALS (TOOLS & PLANT)","4127","P112207-SERVICE-yard services",25/5/2021 00:00:00,"248280",690,"WA0251","M J MARINE SERVICES",26/4/2021 00:00:00,30/5/2021 00:00:00,"P02-2022"
,"STANSTEAD RECHARGEABLE WORKS","SUPPLIES AND SERVICES","MATERIALS (ENG OTHER)","4130","P111769-SERVICE-remove and fit engine to Lilliput nb",5/5/2021 00:00:00,"247313",2000,"EN0309","PRH ENGINEERING LIMITED",26/4/2021 00:00:00,30/5/2021 00:00:00,"P02-2022"
,"STANSTEAD RECHARGEABLE WORKS","SUPPLIES AND SERVICES","MATERIALS (ENG OTHER)","4130","P111862-SERVICE-Sanctuary parts",24/5/2021 00:00:00,"247458",692.54,"MI0200","MIDLAND CHANDLERS LIMITED",26/4/2021 00:00:00,30/5/2021 00:00:00,"P02-2022"
,"STANSTEAD RECHARGEABLE WORKS","SUPPLIES AND SERVICES","MATERIALS (ENG OTHER)","4130","P111571-SERVICE-mild steel- 40mmx3mm x2 flat bar",5/5/2021 00:00:00,"247468",1436,"PA0011","PARKSIDE STEEL (STOCKHOLDERS) LTD",26/4/2021 00:00:00,30/5/2021 00:00:00,"P02-2022"
,"STANSTEAD RECHARGEABLE WORKS","SUPPLIES AND SERVICES","MATERIALS (ENG OTHER)","4130","P111849-SERVICE-fabricate &supply gas locker",30/5/2021 00:00:00,"248492",215,"EN0309","PRH ENGINEERING LIMITED",26/4/2021 00:00:00,30/5/2021 00:00:00,"P02-2022"
,"LEE VALLEY CARAVAN PARK","SUPPLIES AND SERVICES","MATERIALS (ENG OTHER)","4130","P111660-SERVICE-Replace glass in button",4/5/2021 00:00:00,"247263",85,"DI0284","DIRECT WINDOWS & DOORS",26/4/2021 00:00:00,30/5/2021 00:00:00,"P02-2022"
,"LEE VALLEY WHITE WATER CENTRE","SUPPLIES AND SERVICES","MATERIALS (CHEMICALS)","4131","P111382-SERVICE-SO for Acid and Hydro for 10 weeks",4/5/2021 00:00:00,"247474",273.43,"AL0074","BRENNTAG UK GROUP LIMITED",26/4/2021 00:00:00,30/5/2021 00:00:00,"P02-2022"
,"LEE VALLEY WHITE WATER CENTRE","SUPPLIES AND SERVICES","MATERIALS (CHEMICALS)","4131","P111382-SERVICE-SO for Acid and Hydro for 10 weeks",10/5/2021 00:00:00,"247535",273.43,"AL0074","BRENNTAG UK GROUP LIMITED",26/4/2021 00:00:00,30/5/2021 00:00:00,"P02-2022"
,"LEE VALLEY WHITE WATER CENTRE","SUPPLIES AND SERVICES","MATERIALS (CHEMICALS)","4131","P111382-SERVICE-SO for Acid and Hydro for 10 weeks",25/5/2021 00:00:00,"248083",273.43,"AL0074","BRENNTAG UK GROUP LIMITED",26/4/2021 00:00:00,30/5/2021 00:00:00,"P02-2022"
,"LEE VALLEY WHITE WATER CENTRE","SUPPLIES AND SERVICES","MATERIALS (CHEMICALS)","4131","P111382-SERVICE-SO for Acid and Hydro for 10 weeks",30/5/2021 00:00:00,"248298",-70,"AL0074","BRENNTAG UK GROUP LIMITED",26/4/2021 00:00:00,30/5/2021 00:00:00,"P02-2022"
,"LEE VALLEY WHITE WATER CENTRE","SUPPLIES AND SERVICES","MATERIALS (CHEMICALS)","4131","P111382-SERVICE-SO for Acid and Hydro for 10 weeks",30/5/2021 00:00:00,"248299",273.43,"AL0074","BRENNTAG UK GROUP LIMITED",26/4/2021 00:00:00,30/5/2021 00:00:00,"P02-2022"
,"LEE VALLEY WHITE WATER CENTRE","SUPPLIES AND SERVICES","MATERIALS (CHEMICALS)","4131","P111382-SERVICE-SO for Acid and Hydro for 10 weeks",30/5/2021 00:00:00,"248313",176.2,"AL0074","BRENNTAG UK GROUP LIMITED",26/4/2021 00:00:00,30/5/2021 00:00:00,"P02-2022"
,"LV HOCKEY AND TENNIS CENTRE","SUPPLIES AND SERVICES","MATERIALS (MEDICAL)","4132","P111645-SERVICE-First aid order",30/5/2021 00:00:00,"248477",74.45,"SE0018","BRADY CORPORATION LIMITED/SETON",26/4/2021 00:00:00,30/5/2021 00:00:00,"P02-2022"
,"LEE VALLEY WHITE WATER CENTRE","SUPPLIES AND SERVICES","MATERIALS (MEDICAL)","4132","P111953-SERVICE-Firstaid Supplies - online order",11/5/2021 00:00:00,"247740",113.28,"SU0595","SUMMIT HYGIENE LTD",26/4/2021 00:00:00,30/5/2021 00:00:00,"P02-2022"
,"LEE VALLEY WHITE WATER CENTRE","SUPPLIES AND SERVICES","MATERIALS (MEDICAL)","4132","P111953-SERVICE-Firstaid Supplies - online order",24/5/2021 00:00:00,"248084",33.89,"SU0595","SUMMIT HYGIENE LTD",26/4/2021 00:00:00,30/5/2021 00:00:00,"P02-2022"
"P&V","LEE VALLEY FARM HOLYFIELDHALL","SUPPLIES AND SERVICES","FEED","4133","P112080-SERVICE-Minline Cattle Energy Protein",17/5/2021 00:00:00,"247514",789,"BO0246","FOR FARMERS UK LTD",26/4/2021 00:00:00,30/5/2021 00:00:00,"P02-2022"
"P&V","LEE VALLEY FARM HOLYFIELDHALL","SUPPLIES AND SERVICES","FEED","4133","P112081-SERVICE-Optima/Intamix",17/5/2021 00:00:00,"247534",11044.33,"BO0246","FOR FARMERS UK LTD",26/4/2021 00:00:00,30/5/2021 00:00:00,"P02-2022"
"P&V","LEE VALLEY FARM HOLYFIELDHALL","SUPPLIES AND SERVICES","FEED","4133","P112084-SERVICE-Nutrimol",17/5/2021 00:00:00,"247686",1639.68,"BO0246","FOR FARMERS UK LTD",26/4/2021 00:00:00,30/5/2021 00:00:00,"P02-2022"
"P&V","LEE VALLEY FARM HOLYFIELDHALL","SUPPLIES AND SERVICES","FEED","4133","P112028-SERVICE-Silegae Sheets as Quoted",30/5/2021 00:00:00,"248036",2240.1,"AR0460","ARK AGRICULTURE LTD",26/4/2021 00:00:00,30/5/2021 00:00:00,"P02-2022"
,"LEE VALLEY FARM HAYES HILL","SUPPLIES AND SERVICES","FEED","4133","P111785-SERVICE-125 bales hay",25/5/2021 00:00:00,"247238",500,"WI0053","J & D WILLIAMS",26/4/2021 00:00:00,30/5/2021 00:00:00,"P02-2022"
,"LEE VALLEY FARM HAYES HILL","SUPPLIES AND SERVICES","FEED","4133","P111785-SERVICE-125 bales straw",25/5/2021 00:00:00,"247238",281.25,"WI0053","J & D WILLIAMS",26/4/2021 00:00:00,30/5/2021 00:00:00,"P02-2022"
,"LEE VALLEY RIDING CENTRE","SUPPLIES AND SERVICES","FEED","4133","P111714-SERVICE-feed",4/5/2021 00:00:00,"246160",983.7,"DO0029","M C DOWLING & SONS",26/4/2021 00:00:00,30/5/2021 00:00:00,"P02-2022"
,"LEE VALLEY RIDING CENTRE","SUPPLIES AND SERVICES","FEED","4133","P111985-SERVICE-feed",24/5/2021 00:00:00,"247766",1260,"DO0029","M C DOWLING & SONS",26/4/2021 00:00:00,30/5/2021 00:00:00,"P02-2022"
,"LEE VALLEY RIDING CENTRE","SUPPLIES AND SERVICES","FEED","4133","P111985-SERVICE-feed",30/5/2021 00:00:00,"248318",370.6,"DO0029","M C DOWLING & SONS",26/4/2021 00:00:00,30/5/2021 00:00:00,"P02-2022"
,"LEE VALLEY RIDING CENTRE","SUPPLIES AND SERVICES","FEED","4133","M C DOWLING & SONS",30/5/2021 00:00:00,"248461",341.61,"DO0029","M C DOWLING & SONS",26/4/2021 00:00:00,30/5/2021 00:00:00,"P02-2022"
,"LEE VALLEY RIDING CENTRE","SUPPLIES AND SERVICES","FEED","4133","M C DOWLING & SONS",30/5/2021 00:00:00,"248461",1763.1,"DO0029","M C DOWLING & SONS",26/4/2021 00:00:00,30/5/2021 00:00:00,"P02-2022"
,"LEE VALLEY RIDING CENTRE","SUPPLIES AND SERVICES","FEED","4133","M C DOWLING & SONS",30/5/2021 00:00:00,"248461",-2104.71,"DO0029","M C DOWLING & SONS",26/4/2021 00:00:00,30/5/2021 00:00:00,"P02-2022"
,"LEE VALLEY RIDING CENTRE","SUPPLIES AND SERVICES","FEED","4133","P111985-SERVICE-feed",30/5/2021 00:00:00,"248461",2104.71,"DO0029","M C DOWLING & SONS",26/4/2021 00:00:00,30/5/2021 00:00:00,"P02-2022"
,"LEE VALLEY RIDING CENTRE","SUPPLIES AND SERVICES","FEED","4133","P111985-SERVICE-feed",30/5/2021 00:00:00,"248553",1262.05,"DO0029","M C DOWLING & SONS",26/4/2021 00:00:00,30/5/2021 00:00:00,"P02-2022"
,"LEE VALLEY RIDING CENTRE","SUPPLIES AND SERVICES","BEDDING","4134","P111714-SERVICE-bedding",4/5/2021 00:00:00,"246160",697.6,"DO0029","M C DOWLING & SONS",26/4/2021 00:00:00,30/5/2021 00:00:00,"P02-2022"
,"LEE VALLEY RIDING CENTRE","SUPPLIES AND SERVICES","BEDDING","4134","P111714-SERVICE-bedding",4/5/2021 00:00:00,"247061",2294.05,"DO0029","M C DOWLING & SONS",26/4/2021 00:00:00,30/5/2021 00:00:00,"P02-2022"
,"LEE VALLEY RIDING CENTRE","SUPPLIES AND SERVICES","BEDDING","4134","P111714-SERVICE-bedding",4/5/2021 00:00:00,"247219",630,"DO0029","M C DOWLING & SONS",26/4/2021 00:00:00,30/5/2021 00:00:00,"P02-2022"
,"LEE VALLEY RIDING CENTRE","SUPPLIES AND SERVICES","BEDDING","4134","P111985-SERVICE-bedding",10/5/2021 00:00:00,"247264",957.35,"DO0029","M C DOWLING & SONS",26/4/2021 00:00:00,30/5/2021 00:00:00,"P02-2022"
,"LEE VALLEY RIDING CENTRE","SUPPLIES AND SERVICES","BEDDING","4134","P111985-SERVICE-bedding",10/5/2021 00:00:00,"247311",1320.1,"DO0029","M C DOWLING & SONS",26/4/2021 00:00:00,30/5/2021 00:00:00,"P02-2022"
,"LEE VALLEY RIDING CENTRE","SUPPLIES AND SERVICES","BEDDING","4134","P111985-SERVICE-bedding",24/5/2021 00:00:00,"247766",1014.8,"DO0029","M C DOWLING & SONS",26/4/2021 00:00:00,30/5/2021 00:00:00,"P02-2022"
,"LEE VALLEY RIDING CENTRE","SUPPLIES AND SERVICES","BEDDING","4134","P111985-SERVICE-bedding",24/5/2021 00:00:00,"248050",1403.25,"DO0029","M C DOWLING & SONS",26/4/2021 00:00:00,30/5/2021 00:00:00,"P02-2022"
,"LEE VALLEY RIDING CENTRE","SUPPLIES AND SERVICES","BEDDING","4134","P111985-SERVICE-bedding",30/5/2021 00:00:00,"248318",304.5,"DO0029","M C DOWLING & SONS",26/4/2021 00:00:00,30/5/2021 00:00:00,"P02-2022"
"P&V","LEE VALLEY FARM HOLYFIELDHALL","SUPPLIES AND SERVICES","SPRAYS","4136","P111959-SERVICE-Roundup",11/5/2021 00:00:00,"247246",468.8,"HA0013","HARLOW AGRICULTURAL MERCHANTS",26/4/2021 00:00:00,30/5/2021 00:00:00,"P02-2022"
"P&V","LEE VALLEY FARM HOLYFIELDHALL","SUPPLIES AND SERVICES","FERTILIZER","4137","P112085-SERVICE-Soil Analysis Test",17/5/2021 00:00:00,"247699",210,"HA0013","HARLOW AGRICULTURAL MERCHANTS",26/4/2021 00:00:00,30/5/2021 00:00:00,"P02-2022"
"P&V","LEE VALLEY FARM HOLYFIELDHALL","SUPPLIES AND SERVICES","DAIRY SUNDRIES","4138","P111464-SERVICE-Dairy Sundries",10/5/2021 00:00:00,"241146",73.22,"MI0023","MILL DAIRY SERVICES",26/4/2021 00:00:00,30/5/2021 00:00:00,"P02-2022"
"P&V","LEE VALLEY FARM HOLYFIELDHALL","SUPPLIES AND SERVICES","DAIRY SUNDRIES","4138","P111464-SERVICE-Dairy Sundries",10/5/2021 00:00:00,"244235",57.75,"MI0023","MILL DAIRY SERVICES",26/4/2021 00:00:00,30/5/2021 00:00:00,"P02-2022"
"P&V","LEE VALLEY FARM HOLYFIELDHALL","SUPPLIES AND SERVICES","DAIRY SUNDRIES","4138","P111619-SERVICE-Dead Animal Removal",10/5/2021 00:00:00,"247466",58,"MA0074","W MARTIN & SON LIMITED",26/4/2021 00:00:00,30/5/2021 00:00:00,"P02-2022"
"P&V","LEE VALLEY FARM HOLYFIELDHALL","SUPPLIES AND SERVICES","DAIRY SUNDRIES","4138","P111464-SERVICE-Dairy Sundries",10/5/2021 00:00:00,"247475",182.32,"MI0023","MILL DAIRY SERVICES",26/4/2021 00:00:00,30/5/2021 00:00:00,"P02-2022"
"P&V","LEE VALLEY FARM HOLYFIELDHALL","SUPPLIES AND SERVICES","DAIRY SUNDRIES","4138","P111464-SERVICE-Dairy Sundries",17/5/2021 00:00:00,"247559",331.5,"MI0023","MILL DAIRY SERVICES",26/4/2021 00:00:00,30/5/2021 00:00:00,"P02-2022"
"P&V","LEE VALLEY FARM HOLYFIELDHALL","SUPPLIES AND SERVICES","DAIRY SUNDRIES","4138","P111464-SERVICE-Dairy Sundries",10/5/2021 00:00:00,"247655",-73.22,"MI0023","MILL DAIRY SERVICES",26/4/2021 00:00:00,30/5/2021 00:00:00,"P02-2022"
"P&V","LEE VALLEY FARM HOLYFIELDHALL","SUPPLIES AND SERVICES","DAIRY SUNDRIES","4138","P111464-SERVICE-Dairy Sundries",10/5/2021 00:00:00,"247656",-57.75,"MI0023","MILL DAIRY SERVICES",26/4/2021 00:00:00,30/5/2021 00:00:00,"P02-2022"
"P&V","LEE VALLEY FARM HOLYFIELDHALL","SUPPLIES AND SERVICES","DAIRY SUNDRIES","4138","P111772-SERVICE-Breeding Planner",17/5/2021 00:00:00,"247732",500,"CA0079","THE CATTLE BREEDING CONSULTANCY",26/4/2021 00:00:00,30/5/2021 00:00:00,"P02-2022"
"P&V","LEE VALLEY FARM HOLYFIELDHALL","SUPPLIES AND SERVICES","DAIRY SUNDRIES","4138","FARM & COUNTRY SUPPLIES LTD",17/5/2021 00:00:00,"247741",-134.22,"FA0099","FARM & COUNTRY SUPPLIES LTD",26/4/2021 00:00:00,30/5/2021 00:00:00,"P02-2022"
"P&V","LEE VALLEY FARM HOLYFIELDHALL","SUPPLIES AND SERVICES","DAIRY SUNDRIES","4138","P111472-SERVICE-Farm Sundries",17/5/2021 00:00:00,"247741",134.22,"FA0099","FARM & COUNTRY SUPPLIES LTD",26/4/2021 00:00:00,30/5/2021 00:00:00,"P02-2022"
"P&V","LEE VALLEY FARM HOLYFIELDHALL","SUPPLIES AND SERVICES","DAIRY SUNDRIES","4138","FARM & COUNTRY SUPPLIES LTD",17/5/2021 00:00:00,"247741",113.09,"FA0099","FARM & COUNTRY SUPPLIES LTD",26/4/2021 00:00:00,30/5/2021 00:00:00,"P02-2022"
"P&V","LEE VALLEY FARM HOLYFIELDHALL","SUPPLIES AND SERVICES","DAIRY SUNDRIES","4138","FARM & COUNTRY SUPPLIES LTD",17/5/2021 00:00:00,"247741",21.13,"FA0099","FARM & COUNTRY SUPPLIES LTD",26/4/2021 00:00:00,30/5/2021 00:00:00,"P02-2022"
"P&V","LEE VALLEY FARM HOLYFIELDHALL","SUPPLIES AND SERVICES","DAIRY SUNDRIES","4138","P111472-SERVICE-Farm Sundries",17/5/2021 00:00:00,"247742",115.83,"FA0099","FARM & COUNTRY SUPPLIES LTD",26/4/2021 00:00:00,30/5/2021 00:00:00,"P02-2022"
"P&V","LEE VALLEY FARM HOLYFIELDHALL","SUPPLIES AND SERVICES","DAIRY SUNDRIES","4138","P111619-SERVICE-Dead Animal Removal",17/5/2021 00:00:00,"247792",90,"MA0074","W MARTIN & SON LIMITED",26/4/2021 00:00:00,30/5/2021 00:00:00,"P02-2022"
"P&V","LEE VALLEY FARM HOLYFIELDHALL","SUPPLIES AND SERVICES","DAIRY SUNDRIES","4138","P111619-SERVICE-Dead Animal Removal",30/5/2021 00:00:00,"248062",54,"MA0074","W MARTIN & SON LIMITED",26/4/2021 00:00:00,30/5/2021 00:00:00,"P02-2022"
"P&V","LEE VALLEY FARM HOLYFIELDHALL","SUPPLIES AND SERVICES","DAIRY SUNDRIES","4138","P111464-SERVICE-Dairy Sundries",30/5/2021 00:00:00,"248300",83,"MI0023","MILL DAIRY SERVICES",26/4/2021 00:00:00,30/5/2021 00:00:00,"P02-2022"
"P&V","LEE VALLEY FARM HOLYFIELDHALL","SUPPLIES AND SERVICES","DAIRY SUNDRIES","4138","P112366-SERVICE-Liquid Nitrogen",30/5/2021 00:00:00,"248304",71,"GE0005","GENUS BREEDING LTD",26/4/2021 00:00:00,30/5/2021 00:00:00,"P02-2022"
"P&V","LEE VALLEY FARM HOLYFIELDHALL","SUPPLIES AND SERVICES","DAIRY SUNDRIES","4138","P111619-SERVICE-Dead Animal Removal",30/5/2021 00:00:00,"248571",54,"MA0074","W MARTIN & SON LIMITED",26/4/2021 00:00:00,30/5/2021 00:00:00,"P02-2022"
"P&V","MYDDELTON HOUSE GARDENS","SUPPLIES AND SERVICES","FOOD AND DRINK PURCHASES","4140","P109592-SERVICE-Milk delivery 2019-2020",4/5/2021 00:00:00,"247470",84.32,"HA0259","STUART BARTON-HAGGER LIMITED",26/4/2021 00:00:00,30/5/2021 00:00:00,"P02-2022"
,"LEE VALLEY VELOPARK","SUPPLIES AND SERVICES","FOOD AND DRINK PURCHASES","4140","P112132-SERVICE-F&B",17/5/2021 00:00:00,"247840",82.14,"360001","BIDFOOD",26/4/2021 00:00:00,30/5/2021 00:00:00,"P02-2022"
,"LEE VALLEY VELOPARK","SUPPLIES AND SERVICES","FOOD AND DRINK PURCHASES","4140","BIDFOOD",17/5/2021 00:00:00,"247841",-169.25,"360001","BIDFOOD",26/4/2021 00:00:00,30/5/2021 00:00:00,"P02-2022"
,"LEE VALLEY VELOPARK","SUPPLIES AND SERVICES","FOOD AND DRINK PURCHASES","4140","BIDFOOD",17/5/2021 00:00:00,"247841",67.48,"360001","BIDFOOD",26/4/2021 00:00:00,30/5/2021 00:00:00,"P02-2022"
,"LEE VALLEY VELOPARK","SUPPLIES AND SERVICES","FOOD AND DRINK PURCHASES","4140","BIDFOOD",17/5/2021 00:00:00,"247841",101.77,"360001","BIDFOOD",26/4/2021 00:00:00,30/5/2021 00:00:00,"P02-2022"
,"LEE VALLEY VELOPARK","SUPPLIES AND SERVICES","FOOD AND DRINK PURCHASES","4140","P112132-SERVICE-F&B",17/5/2021 00:00:00,"247841",169.25,"360001","BIDFOOD",26/4/2021 00:00:00,30/5/2021 00:00:00,"P02-2022"
,"LV HOCKEY AND TENNIS CENTRE","SUPPLIES AND SERVICES","FOOD AND DRINK PURCHASES","4140","P111843-SERVICE-F&B - Drinks",4/5/2021 00:00:00,"247190",272.58,"360001","BIDFOOD",26/4/2021 00:00:00,30/5/2021 00:00:00,"P02-2022"
,"LEE VALLEY VELOPARK CATERING","SUPPLIES AND SERVICES","FOOD AND DRINK PURCHASES","4140","P112125-SERVICE-F&B",17/5/2021 00:00:00,"247715",231.62,"360001","BIDFOOD",26/4/2021 00:00:00,30/5/2021 00:00:00,"P02-2022"
,"LEE VALLEY VELOPARK CATERING","SUPPLIES AND SERVICES","FOOD AND DRINK PURCHASES","4140","BIDFOOD",17/5/2021 00:00:00,"248042",43.34,"360001","BIDFOOD",26/4/2021 00:00:00,30/5/2021 00:00:00,"P02-2022"
,"LEE VALLEY VELOPARK CATERING","SUPPLIES AND SERVICES","FOOD AND DRINK PURCHASES","4140","BIDFOOD",17/5/2021 00:00:00,"248042",122.04,"360001","BIDFOOD",26/4/2021 00:00:00,30/5/2021 00:00:00,"P02-2022"
,"LEE VALLEY VELOPARK CATERING","SUPPLIES AND SERVICES","FOOD AND DRINK PURCHASES","4140","BIDFOOD",17/5/2021 00:00:00,"248042",-165.38,"360001","BIDFOOD",26/4/2021 00:00:00,30/5/2021 00:00:00,"P02-2022"
,"LEE VALLEY VELOPARK CATERING","SUPPLIES AND SERVICES","FOOD AND DRINK PURCHASES","4140","P112133-SERVICE-F&B",17/5/2021 00:00:00,"248042",165.38,"360001","BIDFOOD",26/4/2021 00:00:00,30/5/2021 00:00:00,"P02-2022"
,"LV HOCKEY AND TENNIS CATERING","SUPPLIES AND SERVICES","FOOD AND DRINK PURCHASES","4140","P112266-SERVICE-F&B",30/5/2021 00:00:00,"248080",209.24,"SI0589","SIMPLY LUNCH LTD",26/4/2021 00:00:00,30/5/2021 00:00:00,"P02-2022"
,"LV HOCKEY AND TENNIS CATERING","SUPPLIES AND SERVICES","FOOD AND DRINK PURCHASES","4140","P112271-SERVICE-F&B",30/5/2021 00:00:00,"248125",27.96,"360001","BIDFOOD",26/4/2021 00:00:00,30/5/2021 00:00:00,"P02-2022"
,"LV WHITE WATER CATERING","SUPPLIES AND SERVICES","FOOD AND DRINK PURCHASES","4140","BIDFOOD",10/5/2021 00:00:00,"246774",-316.83,"360001","BIDFOOD",26/4/2021 00:00:00,30/5/2021 00:00:00,"P02-2022"
,"LV WHITE WATER CATERING","SUPPLIES AND SERVICES","FOOD AND DRINK PURCHASES","4140","P111642-SERVICE-food supplies wc 110421",10/5/2021 00:00:00,"246774",316.83,"360001","BIDFOOD",26/4/2021 00:00:00,30/5/2021 00:00:00,"P02-2022"
,"LV WHITE WATER CATERING","SUPPLIES AND SERVICES","FOOD AND DRINK PURCHASES","4140","BIDFOOD",10/5/2021 00:00:00,"246774",75.02,"360001","BIDFOOD",26/4/2021 00:00:00,30/5/2021 00:00:00,"P02-2022"
,"LV WHITE WATER CATERING","SUPPLIES AND SERVICES","FOOD AND DRINK PURCHASES","4140","BIDFOOD",10/5/2021 00:00:00,"246774",241.81,"360001","BIDFOOD",26/4/2021 00:00:00,30/5/2021 00:00:00,"P02-2022"
,"LV WHITE WATER CATERING","SUPPLIES AND SERVICES","FOOD AND DRINK PURCHASES","4140","P111637-SERVICE-cups lids",4/5/2021 00:00:00,"246896",314.44,"CA0585","CAFE CONNECTIONS",26/4/2021 00:00:00,30/5/2021 00:00:00,"P02-2022"
,"LV WHITE WATER CATERING","SUPPLIES AND SERVICES","FOOD AND DRINK PURCHASES","4140","P111651-SERVICE-boxes",4/5/2021 00:00:00,"246932",110.42,"CA0585","CAFE CONNECTIONS",26/4/2021 00:00:00,30/5/2021 00:00:00,"P02-2022"
,"LV WHITE WATER CATERING","SUPPLIES AND SERVICES","FOOD AND DRINK PURCHASES","4140","P111642-SERVICE-food supplies wc 110421",10/5/2021 00:00:00,"247043",328.43,"360001","BIDFOOD",26/4/2021 00:00:00,30/5/2021 00:00:00,"P02-2022"
,"LV WHITE WATER CATERING","SUPPLIES AND SERVICES","FOOD AND DRINK PURCHASES","4140","BIDFOOD",10/5/2021 00:00:00,"247043",-328.43,"360001","BIDFOOD",26/4/2021 00:00:00,30/5/2021 00:00:00,"P02-2022"
,"LV WHITE WATER CATERING","SUPPLIES AND SERVICES","FOOD AND DRINK PURCHASES","4140","BIDFOOD",10/5/2021 00:00:00,"247043",158.4,"360001","BIDFOOD",26/4/2021 00:00:00,30/5/2021 00:00:00,"P02-2022"
,"LV WHITE WATER CATERING","SUPPLIES AND SERVICES","FOOD AND DRINK PURCHASES","4140","BIDFOOD",10/5/2021 00:00:00,"247043",170.03,"360001","BIDFOOD",26/4/2021 00:00:00,30/5/2021 00:00:00,"P02-2022"
,"LV WHITE WATER CATERING","SUPPLIES AND SERVICES","FOOD AND DRINK PURCHASES","4140","BIDFOOD",17/5/2021 00:00:00,"247044",854.08,"360001","BIDFOOD",26/4/2021 00:00:00,30/5/2021 00:00:00,"P02-2022"
,"LV WHITE WATER CATERING","SUPPLIES AND SERVICES","FOOD AND DRINK PURCHASES","4140","BIDFOOD",17/5/2021 00:00:00,"247044",164.06,"360001","BIDFOOD",26/4/2021 00:00:00,30/5/2021 00:00:00,"P02-2022"
,"LV WHITE WATER CATERING","SUPPLIES AND SERVICES","FOOD AND DRINK PURCHASES","4140","BIDFOOD",17/5/2021 00:00:00,"247044",-1018.14,"360001","BIDFOOD",26/4/2021 00:00:00,30/5/2021 00:00:00,"P02-2022"
,"LV WHITE WATER CATERING","SUPPLIES AND SERVICES","FOOD AND DRINK PURCHASES","4140","P112000-SERVICE-snacks",17/5/2021 00:00:00,"247044",1018.14,"360001","BIDFOOD",26/4/2021 00:00:00,30/5/2021 00:00:00,"P02-2022"
,"LV WHITE WATER CATERING","SUPPLIES AND SERVICES","FOOD AND DRINK PURCHASES","4140","P111776-SERVICE-food & drinks",4/5/2021 00:00:00,"247192",611.49,"360001","BIDFOOD",26/4/2021 00:00:00,30/5/2021 00:00:00,"P02-2022"
,"LV WHITE WATER CATERING","SUPPLIES AND SERVICES","FOOD AND DRINK PURCHASES","4140","BIDFOOD",4/5/2021 00:00:00,"247192",381.66,"360001","BIDFOOD",26/4/2021 00:00:00,30/5/2021 00:00:00,"P02-2022"
,"LV WHITE WATER CATERING","SUPPLIES AND SERVICES","FOOD AND DRINK PURCHASES","4140","BIDFOOD",4/5/2021 00:00:00,"247192",229.83,"360001","BIDFOOD",26/4/2021 00:00:00,30/5/2021 00:00:00,"P02-2022"
,"LV WHITE WATER CATERING","SUPPLIES AND SERVICES","FOOD AND DRINK PURCHASES","4140","BIDFOOD",4/5/2021 00:00:00,"247192",-611.49,"360001","BIDFOOD",26/4/2021 00:00:00,30/5/2021 00:00:00,"P02-2022"
,"LV WHITE WATER CATERING","SUPPLIES AND SERVICES","FOOD AND DRINK PURCHASES","4140","P111552-SERVICE-sandwiches",10/5/2021 00:00:00,"247267",581.27,"AN0324","ANCHOR CATERING",26/4/2021 00:00:00,30/5/2021 00:00:00,"P02-2022"
,"LV WHITE WATER CATERING","SUPPLIES AND SERVICES","FOOD AND DRINK PURCHASES","4140","P111366-SERVICE-food for opeoning",10/5/2021 00:00:00,"247280",87.01,"360001","BIDFOOD",26/4/2021 00:00:00,30/5/2021 00:00:00,"P02-2022"
,"LV WHITE WATER CATERING","SUPPLIES AND SERVICES","FOOD AND DRINK PURCHASES","4140","P111867-SERVICE-drinks snacks",10/5/2021 00:00:00,"247281",240.64,"360001","BIDFOOD",26/4/2021 00:00:00,30/5/2021 00:00:00,"P02-2022"
,"LV WHITE WATER CATERING","SUPPLIES AND SERVICES","FOOD AND DRINK PURCHASES","4140","BIDFOOD",10/5/2021 00:00:00,"247281",62.9,"360001","BIDFOOD",26/4/2021 00:00:00,30/5/2021 00:00:00,"P02-2022"
,"LV WHITE WATER CATERING","SUPPLIES AND SERVICES","FOOD AND DRINK PURCHASES","4140","BIDFOOD",10/5/2021 00:00:00,"247281",-240.64,"360001","BIDFOOD",26/4/2021 00:00:00,30/5/2021 00:00:00,"P02-2022"
,"LV WHITE WATER CATERING","SUPPLIES AND SERVICES","FOOD AND DRINK PURCHASES","4140","BIDFOOD",10/5/2021 00:00:00,"247281",177.74,"360001","BIDFOOD",26/4/2021 00:00:00,30/5/2021 00:00:00,"P02-2022"
,"LV WHITE WATER CATERING","SUPPLIES AND SERVICES","FOOD AND DRINK PURCHASES","4140","P111032-SERVICE-deep clean",18/5/2021 00:00:00,"247304",795,"KI0120","KITCHEN & DUCT CLEANING LTD",26/4/2021 00:00:00,30/5/2021 00:00:00,"P02-2022"
,"LV WHITE WATER CATERING","SUPPLIES AND SERVICES","FOOD AND DRINK PURCHASES","4140","P111866-SERVICE-cups lids",10/5/2021 00:00:00,"247438",287.16,"CA0585","CAFE CONNECTIONS",26/4/2021 00:00:00,30/5/2021 00:00:00,"P02-2022"
,"LV WHITE WATER CATERING","SUPPLIES AND SERVICES","FOOD AND DRINK PURCHASES","4140","P111867-SERVICE-drinks snacks",10/5/2021 00:00:00,"247454",587.23,"360001","BIDFOOD",26/4/2021 00:00:00,30/5/2021 00:00:00,"P02-2022"
,"LV WHITE WATER CATERING","SUPPLIES AND SERVICES","FOOD AND DRINK PURCHASES","4140","BIDFOOD",10/5/2021 00:00:00,"247454",-587.23,"360001","BIDFOOD",26/4/2021 00:00:00,30/5/2021 00:00:00,"P02-2022"
,"LV WHITE WATER CATERING","SUPPLIES AND SERVICES","FOOD AND DRINK PURCHASES","4140","BIDFOOD",10/5/2021 00:00:00,"247454",158.84,"360001","BIDFOOD",26/4/2021 00:00:00,30/5/2021 00:00:00,"P02-2022"
,"LV WHITE WATER CATERING","SUPPLIES AND SERVICES","FOOD AND DRINK PURCHASES","4140","BIDFOOD",10/5/2021 00:00:00,"247454",428.39,"360001","BIDFOOD",26/4/2021 00:00:00,30/5/2021 00:00:00,"P02-2022"
,"LV WHITE WATER CATERING","SUPPLIES AND SERVICES","FOOD AND DRINK PURCHASES","4140","P111864-SERVICE-coffee",10/5/2021 00:00:00,"247456",478.78,"RO0216","ROMBOUTS COFFEE GB LIMITED",26/4/2021 00:00:00,30/5/2021 00:00:00,"P02-2022"
,"LV WHITE WATER CATERING","SUPPLIES AND SERVICES","FOOD AND DRINK PURCHASES","4140","P111799-SERVICE-sandwiches",17/5/2021 00:00:00,"247491",486.6,"AN0324","ANCHOR CATERING",26/4/2021 00:00:00,30/5/2021 00:00:00,"P02-2022"
,"LV WHITE WATER CATERING","SUPPLIES AND SERVICES","FOOD AND DRINK PURCHASES","4140","P111893-SERVICE-till rolls",24/5/2021 00:00:00,"247557",127.92,"TH0008","JKL SOLUTIONS LTD",26/4/2021 00:00:00,30/5/2021 00:00:00,"P02-2022"
,"LV WHITE WATER CATERING","SUPPLIES AND SERVICES","FOOD AND DRINK PURCHASES","4140","BIDFOOD",10/5/2021 00:00:00,"247716",192.1,"360001","BIDFOOD",26/4/2021 00:00:00,30/5/2021 00:00:00,"P02-2022"
,"LV WHITE WATER CATERING","SUPPLIES AND SERVICES","FOOD AND DRINK PURCHASES","4140","BIDFOOD",10/5/2021 00:00:00,"247716",380.27,"360001","BIDFOOD",26/4/2021 00:00:00,30/5/2021 00:00:00,"P02-2022"
,"LV WHITE WATER CATERING","SUPPLIES AND SERVICES","FOOD AND DRINK PURCHASES","4140","BIDFOOD",10/5/2021 00:00:00,"247716",-572.37,"360001","BIDFOOD",26/4/2021 00:00:00,30/5/2021 00:00:00,"P02-2022"
,"LV WHITE WATER CATERING","SUPPLIES AND SERVICES","FOOD AND DRINK PURCHASES","4140","P111972-SERVICE-supplies food",10/5/2021 00:00:00,"247716",572.37,"360001","BIDFOOD",26/4/2021 00:00:00,30/5/2021 00:00:00,"P02-2022"
,"LV WHITE WATER CATERING","SUPPLIES AND SERVICES","FOOD AND DRINK PURCHASES","4140","P111844-SERVICE-sandwiches",17/5/2021 00:00:00,"247795",374.77,"AN0324","ANCHOR CATERING",26/4/2021 00:00:00,30/5/2021 00:00:00,"P02-2022"
,"LV WHITE WATER CATERING","SUPPLIES AND SERVICES","FOOD AND DRINK PURCHASES","4140","P111972-SERVICE-supplies food",17/5/2021 00:00:00,"247842",-5.4,"360001","BIDFOOD",26/4/2021 00:00:00,30/5/2021 00:00:00,"P02-2022"
,"LV WHITE WATER CATERING","SUPPLIES AND SERVICES","FOOD AND DRINK PURCHASES","4140","P111972-SERVICE-supplies food",17/5/2021 00:00:00,"247843",-10.28,"360001","BIDFOOD",26/4/2021 00:00:00,30/5/2021 00:00:00,"P02-2022"
,"LV WHITE WATER CATERING","SUPPLIES AND SERVICES","FOOD AND DRINK PURCHASES","4140","P112073-SERVICE-coffee cups",17/5/2021 00:00:00,"247876",256.95,"CA0585","CAFE CONNECTIONS",26/4/2021 00:00:00,30/5/2021 00:00:00,"P02-2022"
,"LV WHITE WATER CATERING","SUPPLIES AND SERVICES","FOOD AND DRINK PURCHASES","4140","ROMBOUTS COFFEE GB LIMITED",17/5/2021 00:00:00,"248028",-163.72,"RO0216","ROMBOUTS COFFEE GB LIMITED",26/4/2021 00:00:00,30/5/2021 00:00:00,"P02-2022"
,"LV WHITE WATER CATERING","SUPPLIES AND SERVICES","FOOD AND DRINK PURCHASES","4140","ROMBOUTS COFFEE GB LIMITED",17/5/2021 00:00:00,"248028",146.26,"RO0216","ROMBOUTS COFFEE GB LIMITED",26/4/2021 00:00:00,30/5/2021 00:00:00,"P02-2022"
,"LV WHITE WATER CATERING","SUPPLIES AND SERVICES","FOOD AND DRINK PURCHASES","4140","P112067-SERVICE-cooffee",17/5/2021 00:00:00,"248028",163.72,"RO0216","ROMBOUTS COFFEE GB LIMITED",26/4/2021 00:00:00,30/5/2021 00:00:00,"P02-2022"
,"LV WHITE WATER CATERING","SUPPLIES AND SERVICES","FOOD AND DRINK PURCHASES","4140","ROMBOUTS COFFEE GB LIMITED",17/5/2021 00:00:00,"248028",17.46,"RO0216","ROMBOUTS COFFEE GB LIMITED",26/4/2021 00:00:00,30/5/2021 00:00:00,"P02-2022"
,"LV WHITE WATER CATERING","SUPPLIES AND SERVICES","FOOD AND DRINK PURCHASES","4140","BIDFOOD",17/5/2021 00:00:00,"248041",209.07,"360001","BIDFOOD",26/4/2021 00:00:00,30/5/2021 00:00:00,"P02-2022"
,"LV WHITE WATER CATERING","SUPPLIES AND SERVICES","FOOD AND DRINK PURCHASES","4140","BIDFOOD",17/5/2021 00:00:00,"248041",223.45,"360001","BIDFOOD",26/4/2021 00:00:00,30/5/2021 00:00:00,"P02-2022"
,"LV WHITE WATER CATERING","SUPPLIES AND SERVICES","FOOD AND DRINK PURCHASES","4140","BIDFOOD",17/5/2021 00:00:00,"248041",-432.52,"360001","BIDFOOD",26/4/2021 00:00:00,30/5/2021 00:00:00,"P02-2022"
,"LV WHITE WATER CATERING","SUPPLIES AND SERVICES","FOOD AND DRINK PURCHASES","4140","P112074-SERVICE-snaccks and drinks",17/5/2021 00:00:00,"248041",432.52,"360001","BIDFOOD",26/4/2021 00:00:00,30/5/2021 00:00:00,"P02-2022"
,"LV WHITE WATER CATERING","SUPPLIES AND SERVICES","FOOD AND DRINK PURCHASES","4140","P112066-SERVICE-coffee machine location",24/5/2021 00:00:00,"248094",287.5,"RO0216","ROMBOUTS COFFEE GB LIMITED",26/4/2021 00:00:00,30/5/2021 00:00:00,"P02-2022"
,"LV WHITE WATER CATERING","SUPPLIES AND SERVICES","FOOD AND DRINK PURCHASES","4140","BIDFOOD",24/5/2021 00:00:00,"248124",527.57,"360001","BIDFOOD",26/4/2021 00:00:00,30/5/2021 00:00:00,"P02-2022"
,"LV WHITE WATER CATERING","SUPPLIES AND SERVICES","FOOD AND DRINK PURCHASES","4140","BIDFOOD",24/5/2021 00:00:00,"248124",356.23,"360001","BIDFOOD",26/4/2021 00:00:00,30/5/2021 00:00:00,"P02-2022"
,"LV WHITE WATER CATERING","SUPPLIES AND SERVICES","FOOD AND DRINK PURCHASES","4140","BIDFOOD",24/5/2021 00:00:00,"248124",-883.8,"360001","BIDFOOD",26/4/2021 00:00:00,30/5/2021 00:00:00,"P02-2022"
,"LV WHITE WATER CATERING","SUPPLIES AND SERVICES","FOOD AND DRINK PURCHASES","4140","P112138-SERVICE-sandwiches",24/5/2021 00:00:00,"248124",883.8,"360001","BIDFOOD",26/4/2021 00:00:00,30/5/2021 00:00:00,"P02-2022"
,"LV WHITE WATER CATERING","SUPPLIES AND SERVICES","FOOD AND DRINK PURCHASES","4140","P112067-SERVICE-cooffee",24/5/2021 00:00:00,"248126",296.06,"RO0216","ROMBOUTS COFFEE GB LIMITED",26/4/2021 00:00:00,30/5/2021 00:00:00,"P02-2022"
,"LV WHITE WATER CATERING","SUPPLIES AND SERVICES","FOOD AND DRINK PURCHASES","4140","ROMBOUTS COFFEE GB LIMITED",24/5/2021 00:00:00,"248126",28,"RO0216","ROMBOUTS COFFEE GB LIMITED",26/4/2021 00:00:00,30/5/2021 00:00:00,"P02-2022"
,"LV WHITE WATER CATERING","SUPPLIES AND SERVICES","FOOD AND DRINK PURCHASES","4140","ROMBOUTS COFFEE GB LIMITED",24/5/2021 00:00:00,"248126",268.06,"RO0216","ROMBOUTS COFFEE GB LIMITED",26/4/2021 00:00:00,30/5/2021 00:00:00,"P02-2022"
,"LV WHITE WATER CATERING","SUPPLIES AND SERVICES","FOOD AND DRINK PURCHASES","4140","ROMBOUTS COFFEE GB LIMITED",24/5/2021 00:00:00,"248126",-296.06,"RO0216","ROMBOUTS COFFEE GB LIMITED",26/4/2021 00:00:00,30/5/2021 00:00:00,"P02-2022"
,"LV WHITE WATER CATERING","SUPPLIES AND SERVICES","FOOD AND DRINK PURCHASES","4140","P112001-SERVICE-sandwiches wc 100521",24/5/2021 00:00:00,"248135",324.12,"AN0324","ANCHOR CATERING",26/4/2021 00:00:00,30/5/2021 00:00:00,"P02-2022"
,"LV WHITE WATER CATERING","SUPPLIES AND SERVICES","FOOD AND DRINK PURCHASES","4140","P111999-SERVICE-deep clean kitchen",30/5/2021 00:00:00,"248137",945,"KI0120","KITCHEN & DUCT CLEANING LTD",26/4/2021 00:00:00,30/5/2021 00:00:00,"P02-2022"
,"LV WHITE WATER CATERING","SUPPLIES AND SERVICES","FOOD AND DRINK PURCHASES","4140","P112186-SERVICE-disposables",24/5/2021 00:00:00,"248259",91.91,"CA0585","CAFE CONNECTIONS",26/4/2021 00:00:00,30/5/2021 00:00:00,"P02-2022"
,"LV WHITE WATER CATERING","SUPPLIES AND SERVICES","FOOD AND DRINK PURCHASES","4140","P112186-SERVICE-disposables",24/5/2021 00:00:00,"248260",25.71,"CA0585","CAFE CONNECTIONS",26/4/2021 00:00:00,30/5/2021 00:00:00,"P02-2022"
,"LV WHITE WATER CATERING","SUPPLIES AND SERVICES","FOOD AND DRINK PURCHASES","4140","P112186-SERVICE-disposables",30/5/2021 00:00:00,"248301",35.57,"CA0585","CAFE CONNECTIONS",26/4/2021 00:00:00,30/5/2021 00:00:00,"P02-2022"
,"LV WHITE WATER CATERING","SUPPLIES AND SERVICES","FOOD AND DRINK PURCHASES","4140","P112197-SERVICE-kitchenn food",30/5/2021 00:00:00,"248306",336.99,"360001","BIDFOOD",26/4/2021 00:00:00,30/5/2021 00:00:00,"P02-2022"
,"LV WHITE WATER CATERING","SUPPLIES AND SERVICES","FOOD AND DRINK PURCHASES","4140","BIDFOOD",30/5/2021 00:00:00,"248306",-336.99,"360001","BIDFOOD",26/4/2021 00:00:00,30/5/2021 00:00:00,"P02-2022"
,"LV WHITE WATER CATERING","SUPPLIES AND SERVICES","FOOD AND DRINK PURCHASES","4140","BIDFOOD",30/5/2021 00:00:00,"248306",257.4,"360001","BIDFOOD",26/4/2021 00:00:00,30/5/2021 00:00:00,"P02-2022"
,"LV WHITE WATER CATERING","SUPPLIES AND SERVICES","FOOD AND DRINK PURCHASES","4140","BIDFOOD",30/5/2021 00:00:00,"248306",79.59,"360001","BIDFOOD",26/4/2021 00:00:00,30/5/2021 00:00:00,"P02-2022"
,"LV WHITE WATER CATERING","SUPPLIES AND SERVICES","FOOD AND DRINK PURCHASES","4140","P112192-SERVICE-cakes",30/5/2021 00:00:00,"248307",269.48,"360001","BIDFOOD",26/4/2021 00:00:00,30/5/2021 00:00:00,"P02-2022"
,"LV WHITE WATER CATERING","SUPPLIES AND SERVICES","FOOD AND DRINK PURCHASES","4140","P112139-SERVICE-sandwiches",30/5/2021 00:00:00,"248329",621.49,"AN0324","ANCHOR CATERING",26/4/2021 00:00:00,30/5/2021 00:00:00,"P02-2022"
,"LV WHITE WATER CATERING","SUPPLIES AND SERVICES","FOOD AND DRINK PURCHASES","4140","P112200-SERVICE-sandwiches & hot sandwiches fireman extra",30/5/2021 00:00:00,"248330",232.64,"AN0324","ANCHOR CATERING",26/4/2021 00:00:00,30/5/2021 00:00:00,"P02-2022"
,"LV WHITE WATER CATERING","SUPPLIES AND SERVICES","FOOD AND DRINK PURCHASES","4140","P112200-SERVICE-sandwiches & hot sandwiches fireman extra",30/5/2021 00:00:00,"248331",343.12,"AN0324","ANCHOR CATERING",26/4/2021 00:00:00,30/5/2021 00:00:00,"P02-2022"
,"LV WHITE WATER CATERING","SUPPLIES AND SERVICES","FOOD AND DRINK PURCHASES","4140","P112291-SERVICE-cups",30/5/2021 00:00:00,"248470",169.49,"CA0585","CAFE CONNECTIONS",26/4/2021 00:00:00,30/5/2021 00:00:00,"P02-2022"
,"LV WHITE WATER CATERING","SUPPLIES AND SERVICES","FOOD AND DRINK PURCHASES","4140","BIDFOOD",30/5/2021 00:00:00,"248507",650.21,"360001","BIDFOOD",26/4/2021 00:00:00,30/5/2021 00:00:00,"P02-2022"
,"LV WHITE WATER CATERING","SUPPLIES AND SERVICES","FOOD AND DRINK PURCHASES","4140","BIDFOOD",30/5/2021 00:00:00,"248507",-1153.02,"360001","BIDFOOD",26/4/2021 00:00:00,30/5/2021 00:00:00,"P02-2022"
,"LV WHITE WATER CATERING","SUPPLIES AND SERVICES","FOOD AND DRINK PURCHASES","4140","P112295-SERVICE-icecreams and front house food",30/5/2021 00:00:00,"248507",1153.02,"360001","BIDFOOD",26/4/2021 00:00:00,30/5/2021 00:00:00,"P02-2022"
,"LV WHITE WATER CATERING","SUPPLIES AND SERVICES","FOOD AND DRINK PURCHASES","4140","BIDFOOD",30/5/2021 00:00:00,"248507",502.81,"360001","BIDFOOD",26/4/2021 00:00:00,30/5/2021 00:00:00,"P02-2022"
,"LEE VALLEY CARAVAN PARK","SUPPLIES AND SERVICES","MISCELLANEOUS CARAVAN COSTS","4174","P111808-SERVICE-Aerial and TV",4/5/2021 00:00:00,"247223",639,"AS0343","ASCENT AERIALS",26/4/2021 00:00:00,30/5/2021 00:00:00,"P02-2022"
"CEO","PR/COMMUNICATIONS","SUPPLIES AND SERVICES","CLOTHING & UNIFORMS","4225","P112049-SERVICE-Names badges x 6 + P&P",30/5/2021 00:00:00,"248267",42.5,"RE0055","RECOGNITION EXPRESS THAMES VALLEY",26/4/2021 00:00:00,30/5/2021 00:00:00,"P02-2022"
,"LEE VALLEY MARINA STANSTEAD","SUPPLIES AND SERVICES","CLOTHING & UNIFORMS","4225","P112188-SERVICE-3xblack M2 Pan Mach trousers medium with logo",30/5/2021 00:00:00,"248493",67.95,"DI0017","DIRECT BOOT & SHOE SUPPLIES",26/4/2021 00:00:00,30/5/2021 00:00:00,"P02-2022"
,"LEE VALLEY CAMPSITE","SUPPLIES AND SERVICES","CLOTHING & UNIFORMS","4225","P111956-SERVICE-Campsite Uniforms Sewardstone",30/5/2021 00:00:00,"248033",594.2,"DI0017","DIRECT BOOT & SHOE SUPPLIES",26/4/2021 00:00:00,30/5/2021 00:00:00,"P02-2022"
,"LEE VALLEY CARAVAN PARK","SUPPLIES AND SERVICES","CLOTHING & UNIFORMS","4225","P112002-SERVICE-Dobbs",30/5/2021 00:00:00,"248033",480.12,"DI0017","DIRECT BOOT & SHOE SUPPLIES",26/4/2021 00:00:00,30/5/2021 00:00:00,"P02-2022"
"P&V","ALMOST WILD CAMPSITE","SUPPLIES AND SERVICES","CLOTHING & UNIFORMS","4225","P112002-SERVICE-Almost Wild",30/5/2021 00:00:00,"248033",78.59,"DI0017","DIRECT BOOT & SHOE SUPPLIES",26/4/2021 00:00:00,30/5/2021 00:00:00,"P02-2022"
"P&V","VOLUNTEERS (L&E)","SUPPLIES AND SERVICES","CLOTHING & UNIFORMS","4225","P112082-SERVICE-3 x KK703 Ladies Kustom Kit Polo with Sewn Le",30/5/2021 00:00:00,"248103",44.94,"DI0017","DIRECT BOOT & SHOE SUPPLIES",26/4/2021 00:00:00,30/5/2021 00:00:00,"P02-2022"
"P&V","VOLUNTEERS (L&E)","SUPPLIES AND SERVICES","CLOTHING & UNIFORMS","4225","P112082-SERVICE-3 x KK403 Mens Kustom Kit Polo with Sewn Left",30/5/2021 00:00:00,"248103",44.94,"DI0017","DIRECT BOOT & SHOE SUPPLIES",26/4/2021 00:00:00,30/5/2021 00:00:00,"P02-2022"
"P&V","VOLUNTEERS (L&E)","SUPPLIES AND SERVICES","CLOTHING & UNIFORMS","4225","P112082-SERVICE-1 x KK703 Ladies Kustom Kit Polo with Sewn Le",30/5/2021 00:00:00,"248103",14.98,"DI0017","DIRECT BOOT & SHOE SUPPLIES",26/4/2021 00:00:00,30/5/2021 00:00:00,"P02-2022"
"P&V","VOLUNTEERS (L&E)","SUPPLIES AND SERVICES","CLOTHING & UNIFORMS","4225","P112082-SERVICE-1 x KK703 Ladies Kustom Kit Polo with Sewn Le",30/5/2021 00:00:00,"248103",14.98,"DI0017","DIRECT BOOT & SHOE SUPPLIES",26/4/2021 00:00:00,30/5/2021 00:00:00,"P02-2022"
"P&V","VOLUNTEERS (L&E)","SUPPLIES AND SERVICES","CLOTHING & UNIFORMS","4225","P112082-SERVICE-1 x KK403 Mens Kustom Kit Polo with Sewn Left",30/5/2021 00:00:00,"248103",14.98,"DI0017","DIRECT BOOT & SHOE SUPPLIES",26/4/2021 00:00:00,30/5/2021 00:00:00,"P02-2022"
"P&V","VOLUNTEERS (L&E)","SUPPLIES AND SERVICES","CLOTHING & UNIFORMS","4225","P112082-SERVICE-1 x KK703 Ladies Kustom Kit Polo with Sewn Le",30/5/2021 00:00:00,"248103",14.98,"DI0017","DIRECT BOOT & SHOE SUPPLIES",26/4/2021 00:00:00,30/5/2021 00:00:00,"P02-2022"
"P&V","VOLUNTEERS (L&E)","SUPPLIES AND SERVICES","CLOTHING & UNIFORMS","4225","P112082-SERVICE-6 x KK703 Ladies Kustom Kit Polo with Sewn Le",30/5/2021 00:00:00,"248103",89.88,"DI0017","DIRECT BOOT & SHOE SUPPLIES",26/4/2021 00:00:00,30/5/2021 00:00:00,"P02-2022"
"P&V","VOLUNTEERS (L&E)","SUPPLIES AND SERVICES","CLOTHING & UNIFORMS","4225","P112082-SERVICE-1 x KK403 Mens Kustom Kit Polo with Sewn Left",30/5/2021 00:00:00,"248103",14.98,"DI0017","DIRECT BOOT & SHOE SUPPLIES",26/4/2021 00:00:00,30/5/2021 00:00:00,"P02-2022"
"P&V","VOLUNTEERS (L&E)","SUPPLIES AND SERVICES","CLOTHING & UNIFORMS","4225","P112082-SERVICE-2 x KK403 Mens Kustom Kit Polo with Sewn Left",30/5/2021 00:00:00,"248103",29.96,"DI0017","DIRECT BOOT & SHOE SUPPLIES",26/4/2021 00:00:00,30/5/2021 00:00:00,"P02-2022"
"P&V","VOLUNTEERS (L&E)","SUPPLIES AND SERVICES","CLOTHING & UNIFORMS","4225","P112082-SERVICE-2 x KK703 Ladies Kustom Kit Polo with Sewn Le",30/5/2021 00:00:00,"248103",29.96,"DI0017","DIRECT BOOT & SHOE SUPPLIES",26/4/2021 00:00:00,30/5/2021 00:00:00,"P02-2022"
"P&V","VOLUNTEERS (L&E)","SUPPLIES AND SERVICES","CLOTHING & UNIFORMS","4225","P112082-SERVICE-4 x KK403 Mens Kustom Kit Polo with Sewn Left",30/5/2021 00:00:00,"248103",59.92,"DI0017","DIRECT BOOT & SHOE SUPPLIES",26/4/2021 00:00:00,30/5/2021 00:00:00,"P02-2022"
,"LV LEISURE CENTRE CAMPSITE","SUPPLIES AND SERVICES","CLOTHING & UNIFORMS","4225","P111956-SERVICE-Campsite uniforms Edmonton",30/5/2021 00:00:00,"248033",229.14,"DI0017","DIRECT BOOT & SHOE SUPPLIES",26/4/2021 00:00:00,30/5/2021 00:00:00,"P02-2022"
,"LV LEISURE CENTRE GOLF COURSE","SUPPLIES AND SERVICES","CLOTHING & UNIFORMS","4225","P112283-SERVICE-Staff Uniform",30/5/2021 00:00:00,"248033",107.74,"DI0017","DIRECT BOOT & SHOE SUPPLIES",26/4/2021 00:00:00,30/5/2021 00:00:00,"P02-2022"
"CEO","CHIEF EXECUTIVE","SUPPLIES AND SERVICES","OFFICE EXPENSES","4311","P112224-SERVICE-2 x HPCH562EE Black Cartridges & 2 x HPCH562E",30/5/2021 00:00:00,"248478",82.14,"TH0008","JKL SOLUTIONS LTD",26/4/2021 00:00:00,30/5/2021 00:00:00,"P02-2022"
"R&B","FINANCE","SUPPLIES AND SERVICES","OFFICE EXPENSES","4311","P112155-SERVICE-KF26051-multiple labels",24/5/2021 00:00:00,"248251",7.22,"TH0008","JKL SOLUTIONS LTD",26/4/2021 00:00:00,30/5/2021 00:00:00,"P02-2022"
"CEO","LEGAL SERVICES","SUPPLIES AND SERVICES","OFFICE EXPENSES","4311","P111826-SERVICE-delivery costs",25/5/2021 00:00:00,"248032",8.09,"BY0531","BYTES SOFTWARE SERVICES LIMITED",26/4/2021 00:00:00,30/5/2021 00:00:00,"P02-2022"
"CEO","LEGAL SERVICES","SUPPLIES AND SERVICES","OFFICE EXPENSES","4311","P111826-SERVICE-HP CF226A (26A) Toner black- original - Laser",25/5/2021 00:00:00,"248032",82.33,"BY0531","BYTES SOFTWARE SERVICES LIMITED",26/4/2021 00:00:00,30/5/2021 00:00:00,"P02-2022"
,"LEE VALLEY MARINA SPRINGFIELD","SUPPLIES AND SERVICES","OFFICE EXPENSES","4311","P111896-SERVICE-To supply items as requested",11/5/2021 00:00:00,"247556",351.02,"TH0008","JKL SOLUTIONS LTD",26/4/2021 00:00:00,30/5/2021 00:00:00,"P02-2022"
,"LEE VALLEY CAMPSITE","SUPPLIES AND SERVICES","OFFICE EXPENSES","4311","P112056-SERVICE-Stationery",24/5/2021 00:00:00,"248106",238.73,"TH0008","JKL SOLUTIONS LTD",26/4/2021 00:00:00,30/5/2021 00:00:00,"P02-2022"
,"LEE VALLEY VELOPARK","SUPPLIES AND SERVICES","OFFICE EXPENSES","4311","P112122-SERVICE-Shredding",17/5/2021 00:00:00,"247664",46,"CS0287","CURTIS SECURITY SHREDDING LTD",26/4/2021 00:00:00,30/5/2021 00:00:00,"P02-2022"
,"LV LEISURE CENTRE CAMPSITE","SUPPLIES AND SERVICES","OFFICE EXPENSES","4311","P111899-SERVICE-Stationery",30/5/2021 00:00:00,"247558",82.57,"TH0008","JKL SOLUTIONS LTD",26/4/2021 00:00:00,30/5/2021 00:00:00,"P02-2022"
,"LEE VALLEY ATHLETICS CENTRE","SUPPLIES AND SERVICES","OFFICE EXPENSES","4311","P111930-SERVICE-LVAC INVOICE 59456 CARD NOS X 100",5/5/2021 00:00:00,"247216",164.74,"ST0184","STACY & SON",26/4/2021 00:00:00,30/5/2021 00:00:00,"P02-2022"
,"LEE VALLEY WHITE WATER CENTRE","SUPPLIES AND SERVICES","OFFICE EXPENSES","4311","P112033-SERVICE-Rulers. wallets, till rolls",17/5/2021 00:00:00,"247835",30.04,"AM0406","AMAZON PAYMENTS UK LIMITED",26/4/2021 00:00:00,30/5/2021 00:00:00,"P02-2022"
,"LEE VALLEY WHITE WATER CENTRE","SUPPLIES AND SERVICES","OFFICE EXPENSES","4311","P112033-SERVICE-Rulers. wallets, till rolls",17/5/2021 00:00:00,"247836",8.08,"AM0406","AMAZON PAYMENTS UK LIMITED",26/4/2021 00:00:00,30/5/2021 00:00:00,"P02-2022"
,"LEE VALLEY WHITE WATER CENTRE","SUPPLIES AND SERVICES","OFFICE EXPENSES","4311","P112033-SERVICE-Rulers. wallets, till rolls",17/5/2021 00:00:00,"247837",8.25,"AM0406","AMAZON PAYMENTS UK LIMITED",26/4/2021 00:00:00,30/5/2021 00:00:00,"P02-2022"
,"LEE VALLEY WHITE WATER CENTRE","SUPPLIES AND SERVICES","OFFICE EXPENSES","4311","P112152-SERVICE-2 x Wall planners",24/5/2021 00:00:00,"248142",11.64,"AM0406","AMAZON PAYMENTS UK LIMITED",26/4/2021 00:00:00,30/5/2021 00:00:00,"P02-2022"
,"LEE VALLEY WHITE WATER CENTRE","SUPPLIES AND SERVICES","OFFICE EXPENSES","4311","P112176-SERVICE-Pens, scissors, z notes",24/5/2021 00:00:00,"248257",12.4,"TH0008","JKL SOLUTIONS LTD",26/4/2021 00:00:00,30/5/2021 00:00:00,"P02-2022"
,"LEE VALLEY WHITE WATER CENTRE","SUPPLIES AND SERVICES","OFFICE EXPENSES","4311","P112175-SERVICE-Hilighter pens",24/5/2021 00:00:00,"248268",3.32,"AM0406","AMAZON PAYMENTS UK LIMITED",26/4/2021 00:00:00,30/5/2021 00:00:00,"P02-2022"
"R&B","INFORMATION TECHNOLOGY","SUPPLIES AND SERVICES","PHOTOCOPYING","4314","KONICA MINOLTA BUSINESS SOLUTI",10/5/2021 00:00:00,"247276",180.74,"KO0071","KONICA MINOLTA BUSINESS SOLUTIONS ( UK) LTD",26/4/2021 00:00:00,30/5/2021 00:00:00,"P02-2022"
,"LEE VALLEY VELOPARK","SUPPLIES AND SERVICES","PHOTOCOPYING","4314","KONICA MINOLTA BUSINESS SOLUTI",30/5/2021 00:00:00,"248462",30.17,"KO0071","KONICA MINOLTA BUSINESS SOLUTIONS ( UK) LTD",26/4/2021 00:00:00,30/5/2021 00:00:00,"P02-2022"
,"LEE VALLEY VELOPARK","SUPPLIES AND SERVICES","PHOTOCOPYING","4314","KONICA MINOLTA BUSINESS SOLUTI",30/5/2021 00:00:00,"248463",101.07,"KO0071","KONICA MINOLTA BUSINESS SOLUTIONS ( UK) LTD",26/4/2021 00:00:00,30/5/2021 00:00:00,"P02-2022"
,"LSC INFORMATION TECHNOLOGY","SUPPLIES AND SERVICES","PHOTOCOPYING","4314","ANNODATA LTD",10/5/2021 00:00:00,"245953",394.97,"AN0466","ANNODATA LTD",26/4/2021 00:00:00,30/5/2021 00:00:00,"P02-2022"
"P&V","BIODIVERSITY ACTION PLAN","SUPPLIES AND SERVICES","PERIODICALS & REFERENCE BOOKS","4332","P111781-SERVICE-Corporate Membership for London Natural Histo",4/5/2021 00:00:00,"247262",20,"LO0030","LONDON NATURAL HISTORY SOCIETY",26/4/2021 00:00:00,30/5/2021 00:00:00,"P02-2022"
"CEO","LEGAL SERVICES","SUPPLIES AND SERVICES","SUBSCRIPTIONS","4334","P112027-SERVICE-Subscription",25/5/2021 00:00:00,"247767",270,"LG0046","LLG-LAWYERS IN LOCAL GOVERNMENT",26/4/2021 00:00:00,30/5/2021 00:00:00,"P02-2022"
"CEO","LEGAL SERVICES","SUPPLIES AND SERVICES","SUBSCRIPTIONS","4334","P112031-SERVICE-Public Law Partnership Subscription",25/5/2021 00:00:00,"247769",840,"ES0268","ESSEX COUNTY COUNCIL",26/4/2021 00:00:00,30/5/2021 00:00:00,"P02-2022"
"CEO","LEGAL SERVICES","SUPPLIES AND SERVICES","SUBSCRIPTIONS","4334","P112348-SERVICE-Westlaw & Practical Law Services Subscription",30/5/2021 00:00:00,"248309",5485,"TH0291","THOMSON REUTERS",26/4/2021 00:00:00,30/5/2021 00:00:00,"P02-2022"
"P&V","LEE VALLEY FARM HOLYFIELDHALL","SUPPLIES AND SERVICES","SUBSCRIPTIONS","4334","P111620-SERVICE-Subscription",30/5/2021 00:00:00,"248063",357,"NA0005","NATIONAL MILK RECORDS PLC",26/4/2021 00:00:00,30/5/2021 00:00:00,"P02-2022"
"P&V","MYDDELTON HOUSE","SUPPLIES AND SERVICES","POSTAGE & MAILING","4445","PITNEY BOWES PURCHASE POWER",25/5/2021 00:00:00,"247830",21,"PI0021","PITNEY BOWES PURCHASE POWER",26/4/2021 00:00:00,30/5/2021 00:00:00,"P02-2022"
"P&V","MYDDELTON HOUSE","SUPPLIES AND SERVICES","POSTAGE & MAILING","4445","PITNEY BOWES PURCHASE POWER",25/5/2021 00:00:00,"247830",1500,"PI0021","PITNEY BOWES PURCHASE POWER",26/4/2021 00:00:00,30/5/2021 00:00:00,"P02-2022"
"R&B","REVENUE SUSPENSE (AUTHORITY)","SUPPLIES AND SERVICES","TELEPHONES (MOBILE)","4484","VODAFONE  LIMITED (CORPORATE)",30/5/2021 00:00:00,"248513",556.62,"VO0010","VODAFONE  LIMITED (CORPORATE)",26/4/2021 00:00:00,30/5/2021 00:00:00,"P02-2022"
"R&B","DEMOCRATIC REPRESENTATION & MA","SUPPLIES AND SERVICES","MEMBERS EXPENSES","4502","P112293-SERVICE-5 x KF41512 Memory Sticks",30/5/2021 00:00:00,"248541",24.4,"TH0008","JKL SOLUTIONS LTD",26/4/2021 00:00:00,30/5/2021 00:00:00,"P02-2022"
"P&V","FISHERIES MANAGEMENT","SUPPLIES AND SERVICES","VOLUNTEERS EXPENSES","4506","P111006-SERVICE-2 x O4 Neoprene Work Boots Fides high Black S",24/5/2021 00:00:00,"247463",133.8,"EN0283","ENGELBERT STRAUSS LIMITED",26/4/2021 00:00:00,30/5/2021 00:00:00,"P02-2022"
"P&V","FISHERIES MANAGEMENT","SUPPLIES AND SERVICES","VOLUNTEERS EXPENSES","4506","P111006-SERVICE-2 x O4 Neoprene Work Boots Fides high Black S",24/5/2021 00:00:00,"248039",-66.9,"EN0283","ENGELBERT STRAUSS LIMITED",26/4/2021 00:00:00,30/5/2021 00:00:00,"P02-2022"
,"LEE VALLEY CAMPSITE","SUPPLIES AND SERVICES","MARKETING","4603","P111624-SERVICE-Social 2m Distance Banner",4/5/2021 00:00:00,"247240",60,"MA0167","MARTIN DANNELL & CO LTD",26/4/2021 00:00:00,30/5/2021 00:00:00,"P02-2022"
,"LEE VALLEY CAMPSITE","SUPPLIES AND SERVICES","MARKETING","4603","P111659-SERVICE-We Are Open Banner",4/5/2021 00:00:00,"247240",70.22,"MA0167","MARTIN DANNELL & CO LTD",26/4/2021 00:00:00,30/5/2021 00:00:00,"P02-2022"
,"LEE VALLEY CARAVAN PARK","SUPPLIES AND SERVICES","MARKETING","4603","P111655-SERVICE-Entrance Banner",4/5/2021 00:00:00,"247241",77.72,"MA0167","MARTIN DANNELL & CO LTD",26/4/2021 00:00:00,30/5/2021 00:00:00,"P02-2022"
"P&V","MYDDELTON HOUSE GARDENS","SUPPLIES AND SERVICES","MARKETING","4603","P111767-SERVICE-1670mm x 660mm MHG Banners",10/5/2021 00:00:00,"247487",92.6,"MA0167","MARTIN DANNELL & CO LTD",26/4/2021 00:00:00,30/5/2021 00:00:00,"P02-2022"
"P&V","MYDDELTON HOUSE GARDENS","SUPPLIES AND SERVICES","MARKETING","4603","P111767-SERVICE-Delivery charge",10/5/2021 00:00:00,"247487",7.5,"MA0167","MARTIN DANNELL & CO LTD",26/4/2021 00:00:00,30/5/2021 00:00:00,"P02-2022"
"P&V","MYDDELTON HOUSE GARDENS","SUPPLIES AND SERVICES","MARKETING","4603","P112336-SERVICE-One full page entry into Gardens Visit 2021",30/5/2021 00:00:00,"248593",325,"GA0282","GARDENS TO VISIT",26/4/2021 00:00:00,30/5/2021 00:00:00,"P02-2022"
"P&V","RIVER LEE COUNTRY PARK","SUPPLIES AND SERVICES","MARKETING","4603","THE EDGE (SYSTEMS) LTD",17/5/2021 00:00:00,"247687",0,"ED0343","THE EDGE (SYSTEMS) LTD",26/4/2021 00:00:00,30/5/2021 00:00:00,"P02-2022"
"P&V","RIVER LEE COUNTRY PARK","SUPPLIES AND SERVICES","MARKETING","4603","P112160-SERVICE-2x Banners Fishers Green Car Park",30/5/2021 00:00:00,"248596",32.98,"MA0167","MARTIN DANNELL & CO LTD",26/4/2021 00:00:00,30/5/2021 00:00:00,"P02-2022"
"P&V","RIVER LEE COUNTRY PARK","SUPPLIES AND SERVICES","MARKETING","4603","P112160-SERVICE-1x Banners Fishers Green Car Park",30/5/2021 00:00:00,"248596",49.5,"MA0167","MARTIN DANNELL & CO LTD",26/4/2021 00:00:00,30/5/2021 00:00:00,"P02-2022"
,"LV LEISURE CENTRE CAMPSITE","SUPPLIES AND SERVICES","MARKETING","4603","P111654-SERVICE-we are open sign",4/5/2021 00:00:00,"247242",70.22,"MA0167","MARTIN DANNELL & CO LTD",26/4/2021 00:00:00,30/5/2021 00:00:00,"P02-2022"
,"LV LEISURE CENTRE CAMPSITE","SUPPLIES AND SERVICES","MARKETING","4603","P111623-SERVICE-2m social distance x2",4/5/2021 00:00:00,"247242",112.5,"MA0167","MARTIN DANNELL & CO LTD",26/4/2021 00:00:00,30/5/2021 00:00:00,"P02-2022"
,"LV LEISURE CENTRE GOLF COURSE","SUPPLIES AND SERVICES","MARKETING","4603","P111903-SERVICE-2500 golf score cards",24/5/2021 00:00:00,"248019",191.84,"SO0582","SOLOPRESS",26/4/2021 00:00:00,30/5/2021 00:00:00,"P02-2022"
,"LEE VALLEY WHITE WATER CENTRE","SUPPLIES AND SERVICES","MARKETING","4603","P111680-SERVICE-We're Open banners",4/5/2021 00:00:00,"247243",140.44,"MA0167","MARTIN DANNELL & CO LTD",26/4/2021 00:00:00,30/5/2021 00:00:00,"P02-2022"
,"LEE VALLEY WHITE WATER CENTRE","SUPPLIES AND SERVICES","MARKETING","4603","P110902-SERVICE-Digital Marketing",10/5/2021 00:00:00,"247651",2329.98,"ME0325","HONCHOM INTERNATIONAL LIMITED",26/4/2021 00:00:00,30/5/2021 00:00:00,"P02-2022"
,"LEE VALLEY WHITE WATER CENTRE","SUPPLIES AND SERVICES","MARKETING","4603","P108455-SERVICE-Gift voucher campaign July 2020",11/5/2021 00:00:00,"247704",626.09,"ME0325","HONCHOM INTERNATIONAL LIMITED",26/4/2021 00:00:00,30/5/2021 00:00:00,"P02-2022"
,"LEE VALLEY WHITE WATER CENTRE","SUPPLIES AND SERVICES","MARKETING","4603","P108455-SERVICE-Rafting campaign August 2020",11/5/2021 00:00:00,"247704",1962.2,"ME0325","HONCHOM INTERNATIONAL LIMITED",26/4/2021 00:00:00,30/5/2021 00:00:00,"P02-2022"
,"LEE VALLEY WHITE WATER CENTRE","SUPPLIES AND SERVICES","MARKETING","4603","P108455-SERVICE-Rafting campaign August 2020",11/5/2021 00:00:00,"247705",-660.73,"ME0325","HONCHOM INTERNATIONAL LIMITED",26/4/2021 00:00:00,30/5/2021 00:00:00,"P02-2022"
